NUMERO_MANDATO;RIGA_MANDATO;QUIET;IMPORTO_RIGA;IMPORTO_MANDATO;BENEFICIARIO;CIG;TITOLO_PAGAMENTO;DATA_MANDATO;CAPITOLO;ARTICOLO;NUMERO_IMPEGNO;TITOLO;DESCR_TITOLO;LIVELLO_II;DESCR_LIVELLO_II;LIVELLO_III;DESCR_LIVELLO_III;LIVELLO_IV;DESCR_LIVELLO_IV;LIVELLO_V;DESCR_LIVELLO_V;DATA_PAG_EFF;
812;1;1200;"1.518,37";"2.011,84";FIORE SALVATORE VITTORIO; ;INDENNITA' FUNZIONE GIUGNO 2018;03-07-2018;1001;0;18;1;Spese correnti;3;Acquisto di beni e servizi;2;Acquisto di servizi;1;Organi e incarichi istituzionali dell'amministrazione;1;Organi istituzionali dell'amministrazione - Indennità;03-07-2018;
812;2;1201;"151,83";"2.011,84";INTERDONATO ARMANDO; ;INDENNITA' FUNZIONE GIUGNO 2018;03-07-2018;1001;0;18;1;Spese correnti;3;Acquisto di beni e servizi;2;Acquisto di servizi;1;Organi e incarichi istituzionali dell'amministrazione;1;Organi istituzionali dell'amministrazione - Indennità;03-07-2018;
812;3;1202;"113,88";"2.011,84";LAMANCUSA MARCO; ;INDENNITA' FUNZIONE GIUGNO 2018;03-07-2018;1001;0;18;1;Spese correnti;3;Acquisto di beni e servizi;2;Acquisto di servizi;1;Organi e incarichi istituzionali dell'amministrazione;1;Organi istituzionali dell'amministrazione - Indennità;03-07-2018;
812;4;1203;"227,76";"2.011,84";PETTINATO  ROSA SANDRA; ;INDENNITA' FUNZIONE GIUGNO 2018;03-07-2018;1001;0;18;1;Spese correnti;3;Acquisto di beni e servizi;2;Acquisto di servizi;1;Organi e incarichi istituzionali dell'amministrazione;1;Organi istituzionali dell'amministrazione - Indennità;03-07-2018;
813;1;1204;"227,76";"227,76";FORZANO GIUSEPPE; ;INDENNITA' FUNZIONE PRESIDENTE C.C. GIUGNO 2018;03-07-2018;1001;0;56;1;Spese correnti;3;Acquisto di beni e servizi;2;Acquisto di servizi;1;Organi e incarichi istituzionali dell'amministrazione;1;Organi istituzionali dell'amministrazione - Indennità;03-07-2018;
814;1;1205;"17.406,30";"17.406,30";PIZZO PIPPO;7376806CE0;"SALDO Fatt.n. 25|2018  del 30/04/2018 serv. sazzamento,racc. e trasporto rsu apr.2018";03-07-2018;1744;0;118;1;Spese correnti;3;Acquisto di beni e servizi;2;Acquisto di servizi;15;Contratti di servizio pubblico;5;Contratti di servizio per il conferimento in discarica dei rifiuti;03-07-2018;
815;1;1206;"193,37";"193,37";SCAFIDI GIUSEPPE;Z1D2165AF9;Fatt.n. 000013-2018-FE del 04/06/2018 RIFERIMENTO PREVENTIVO 27/2018 DEL 23/04/2018 SU MOTOAPE TG AB12766;03-07-2018;6070;4;543;1;Spese correnti;3;Acquisto di beni e servizi;2;Acquisto di servizi;9;Manutenzione ordinaria e riparazioni;1;"Manutenzione ordinaria e riparazioni di mezzi di trasporto ad uso civile, di sicurezza e ordine pubblico";03-07-2018;
816;1;1207;"118,97";"318,23";SCAFIDI GIUSEPPE;Z1D2165AF9;Fatt.n. 000010-2018-FE del 04/06/2018 RIFERIMENTO PREVENTIVO 57/2018 DEL 04/05/2018 SU P.I.K. TG CN190JJ;03-07-2018;6070;5;544;1;Spese correnti;3;Acquisto di beni e servizi;2;Acquisto di servizi;9;Manutenzione ordinaria e riparazioni;1;"Manutenzione ordinaria e riparazioni di mezzi di trasporto ad uso civile, di sicurezza e ordine pubblico";03-07-2018;
816;2;1207;"199,26";"318,23";SCAFIDI GIUSEPPE;Z1D2165AF9;Fatt.n. 000011-2018-FE del 04/06/2018 RIFERIMENTO PREVENTIVO 26/2018 DEL 23/04/2018 SU P.I.K. TG CN190JJ;03-07-2018;6070;5;544;1;Spese correnti;3;Acquisto di beni e servizi;2;Acquisto di servizi;9;Manutenzione ordinaria e riparazioni;1;"Manutenzione ordinaria e riparazioni di mezzi di trasporto ad uso civile, di sicurezza e ordine pubblico";03-07-2018;
817;1;1208;"162,50";"162,50";SCAFIDI GIUSEPPE;Z1D2165AF9;Fatt.n. 000014-2018-FE del 04/06/2018 RIFERIMENTO PREVENTIVO 28/2018 DEL 23/04/2018 SU FIAT PANDA TG CZ839XJ;03-07-2018;6070;7;545;1;Spese correnti;3;Acquisto di beni e servizi;2;Acquisto di servizi;9;Manutenzione ordinaria e riparazioni;1;"Manutenzione ordinaria e riparazioni di mezzi di trasporto ad uso civile, di sicurezza e ordine pubblico";03-07-2018;
818;1;1209;"187,95";"446,20";SCAFIDI GIUSEPPE;Z1D2165AF9;Fatt.n. 000012-2018-FE del 04/06/2018 RIFERIMENTO PREVENTIVO 25/2018 DEL 23/04/2018 SU SCUOLABUS IVEECO DAILY TG CW015TH;03-07-2018;6070;9;546;1;Spese correnti;3;Acquisto di beni e servizi;2;Acquisto di servizi;9;Manutenzione ordinaria e riparazioni;1;"Manutenzione ordinaria e riparazioni di mezzi di trasporto ad uso civile, di sicurezza e ordine pubblico";03-07-2018;
818;2;1209;"258,25";"446,20";SCAFIDI GIUSEPPE;Z1D2165AF9;Fatt.n. 000015-2018-FE del 04/06/2018 RIFERIMENTO PREVENTIVO 54/2018 DEL 04/05/2018 SU SCUOLABUS IVECO DAILY TG CW015TH;03-07-2018;6070;9;546;1;Spese correnti;3;Acquisto di beni e servizi;2;Acquisto di servizi;9;Manutenzione ordinaria e riparazioni;1;"Manutenzione ordinaria e riparazioni di mezzi di trasporto ad uso civile, di sicurezza e ordine pubblico";03-07-2018;
821;1;1212;"289,98";"289,98";ECONOMO COMUNALE; ;RIMBORSO SPESE ECONOMATO 2^ TRIMESTRE 2018;03-07-2018;1410;0;64;1;Spese correnti;3;Acquisto di beni e servizi;2;Acquisto di servizi;99;Altri servizi;999;Altri servizi diversi n.a.c.;03-07-2018;
822;1;1213;"1.500,00";"1.500,00";ECONOMO COMUNALE; ;RIMBORSO SPESE ECONOMATO 2^ TRIMESTRE 2018;03-07-2018;1570;0;82;1;Spese correnti;3;Acquisto di beni e servizi;2;Acquisto di servizi;9;Manutenzione ordinaria e riparazioni;11;Manutenzione ordinaria e riparazioni di altri beni materiali;03-07-2018;
823;1;1214;"1.000,00";"1.000,00";ECONOMO COMUNALE; ;RIMBORSO SPESE ECONOMATO 2^ TRIMESTRE 2018;03-07-2018;1571;0;83;1;Spese correnti;3;Acquisto di beni e servizi;2;Acquisto di servizi;9;Manutenzione ordinaria e riparazioni;8;Manutenzione ordinaria e riparazioni di beni immobili;03-07-2018;
824;1;1215;"500,00";"500,00";ECONOMO COMUNALE; ;RIMBORSO SPESE ECONOMATO 2^ TRIMESTRE 2018;03-07-2018;1579;0;84;1;Spese correnti;3;Acquisto di beni e servizi;2;Acquisto di servizi;9;Manutenzione ordinaria e riparazioni;8;Manutenzione ordinaria e riparazioni di beni immobili;03-07-2018;
825;1;1216;"150,00";"150,00";ECONOMO COMUNALE; ;RIMBORSO SPESE ECONOMATO 2^ TRIMESTRE 2018;03-07-2018;1676;0;85;1;Spese correnti;3;Acquisto di beni e servizi;1;Acquisto di beni;2;Altri beni di consumo;999;Altri beni e materiali di consumo n.a.c.;03-07-2018;
826;1;1217;"269,48";"269,48";ECONOMO COMUNALE; ;RIMBORSO SPESE ECONOMATO 2^ TRIMESTRE 2018;03-07-2018;1878;9;95;1;Spese correnti;3;Acquisto di beni e servizi;1;Acquisto di beni;2;Altri beni di consumo;999;Altri beni e materiali di consumo n.a.c.;03-07-2018;
827;1;1218;"1.000,00";"1.000,00";ECONOMO COMUNALE; ;RIMBORSO SPESE ECONOMATO 2^ TRIMESTRE 2018;03-07-2018;1939;0;86;1;Spese correnti;3;Acquisto di beni e servizi;2;Acquisto di servizi;9;Manutenzione ordinaria e riparazioni;8;Manutenzione ordinaria e riparazioni di beni immobili;03-07-2018;
828;1;1219;"61,00";"61,00";ECONOMO COMUNALE; ;RIMBORSO SPESE ECONOMATO 2^ TRIMESTRE 2018;03-07-2018;2120;4;96;1;Spese correnti;3;Acquisto di beni e servizi;2;Acquisto di servizi;9;Manutenzione ordinaria e riparazioni;11;Manutenzione ordinaria e riparazioni di altri beni materiali;03-07-2018;
829;1;1220;"115,90";"115,90";ECONOMO COMUNALE; ;RIMBORSO SPESE ECONOMATO 2^ TRIMESTRE 2018;03-07-2018;2120;9;88;1;Spese correnti;3;Acquisto di beni e servizi;2;Acquisto di servizi;9;Manutenzione ordinaria e riparazioni;11;Manutenzione ordinaria e riparazioni di altri beni materiali;03-07-2018;
830;1;1221;"170,80";"170,80";ECONOMO COMUNALE; ;RIMBORSO SPESE ECONOMATO 2^ TRIMESTRE 2018;03-07-2018;2140;3;74;1;Spese correnti;3;Acquisto di beni e servizi;1;Acquisto di beni;2;Altri beni di consumo;6;Materiale informatico;03-07-2018;
831;1;1222;"300,00";"300,00";ECONOMO COMUNALE; ;RIMBORSO SPESE ECONOMATO 2^ TRIMESTRE 2018;03-07-2018;2140;4;89;1;Spese correnti;3;Acquisto di beni e servizi;1;Acquisto di beni;2;Altri beni di consumo;6;Materiale informatico;03-07-2018;
832;1;1223;"148,72";"148,72";ECONOMO COMUNALE; ;RIMBORSO SPESE ECONOMATO 2^ TRIMESTRE 2018;03-07-2018;2140;5;100;1;Spese correnti;3;Acquisto di beni e servizi;1;Acquisto di beni;2;Altri beni di consumo;6;Materiale informatico;03-07-2018;
833;1;1224;"141,48";"141,48";ECONOMO COMUNALE; ;RIMBORSO SPESE ECONOMATO 2^ TRIMESTRE 2018;03-07-2018;2140;6;110;1;Spese correnti;3;Acquisto di beni e servizi;1;Acquisto di beni;2;Altri beni di consumo;6;Materiale informatico;03-07-2018;
834;1;1225;"187,76";"187,76";ECONOMO COMUNALE; ;RIMBORSO SPESE ECONOMATO 2^ TRIMESTRE 2018;03-07-2018;2140;10;90;1;Spese correnti;3;Acquisto di beni e servizi;1;Acquisto di beni;2;Altri beni di consumo;6;Materiale informatico;03-07-2018;
835;1;1226;"123,35";"123,35";ECONOMO COMUNALE; ;RIMBORSO SPESE ECONOMATO 2^ TRIMESTRE 2018;03-07-2018;2150;2;75;2;Spese in conto capitale;2;Investimenti fissi lordi e acquisto di terreni;1;Beni materiali;7;Hardware;999;Hardware n.a.c.;03-07-2018;
836;1;1227;"119,00";"119,00";ECONOMO COMUNALE; ;RIMBORSO SPESE ECONOMATO 2^ TRIMESTRE 2018;03-07-2018;2150;6;111;2;Spese in conto capitale;2;Investimenti fissi lordi e acquisto di terreni;1;Beni materiali;7;Hardware;999;Hardware n.a.c.;03-07-2018;
837;1;1228;"91,99";"91,99";ECONOMO COMUNALE; ;RIMBORSO SPESE ECONOMATO 2^ TRIMESTRE 2018;03-07-2018;2150;8;104;2;Spese in conto capitale;2;Investimenti fissi lordi e acquisto di terreni;1;Beni materiali;7;Hardware;999;Hardware n.a.c.;03-07-2018;
838;1;1229;"107,70";"107,70";ECONOMO COMUNALE; ;RIMBORSO SPESE ECONOMATO 2^ TRIMESTRE 2018;03-07-2018;6050;0;69;1;Spese correnti;3;Acquisto di beni e servizi;1;Acquisto di beni;2;Altri beni di consumo;1;"Carta, cancelleria e stampati";03-07-2018;
839;1;1230;"100,00";"100,00";ECONOMO COMUNALE; ;RIMBORSO SPESE ECONOMATO 2^ TRIMESTRE 2018;03-07-2018;6050;3;92;1;Spese correnti;3;Acquisto di beni e servizi;1;Acquisto di beni;2;Altri beni di consumo;1;"Carta, cancelleria e stampati";03-07-2018;
840;1;1231;"94,00";"94,00";ECONOMO COMUNALE; ;RIMBORSO SPESE ECONOMATO 2^ TRIMESTRE 2018;03-07-2018;6050;4;106;1;Spese correnti;3;Acquisto di beni e servizi;1;Acquisto di beni;2;Altri beni di consumo;1;"Carta, cancelleria e stampati";03-07-2018;
841;1;1232;"200,00";"200,00";ECONOMO COMUNALE; ;RIMBORSO SPESE ECONOMATO 2^ TRIMESTRE 2018;03-07-2018;6050;5;70;1;Spese correnti;3;Acquisto di beni e servizi;1;Acquisto di beni;2;Altri beni di consumo;1;"Carta, cancelleria e stampati";03-07-2018;
842;1;1233;"140,99";"140,99";ECONOMO COMUNALE; ;RIMBORSO SPESE ECONOMATO 2^ TRIMESTRE 2018;03-07-2018;6050;9;107;1;Spese correnti;3;Acquisto di beni e servizi;1;Acquisto di beni;2;Altri beni di consumo;1;"Carta, cancelleria e stampati";03-07-2018;
843;1;1234;"47,58";"47,58";ECONOMO COMUNALE; ;RIMBORSO SPESE ECONOMATO 2^ TRIMESTRE 2018;03-07-2018;6050;18;93;1;Spese correnti;3;Acquisto di beni e servizi;1;Acquisto di beni;2;Altri beni di consumo;1;"Carta, cancelleria e stampati";03-07-2018;
844;1;1235;"465,86";"465,86";ECONOMO COMUNALE; ;RIMBORSO SPESE ECONOMATO 2^ TRIMESTRE 2018;03-07-2018;6120;0;94;1;Spese correnti;3;Acquisto di beni e servizi;2;Acquisto di servizi;9;Manutenzione ordinaria e riparazioni;8;Manutenzione ordinaria e riparazioni di beni immobili;03-07-2018;
845;1;1236;"143,94";"143,94";ECONOMO COMUNALE; ;RIMBORSO SPESE ECONOMATO MANIFESTAZIONE " VETRINA DI PRIMAVERA ";03-07-2018;1512;1;128;1;Spese correnti;3;Acquisto di beni e servizi;2;Acquisto di servizi;2;"Organizzazione eventi, pubblicita` e servizi per trasferta";5;Organizzazione e partecipazione a manifestazioni e convegni;03-07-2018;
846;1;1197;"1.740,58";"1.740,58";CASSA DEPOSITI E PRESTITI S.P.A.; ;QUOTA INTERESSI MUTUI IN AMMORTAMENTO I SEM. 2018;03-07-2018;2240;0;132;1;Spese correnti;7;Interessi passivi;5;Interessi su Mutui e altri finanziamenti a medio lungo termine;5;Interessi passivi su mutui e altri finanziamenti a medio lungo termine ad altri soggetti;999;Interessi passivi su mutui e altri finanziamenti a medio lungo termine ad altri soggetti;03-07-2018;
847;1;1197;"3.789,27";"3.789,27";CASSA DEPOSITI E PRESTITI S.P.A.; ;QUOTA INTERESSI MUTUI IN AMMORTAMENTO I SEM. 2018;03-07-2018;1580;0;134;1;Spese correnti;7;Interessi passivi;5;Interessi su Mutui e altri finanziamenti a medio lungo termine;5;Interessi passivi su mutui e altri finanziamenti a medio lungo termine ad altri soggetti;999;Interessi passivi su mutui e altri finanziamenti a medio lungo termine ad altri soggetti;03-07-2018;
848;1;1197;"1.477,49";"1.477,49";CASSA DEPOSITI E PRESTITI S.P.A.; ;QUOTA INTERESSI MUTUI IN AMMORTAMENTO I SEM. 2018;03-07-2018;1610;0;135;1;Spese correnti;7;Interessi passivi;5;Interessi su Mutui e altri finanziamenti a medio lungo termine;5;Interessi passivi su mutui e altri finanziamenti a medio lungo termine ad altri soggetti;999;Interessi passivi su mutui e altri finanziamenti a medio lungo termine ad altri soggetti;03-07-2018;
849;1;1197;"19.644,89";"19.644,89";CASSA DEPOSITI E PRESTITI S.P.A.; ;QUOTA INTERESSI MUTUI IN AMMORTAMENTO I SEM. 2018;03-07-2018;1942;0;136;1;Spese correnti;7;Interessi passivi;5;Interessi su Mutui e altri finanziamenti a medio lungo termine;5;Interessi passivi su mutui e altri finanziamenti a medio lungo termine ad altri soggetti;999;Interessi passivi su mutui e altri finanziamenti a medio lungo termine ad altri soggetti;03-07-2018;
850;1;1197;"2.644,27";"2.644,27";CASSA DEPOSITI E PRESTITI S.P.A.; ;QUOTA INTERESSI MUTUI IN AMMORTAMENTO I SEM. 2018;03-07-2018;1885;0;137;1;Spese correnti;7;Interessi passivi;5;Interessi su Mutui e altri finanziamenti a medio lungo termine;5;Interessi passivi su mutui e altri finanziamenti a medio lungo termine ad altri soggetti;999;Interessi passivi su mutui e altri finanziamenti a medio lungo termine ad altri soggetti;03-07-2018;
851;1;1197;"26.234,40";"26.234,40";CASSA DEPOSITI E PRESTITI S.P.A.; ;QUOTA INTERESSI MUTUI IN AMMORTAMENTO I SEM. 2018;03-07-2018;1941;0;138;1;Spese correnti;7;Interessi passivi;5;Interessi su Mutui e altri finanziamenti a medio lungo termine;5;Interessi passivi su mutui e altri finanziamenti a medio lungo termine ad altri soggetti;999;Interessi passivi su mutui e altri finanziamenti a medio lungo termine ad altri soggetti;03-07-2018;
852;1;1197;"1.142,22";"1.142,22";CASSA DEPOSITI E PRESTITI S.P.A.; ;QUOTA INTERESSI MUTUI IN AMMORTAMENTO I SEM. 2018;03-07-2018;1837;1;139;1;Spese correnti;7;Interessi passivi;5;Interessi su Mutui e altri finanziamenti a medio lungo termine;5;Interessi passivi su mutui e altri finanziamenti a medio lungo termine ad altri soggetti;999;Interessi passivi su mutui e altri finanziamenti a medio lungo termine ad altri soggetti;03-07-2018;
853;1;1197;"2.235,24";"2.235,24";CASSA DEPOSITI E PRESTITI S.P.A.; ;QUOTA INTERESSI MUTUI IN AMMORTAMENTO I SEM. 2018;03-07-2018;2162;0;140;1;Spese correnti;7;Interessi passivi;5;Interessi su Mutui e altri finanziamenti a medio lungo termine;4;Interessi passivi su finanziamenti a medio lungo termine a Imprese;999;Interessi passivi a altre imprese su finanziamenti a medio lungo termine;03-07-2018;
854;1;1197;"1.228,69";"1.228,69";CASSA DEPOSITI E PRESTITI S.P.A.; ;QUOTA INTERESSI MUTUI IN AMMORTAMENTO I SEM. 2018;03-07-2018;1742;0;141;1;Spese correnti;7;Interessi passivi;5;Interessi su Mutui e altri finanziamenti a medio lungo termine;5;Interessi passivi su mutui e altri finanziamenti a medio lungo termine ad altri soggetti;999;Interessi passivi su mutui e altri finanziamenti a medio lungo termine ad altri soggetti;03-07-2018;
855;1;1197;"927,21";"927,21";CASSA DEPOSITI E PRESTITI S.P.A.; ;QUOTA INTERESSI MUTUI IN AMMORTAMENTO I SEM. 2018;03-07-2018;1491;0;142;1;Spese correnti;7;Interessi passivi;5;Interessi su Mutui e altri finanziamenti a medio lungo termine;5;Interessi passivi su mutui e altri finanziamenti a medio lungo termine ad altri soggetti;999;Interessi passivi su mutui e altri finanziamenti a medio lungo termine ad altri soggetti;03-07-2018;
856;1;1197;"171,20";"171,20";CASSA DEPOSITI E PRESTITI S.P.A.; ;QUOTA INTERESSI MUTUI IN AMMORTAMENTO I SEM. 2018;03-07-2018;1745;0;144;1;Spese correnti;7;Interessi passivi;5;Interessi su Mutui e altri finanziamenti a medio lungo termine;5;Interessi passivi su mutui e altri finanziamenti a medio lungo termine ad altri soggetti;999;Interessi passivi su mutui e altri finanziamenti a medio lungo termine ad altri soggetti;03-07-2018;
857;1;1197;"98,75";"98,75";CASSA DEPOSITI E PRESTITI S.P.A.; ;QUOTA INTERESSI MUTUI IN AMMORTAMENTO I SEM. 2018;03-07-2018;1746;0;145;1;Spese correnti;7;Interessi passivi;5;Interessi su Mutui e altri finanziamenti a medio lungo termine;5;Interessi passivi su mutui e altri finanziamenti a medio lungo termine ad altri soggetti;999;Interessi passivi su mutui e altri finanziamenti a medio lungo termine ad altri soggetti;03-07-2018;
858;1;1197;"1.940,70";"1.940,70";CASSA DEPOSITI E PRESTITI S.P.A.; ;QUOTA INTERESSI MUTUI IN AMMORTAMENTO I SEM. 2018;03-07-2018;1943;0;146;1;Spese correnti;7;Interessi passivi;5;Interessi su Mutui e altri finanziamenti a medio lungo termine;5;Interessi passivi su mutui e altri finanziamenti a medio lungo termine ad altri soggetti;999;Interessi passivi su mutui e altri finanziamenti a medio lungo termine ad altri soggetti;03-07-2018;
861;1;1198;"2.077,30";"2.077,30";CASSA DEPOSITI E PRESTITI S.P.A.; ;QUOTA INTERESSI MUTUI IN AMMORTAMENTO I SEM. 2018;03-07-2018;2240;0;133;1;Spese correnti;7;Interessi passivi;5;Interessi su Mutui e altri finanziamenti a medio lungo termine;5;Interessi passivi su mutui e altri finanziamenti a medio lungo termine ad altri soggetti;999;Interessi passivi su mutui e altri finanziamenti a medio lungo termine ad altri soggetti;03-07-2018;
862;1;1198;"314,69";"314,69";CASSA DEPOSITI E PRESTITI S.P.A.; ;QUOTA INTERESSI MUTUI IN AMMORTAMENTO I SEM. 2018;03-07-2018;1574;0;143;1;Spese correnti;7;Interessi passivi;5;Interessi su Mutui e altri finanziamenti a medio lungo termine;5;Interessi passivi su mutui e altri finanziamenti a medio lungo termine ad altri soggetti;999;Interessi passivi su mutui e altri finanziamenti a medio lungo termine ad altri soggetti;03-07-2018;
863;1;1237;"600,00";"600,00";ANUTEL; ;quota associatica ANUTEL anno 2018;03-07-2018;1060;4;171;1;Spese correnti;4;Trasferimenti correnti;3;Trasferimenti correnti a Imprese;99;Trasferimenti correnti a altre imprese;999;Trasferimenti correnti a altre imprese;03-07-2018;
865;1;1239;"344,74";"344,74";ORIFICI CARMELO-MARTINO CARMELA; ;CANONE LOCAZIONE IMMOBILE P.M. LUGLIO 2018;05-07-2018;2230;0;154;1;Spese correnti;3;Acquisto di beni e servizi;2;Acquisto di servizi;7;Utilizzo di beni di terzi;1;Locazione di beni immobili;05-07-2018;
866;1;1240;"3.562,40";"3.562,40";ALAK s.r.l.;ZC62179DFF;SALDO Fatt.n. 26/PA  del 08/06/2018 SERVIZIO DI MANUTENZIONE E GESTIONE IMPIANTO DEPURAZIONE ARABITE 1 QUADRIMESTRE 2018;05-07-2018;1577;1;585;1;Spese correnti;3;Acquisto di beni e servizi;2;Acquisto di servizi;9;Manutenzione ordinaria e riparazioni;11;Manutenzione ordinaria e riparazioni di altri beni materiali;05-07-2018;
867;1;1241;"2.172,46";"2.172,46";S.R.R. MESSINA PROVINCIA SOC. CONSOR. SPA; ;SALDO Fatt.n. 212  del 01/06/2018 QUOTA STRUTTURA AZIENDALE SRR MESSINA PROVINCIA GIU./LUG.2018;06-07-2018;1752;2;170;1;Spese correnti;4;Trasferimenti correnti;3;Trasferimenti correnti a Imprese;99;Trasferimenti correnti a altre imprese;999;Trasferimenti correnti a altre imprese;06-07-2018;
868;1;1242;"125,37";"557,20";AQUILIA ADELINA; ;CONTRIBUTO STUDENTI RESIDENTI NELLE FRAZIONI A.S.2017/2018;10-07-2018;2000;9;283;1;Spese correnti;3;Acquisto di beni e servizi;2;Acquisto di servizi;15;Contratti di servizio pubblico;2;Contratti di servizio di trasporto scolastico;10-07-2018;
868;2;1243;"222,88";"557,20";CAFFARELLI ANTONINA; ;CONTRIBUTO STUDENTI RESIDENTI NELLE FRAZIONI A.S.2017/2018;10-07-2018;2000;9;283;1;Spese correnti;3;Acquisto di beni e servizi;2;Acquisto di servizi;15;Contratti di servizio pubblico;2;Contratti di servizio di trasporto scolastico;10-07-2018;
868;3;1244;"139,30";"557,20";DI DIO SILVANA CARMELA; ;CONTRIBUTO STUDENTI RESIDENTI NELLE FRAZIONI A.S.2017/2018;10-07-2018;2000;9;283;1;Spese correnti;3;Acquisto di beni e servizi;2;Acquisto di servizi;15;Contratti di servizio pubblico;2;Contratti di servizio di trasporto scolastico;10-07-2018;
868;4;1245;"69,65";"557,20";GRANATA MARIA SANTA; ;CONTRIBUTO STUDENTI RESIDENTI NELLE FRAZIONI A.S.2017/2018;10-07-2018;2000;9;283;1;Spese correnti;3;Acquisto di beni e servizi;2;Acquisto di servizi;15;Contratti di servizio pubblico;2;Contratti di servizio di trasporto scolastico;10-07-2018;
869;1;1246;"226,91";"226,91";AL CENTESIMO SOC. COOP. S.R.L.;ZC12122971;SALDO Fatt.n. 10/E  del 11/06/2018 carne per asilo nido maggio 2018;10-07-2018;1776;1;454;1;Spese correnti;3;Acquisto di beni e servizi;1;Acquisto di beni;2;Altri beni di consumo;999;Altri beni e materiali di consumo n.a.c.;10-07-2018;
870;1;1247;"319,57";"319,57";SCAFIDI GIUSEPPE;Z1D2165AF9;SALDO Fatt.n. 000017-2018-FE  del 14/06/2018 RIFERIMENTO PREVENTIVO 66/2018 DEL 04/06/2018 SU FIAT PUNTO TG CN874MB;12-07-2018;6070;2;542;1;Spese correnti;3;Acquisto di beni e servizi;2;Acquisto di servizi;9;Manutenzione ordinaria e riparazioni;1;"Manutenzione ordinaria e riparazioni di mezzi di trasporto ad uso civile, di sicurezza e ordine pubblico";12-07-2018;
871;1;1248;"1.691,70";"1.691,70";SCAFIDI GIUSEPPE;Z1D2165AF9;SALDO Fatt.n. 000018-2018-FE  del 27/06/2018 RIFERIMENTO PREVENTIVO 70/2018 EL 14/06/2018 SU AUTOBOTTE TG ME394965;12-07-2018;6070;5;544;1;Spese correnti;3;Acquisto di beni e servizi;2;Acquisto di servizi;9;Manutenzione ordinaria e riparazioni;1;"Manutenzione ordinaria e riparazioni di mezzi di trasporto ad uso civile, di sicurezza e ordine pubblico";12-07-2018;
872;1;1249;"240,00";"240,00";SCAFIDI GIUSEPPE;Z832393C55;SALDO Fatt.n. 000016-2018-FE  del 14/06/2018 RIFERIMENTO PREVENTIVO 58/B 2018 DEL 07/05/2018;12-07-2018;6070;1;160;1;Spese correnti;3;Acquisto di beni e servizi;2;Acquisto di servizi;9;Manutenzione ordinaria e riparazioni;1;"Manutenzione ordinaria e riparazioni di mezzi di trasporto ad uso civile, di sicurezza e ordine pubblico";12-07-2018;
873;1;1250;"6.600,00";"6.600,00";PIZZO PIPPO;Z87238E3FF;"SALDO Fatt.n. 38|2018  del 31/05/2018 PULITURA,CARICO E TRASPORTO E CONFER. RIFIUTI ISOLA ECOLOGICA";12-07-2018;1744;0;159;1;Spese correnti;3;Acquisto di beni e servizi;2;Acquisto di servizi;15;Contratti di servizio pubblico;5;Contratti di servizio per il conferimento in discarica dei rifiuti;12-07-2018;
874;1;1251;"14,01";"127,00";KUWAIT PETROLEUM ITALIA S.P.A.;6516542493;Fatt.n. PJ00142122 del 31/05/2018 carburante per automezzi comunali giu.2018;12-07-2018;6080;2;23;1;Spese correnti;3;Acquisto di beni e servizi;1;Acquisto di beni;2;Altri beni di consumo;2;"Carburanti, combustibili e lubrificanti";12-07-2018;
874;2;1251;"112,99";"127,00";KUWAIT PETROLEUM ITALIA S.P.A.; ;Fatt.n. PJ00142122 del 31/05/2018 carburante per automezzi comunali giu.2018;12-07-2018;6080;2;23;1;Spese correnti;3;Acquisto di beni e servizi;1;Acquisto di beni;2;Altri beni di consumo;2;"Carburanti, combustibili e lubrificanti";12-07-2018;
875;1;1252;"1.066,00";"1.066,00";KUWAIT PETROLEUM ITALIA S.P.A.; ;Fatt.n. PJ00142122 del 31/05/2018 carburante per automezzi comunali giu.2018;12-07-2018;6080;3;24;1;Spese correnti;3;Acquisto di beni e servizi;1;Acquisto di beni;2;Altri beni di consumo;2;"Carburanti, combustibili e lubrificanti";12-07-2018;
876;1;1253;"129,00";"129,00";KUWAIT PETROLEUM ITALIA S.P.A.; ;Fatt.n. PJ00142122 del 31/05/2018 carburante per automezzi comunali giu.2018;12-07-2018;6080;4;25;1;Spese correnti;3;Acquisto di beni e servizi;1;Acquisto di beni;2;Altri beni di consumo;2;"Carburanti, combustibili e lubrificanti";12-07-2018;
877;1;1254;"321,00";"321,00";KUWAIT PETROLEUM ITALIA S.P.A.; ;Fatt.n. PJ00142122 del 31/05/2018 carburante per automezzi comunali giu.2018;12-07-2018;6080;5;26;1;Spese correnti;3;Acquisto di beni e servizi;1;Acquisto di beni;2;Altri beni di consumo;2;"Carburanti, combustibili e lubrificanti";12-07-2018;
878;1;1255;"123,00";"123,00";KUWAIT PETROLEUM ITALIA S.P.A.; ;Fatt.n. PJ00142122 del 31/05/2018 carburante per automezzi comunali giu.2018;12-07-2018;6080;7;27;1;Spese correnti;3;Acquisto di beni e servizi;1;Acquisto di beni;2;Altri beni di consumo;2;"Carburanti, combustibili e lubrificanti";12-07-2018;
879;1;1259;"4,94";"3.094,32";TELECOM ITALIA S.P.A.-TIM SPA; ;Fatt.n. 8A00392090 del 06/06/2018 4BIM 2018;12-07-2018;6040;5;390;1;Spese correnti;3;Acquisto di beni e servizi;2;Acquisto di servizi;5;Utenze e canoni;1;Telefonia fissa;13-07-2018;
879;2;1259;"74,49";"3.094,32";TELECOM ITALIA S.P.A.-TIM SPA; ;Fatt.n. 8V00253512 del 06/06/2018 4BIM 2018;12-07-2018;6040;5;390;1;Spese correnti;3;Acquisto di beni e servizi;2;Acquisto di servizi;5;Utenze e canoni;1;Telefonia fissa;13-07-2018;
879;3;1259;"388,92";"3.094,32";TELECOM ITALIA S.P.A.-TIM SPA; ;Fatt.n. 8V00253812 del 06/06/2018 4BIM 2018;12-07-2018;6040;5;390;1;Spese correnti;3;Acquisto di beni e servizi;2;Acquisto di servizi;5;Utenze e canoni;1;Telefonia fissa;13-07-2018;
879;4;1259;"801,56";"3.094,32";TELECOM ITALIA S.P.A.-TIM SPA; ;Fatt.n. 8V00255194 del 06/06/2018 4BIM 2018;12-07-2018;6040;5;390;1;Spese correnti;3;Acquisto di beni e servizi;2;Acquisto di servizi;5;Utenze e canoni;1;Telefonia fissa;13-07-2018;
879;5;1259;"833,35";"3.094,32";TELECOM ITALIA S.P.A.-TIM SPA; ;Fatt.n. 8V00253845 del 06/06/2018 4BIM 2018;12-07-2018;6040;5;390;1;Spese correnti;3;Acquisto di beni e servizi;2;Acquisto di servizi;5;Utenze e canoni;1;Telefonia fissa;13-07-2018;
879;6;1259;"991,06";"3.094,32";TELECOM ITALIA S.P.A.-TIM SPA; ;Fatt.n. 4220918800005191 del 06/06/2018 4BIM 2018;12-07-2018;6040;5;390;1;Spese correnti;3;Acquisto di beni e servizi;2;Acquisto di servizi;5;Utenze e canoni;1;Telefonia fissa;13-07-2018;
880;1;1260;"76,30";"211,77";TELECOM ITALIA S.P.A.-TIM SPA; ;Fatt.n. 8V00253204 del 06/06/2018 4BIM 2018;12-07-2018;6040;6;391;1;Spese correnti;3;Acquisto di beni e servizi;2;Acquisto di servizi;5;Utenze e canoni;1;Telefonia fissa;13-07-2018;
880;2;1260;"135,47";"211,77";TELECOM ITALIA S.P.A.-TIM SPA; ;Fatt.n. 4220918800005231 del 06/06/2018 4BIM 2018;12-07-2018;6040;6;391;1;Spese correnti;3;Acquisto di beni e servizi;2;Acquisto di servizi;5;Utenze e canoni;1;Telefonia fissa;13-07-2018;
881;1;1261;"76,30";"168,08";TELECOM ITALIA S.P.A.-TIM SPA; ;Fatt.n. 8V00255880 del 06/06/2018 4BIM 2018;12-07-2018;6040;10;393;1;Spese correnti;3;Acquisto di beni e servizi;2;Acquisto di servizi;5;Utenze e canoni;1;Telefonia fissa;13-07-2018;
881;2;1261;"91,78";"168,08";TELECOM ITALIA S.P.A.-TIM SPA; ;Fatt.n. 4220918800005191 del 06/06/2018 4BIM 2018;12-07-2018;6040;10;393;1;Spese correnti;3;Acquisto di beni e servizi;2;Acquisto di servizi;5;Utenze e canoni;1;Telefonia fissa;13-07-2018;
882;1;1256;"2.045,65";"2.045,65";CARTAREGIA COSIMO;Z032181600;SALDO Fatt.n. 15/PA  del 15/06/2018 lRif. Determina prot. 04  dell'11/01/2018-MANUTENZ. IMP. PUBBL. ILL.NE MAGGIO 2018;12-07-2018;3930;1;586;1;Spese correnti;3;Acquisto di beni e servizi;2;Acquisto di servizi;15;Contratti di servizio pubblico;999;Altre spese per contratti di servizio pubblico;12-07-2018;
883;1;1257;"6.340,48";"6.340,48";IALITE ONLUS;ZA020E82FC;"SALDO Fatt.n. 99  del 15/06/2018 SERVIZIO DI ASSISTENZA DOMICILIARE IN FAVORE DI         ANZIANI,MINORI, DIVERSAMENTE ABILI E NUCLEI FAMILIARI IN CONDIZIONI DI         DISAGIO - DAL 01.05.2018 AL 31.05.2018 - CIG: ZA020E82FC";12-07-2018;1878;2;35;1;Spese correnti;3;Acquisto di beni e servizi;2;Acquisto di servizi;15;Contratti di servizio pubblico;9;Contratti di servizio di assistenza sociale domiciliare;12-07-2018;
884;1;1258;"99,90";"99,90";AUTOLINEE MAGISTRO SRL;Z9DIFE4BDA;SALDO Fatt.n. FATTPA 119_18  del 20/06/2018 trasporto studenti mag.2018;12-07-2018;2000;9;282;1;Spese correnti;3;Acquisto di beni e servizi;2;Acquisto di servizi;15;Contratti di servizio pubblico;2;Contratti di servizio di trasporto scolastico;12-07-2018;
885;1;1324;"369,87";"369,87";T.A.I. SRL;Z441FE4B65;Fatt.n. FATTPA 9_18 del 13/06/2018 TRASPORTO STUDENTI MAG.2018;17-07-2018;2000;9;281;1;Spese correnti;3;Acquisto di beni e servizi;2;Acquisto di servizi;15;Contratti di servizio pubblico;2;Contratti di servizio di trasporto scolastico;17-07-2018;
886;1;1325;"544,23";"544,23";T.A.I. SRL;Z441FE4B65;Fatt.n. FATTPA 9_18 del 13/06/2018 TRASPORTO STUDENTI MAG.2018;17-07-2018;2000;9;207;1;Spese correnti;3;Acquisto di beni e servizi;2;Acquisto di servizi;15;Contratti di servizio pubblico;2;Contratti di servizio di trasporto scolastico;17-07-2018;
887;1;1326;"4,20";"4,20";T.A.I. SRL;Z441FE4B65;Fatt.n. FATTPA 9_18 del 13/06/2018 TRASPORTO STUDENTI MAG.2018;17-07-2018;2000;9;218;1;Spese correnti;3;Acquisto di beni e servizi;2;Acquisto di servizi;15;Contratti di servizio pubblico;2;Contratti di servizio di trasporto scolastico;17-07-2018;
888;1;1327;"0,48";"0,48";T.A.I. SRL;Z441FE4B65;Fatt.n. FATTPA 9_18 del 13/06/2018 TRASPORTO STUDENTI MAG.2018;17-07-2018;2000;9;219;1;Spese correnti;3;Acquisto di beni e servizi;2;Acquisto di servizi;15;Contratti di servizio pubblico;2;Contratti di servizio di trasporto scolastico;17-07-2018;
889;1;1328;"0,02";"228,60";AZIENDA SICILIANA TRASPORTI;ZA81FE51C2;Fatt.n. 98/S4 del 18/06/2018 trasporto studenti giu.2018;17-07-2018;2000;9;279;1;Spese correnti;3;Acquisto di beni e servizi;2;Acquisto di servizi;15;Contratti di servizio pubblico;2;Contratti di servizio di trasporto scolastico;17-07-2018;
889;2;1328;"228,58";"228,60";AZIENDA SICILIANA TRASPORTI;ZA81FE51C2;Fatt.n. 98/S4 del 18/06/2018 trasporto studenti giu.2018;17-07-2018;2000;9;279;1;Spese correnti;3;Acquisto di beni e servizi;2;Acquisto di servizi;15;Contratti di servizio pubblico;2;Contratti di servizio di trasporto scolastico;17-07-2018;
890;1;1329;"442,80";"442,80";AZIENDA SICILIANA TRASPORTI;ZA81FE51C2;Fatt.n. 98/S4 del 18/06/2018 trasporto studenti giu.2018;17-07-2018;2000;9;205;1;Spese correnti;3;Acquisto di beni e servizi;2;Acquisto di servizi;15;Contratti di servizio pubblico;2;Contratti di servizio di trasporto scolastico;17-07-2018;
891;1;1330;"184,20";"184,20";AZIENDA SICILIANA TRASPORTI;ZA81FE51C2;Fatt.n. 98/S4 del 18/06/2018 trasporto studenti giu.2018;17-07-2018;2000;9;208;1;Spese correnti;3;Acquisto di beni e servizi;2;Acquisto di servizi;15;Contratti di servizio pubblico;2;Contratti di servizio di trasporto scolastico;17-07-2018;
892;1;1331;"2.165,13";"4.437,18";Pi.Eco S.r.l.;Z1D1B9D2D9;SALDO Fatt.n. 117  del 22/06/2018 CONFERIMENTO UMIDO ALIMENTARE MAG.2018;19-07-2018;1743;0;195;1;Spese correnti;3;Acquisto di beni e servizi;2;Acquisto di servizi;15;Contratti di servizio pubblico;5;Contratti di servizio per il conferimento in discarica dei rifiuti;19-07-2018;
892;2;1331;"2.272,05";"4.437,18";Pi.Eco S.r.l.;Z1D1B9D2D9;SALDO Fatt.n. 116  del 22/06/2018 CONFERIMENTO UMIDO ALIMENTARE APR..2018;19-07-2018;1743;0;195;1;Spese correnti;3;Acquisto di beni e servizi;2;Acquisto di servizi;15;Contratti di servizio pubblico;5;Contratti di servizio per il conferimento in discarica dei rifiuti;19-07-2018;
893;1;1332;"73,31";"73,31";ENEL ENERGIA SPA;0000000000;SALDO Fatt.n. 004811174420  del 09/07/2018 FATT. MAG./GIU. 2018;19-07-2018;6030;12;466;1;Spese correnti;3;Acquisto di beni e servizi;2;Acquisto di servizi;5;Utenze e canoni;4;Energia elettrica;19-07-2018;
894;1;1351;"296,20";"296,20";EDISON ENERGIE S.P.A.; ;Fatt.n. FI18366000005733 del 22/06/2018 FATT. 06/02-22/06/2018;23-07-2018;6160;0;394;1;Spese correnti;3;Acquisto di beni e servizi;2;Acquisto di servizi;5;Utenze e canoni;6;Gas;24-07-2018;
895;1;1352;"31,18";"31,18";EDISON ENERGIE S.P.A.; ;Fatt.n. FI18366000006163 del 22/06/2018 FATT. 25/04-22/06/2018;23-07-2018;6160;2;396;1;Spese correnti;3;Acquisto di beni e servizi;2;Acquisto di servizi;5;Utenze e canoni;999;Utenze e canoni per altri servizi n.a.c.;24-07-2018;
896;1;1353;"51,59";"51,59";EDISON ENERGIE S.P.A.; ;Fatt.n. FI18366000006435 del 22/06/2018 FATT. 01/05-22/06/2018;23-07-2018;6160;3;397;1;Spese correnti;3;Acquisto di beni e servizi;2;Acquisto di servizi;5;Utenze e canoni;6;Gas;24-07-2018;
897;1;1333;"1.268,80";"1.268,80";VERBARO PASQUALE; ;SALDO Fatt.n. 04/2018 F.E.  del 24/04/2018 COMUNE DI SAN PIERO PATTI  _ INPDAP (PASCALE GRAZIELLA);23-07-2018;1058;0;1356;1;Spese correnti;3;Acquisto di beni e servizi;2;Acquisto di servizi;99;Altri servizi;2;Altre spese legali;23-07-2018;
898;1;1334;"601,92";"601,92";PATAVIUM ENERGIA SRL; ;"Fatt.n. EE900000365 del 28/03/2018 ENERGIA ELETTRICA MARZO 2017, APRILE 2017, MAGGIO 2017, GIUGNO 2017, LUGLIO 2017, AGOSTO 2017, SETTEMBRE 2017, OTTOBRE 2017, NOVEMBRE 2017";23-07-2018;6030;6;413;1;Spese correnti;3;Acquisto di beni e servizi;2;Acquisto di servizi;5;Utenze e canoni;4;Energia elettrica;23-07-2018;
899;1;1335;"650,25";"650,25";PATAVIUM ENERGIA SRL; ;"Fatt.n. EE900000365 del 28/03/2018 ENERGIA ELETTRICA MARZO 2017, APRILE 2017, MAGGIO 2017, GIUGNO 2017, LUGLIO 2017, AGOSTO 2017, SETTEMBRE 2017, OTTOBRE 2017, NOVEMBRE 2017";23-07-2018;6030;7;414;1;Spese correnti;3;Acquisto di beni e servizi;2;Acquisto di servizi;5;Utenze e canoni;4;Energia elettrica;23-07-2018;
900;1;1336;"950,76";"950,76";PATAVIUM ENERGIA SRL; ;"Fatt.n. EE900000365 del 28/03/2018 ENERGIA ELETTRICA MARZO 2017, APRILE 2017, MAGGIO 2017, GIUGNO 2017, LUGLIO 2017, AGOSTO 2017, SETTEMBRE 2017, OTTOBRE 2017, NOVEMBRE 2017";23-07-2018;6030;8;415;1;Spese correnti;3;Acquisto di beni e servizi;2;Acquisto di servizi;5;Utenze e canoni;4;Energia elettrica;23-07-2018;
901;1;1337;"3.570,95";"3.570,95";PATAVIUM ENERGIA SRL; ;"Fatt.n. EE900000365 del 28/03/2018 ENERGIA ELETTRICA MARZO 2017, APRILE 2017, MAGGIO 2017, GIUGNO 2017, LUGLIO 2017, AGOSTO 2017, SETTEMBRE 2017, OTTOBRE 2017, NOVEMBRE 2017";23-07-2018;6030;9;416;1;Spese correnti;3;Acquisto di beni e servizi;2;Acquisto di servizi;5;Utenze e canoni;4;Energia elettrica;23-07-2018;
902;1;1354;"4.122,72";"4.122,72";PATAVIUM ENERGIA SRL; ;"Fatt.n. EE900000365 del 28/03/2018 ENERGIA ELETTRICA MARZO 2017, APRILE 2017, MAGGIO 2017, GIUGNO 2017, LUGLIO 2017, AGOSTO 2017, SETTEMBRE 2017, OTTOBRE 2017, NOVEMBRE 2017";23-07-2018;6030;10;417;1;Spese correnti;3;Acquisto di beni e servizi;2;Acquisto di servizi;5;Utenze e canoni;4;Energia elettrica;24-07-2018;
903;1;1338;"4.572,90";"4.572,90";PATAVIUM ENERGIA SRL; ;"Fatt.n. EE900000365 del 28/03/2018 ENERGIA ELETTRICA MARZO 2017, APRILE 2017, MAGGIO 2017, GIUGNO 2017, LUGLIO 2017, AGOSTO 2017, SETTEMBRE 2017, OTTOBRE 2017, NOVEMBRE 2017";23-07-2018;6030;11;418;1;Spese correnti;3;Acquisto di beni e servizi;2;Acquisto di servizi;5;Utenze e canoni;4;Energia elettrica;23-07-2018;
904;1;1339;"65.974,72";"65.974,72";PATAVIUM ENERGIA SRL; ;"Fatt.n. EE900000365 del 28/03/2018 ENERGIA ELETTRICA MARZO 2017, APRILE 2017, MAGGIO 2017, GIUGNO 2017, LUGLIO 2017, AGOSTO 2017, SETTEMBRE 2017, OTTOBRE 2017, NOVEMBRE 2017";23-07-2018;6030;12;419;1;Spese correnti;3;Acquisto di beni e servizi;2;Acquisto di servizi;5;Utenze e canoni;4;Energia elettrica;23-07-2018;
905;1;1340;"-18.700,00";"194,16";PATAVIUM ENERGIA SRL; ;Fatt.n. EE900000693 del 27/06/2018 CONGUAGLIO ENERGIA ELETTRICA NOVEMBRE 2017;23-07-2018;6030;13;420;1;Spese correnti;3;Acquisto di beni e servizi;2;Acquisto di servizi;5;Utenze e canoni;4;Energia elettrica;23-07-2018;
905;2;1340;"18.894,16";"194,16";PATAVIUM ENERGIA SRL; ;"Fatt.n. EE900000365 del 28/03/2018 ENERGIA ELETTRICA MARZO 2017, APRILE 2017, MAGGIO 2017, GIUGNO 2017, LUGLIO 2017, AGOSTO 2017, SETTEMBRE 2017, OTTOBRE 2017, NOVEMBRE 2017";23-07-2018;6030;13;420;1;Spese correnti;3;Acquisto di beni e servizi;2;Acquisto di servizi;5;Utenze e canoni;4;Energia elettrica;23-07-2018;
906;1;1341;"1.378,55";"1.378,55";PATAVIUM ENERGIA SRL; ;"Fatt.n. EE900000365 del 28/03/2018 ENERGIA ELETTRICA MARZO 2017, APRILE 2017, MAGGIO 2017, GIUGNO 2017, LUGLIO 2017, AGOSTO 2017, SETTEMBRE 2017, OTTOBRE 2017, NOVEMBRE 2017";23-07-2018;6030;14;421;1;Spese correnti;3;Acquisto di beni e servizi;2;Acquisto di servizi;5;Utenze e canoni;4;Energia elettrica;23-07-2018;
907;1;1342;"-3.000,00";"1.879,13";PATAVIUM ENERGIA SRL; ;Fatt.n. EE900000366 del 28/03/2018 CONGUAGLIO ENERGIA ELETTRICA NOVEMBRE 2017;23-07-2018;6030;16;422;1;Spese correnti;3;Acquisto di beni e servizi;2;Acquisto di servizi;5;Utenze e canoni;4;Energia elettrica;23-07-2018;
907;2;1342;"4.879,13";"1.879,13";PATAVIUM ENERGIA SRL; ;"Fatt.n. EE900000365 del 28/03/2018 ENERGIA ELETTRICA MARZO 2017, APRILE 2017, MAGGIO 2017, GIUGNO 2017, LUGLIO 2017, AGOSTO 2017, SETTEMBRE 2017, OTTOBRE 2017, NOVEMBRE 2017";23-07-2018;6030;16;422;1;Spese correnti;3;Acquisto di beni e servizi;2;Acquisto di servizi;5;Utenze e canoni;4;Energia elettrica;23-07-2018;
908;1;1343;"-2.086,51";"26,99";PATAVIUM ENERGIA SRL; ;Fatt.n. EE900000366 del 28/03/2018 CONGUAGLIO ENERGIA ELETTRICA NOVEMBRE 2017;23-07-2018;6030;17;423;1;Spese correnti;3;Acquisto di beni e servizi;2;Acquisto di servizi;5;Utenze e canoni;4;Energia elettrica;23-07-2018;
908;2;1343;"2.113,50";"26,99";PATAVIUM ENERGIA SRL; ;"Fatt.n. EE900000365 del 28/03/2018 ENERGIA ELETTRICA MARZO 2017, APRILE 2017, MAGGIO 2017, GIUGNO 2017, LUGLIO 2017, AGOSTO 2017, SETTEMBRE 2017, OTTOBRE 2017, NOVEMBRE 2017";23-07-2018;6030;17;423;1;Spese correnti;3;Acquisto di beni e servizi;2;Acquisto di servizi;5;Utenze e canoni;4;Energia elettrica;23-07-2018;
909;1;1344;"427,50";"427,50";PATAVIUM ENERGIA SRL; ;"Fatt.n. EE900000365 del 28/03/2018 ENERGIA ELETTRICA MARZO 2017, APRILE 2017, MAGGIO 2017, GIUGNO 2017, LUGLIO 2017, AGOSTO 2017, SETTEMBRE 2017, OTTOBRE 2017, NOVEMBRE 2017";23-07-2018;6030;18;424;1;Spese correnti;3;Acquisto di beni e servizi;2;Acquisto di servizi;5;Utenze e canoni;4;Energia elettrica;23-07-2018;
910;1;1355;"649,45";"649,45";PATAVIUM ENERGIA SRL; ;"Fatt.n. EE900000365 del 28/03/2018 ENERGIA ELETTRICA MARZO 2017, APRILE 2017, MAGGIO 2017, GIUGNO 2017, LUGLIO 2017, AGOSTO 2017, SETTEMBRE 2017, OTTOBRE 2017, NOVEMBRE 2017";23-07-2018;6030;19;425;1;Spese correnti;3;Acquisto di beni e servizi;2;Acquisto di servizi;5;Utenze e canoni;4;Energia elettrica;24-07-2018;
911;1;1345;"7.196,50";"7.196,50";SICULA TRASPORTI S.R.L.;6150991658;SALDO Fatt.n. 927/03  del 31/05/2018 CONFERIMENTO RIFIUTI IN DISCARICA MAG.2018;23-07-2018;1743;0;194;1;Spese correnti;3;Acquisto di beni e servizi;2;Acquisto di servizi;15;Contratti di servizio pubblico;5;Contratti di servizio per il conferimento in discarica dei rifiuti;23-07-2018;
912;1;1346;"432,56";"432,56";ENEL ENERGIA SPA; ;SALDO Fatt.n. 004811200823  del 12/07/2018 fatt. giu.2018;23-07-2018;6030;5;459;1;Spese correnti;3;Acquisto di beni e servizi;2;Acquisto di servizi;5;Utenze e canoni;4;Energia elettrica;23-07-2018;
913;1;1347;"169,30";"4.400,66";ENEL ENERGIA SPA; ;SALDO Fatt.n. 004811183039  del 11/07/2018 fatt. giu.2018;23-07-2018;6030;12;466;1;Spese correnti;3;Acquisto di beni e servizi;2;Acquisto di servizi;5;Utenze e canoni;4;Energia elettrica;23-07-2018;
913;2;1347;"4.231,36";"4.400,66";ENEL ENERGIA SPA; ;SALDO Fatt.n. 004811183040  del 11/07/2018 fatt. giu.2018;23-07-2018;6030;12;466;1;Spese correnti;3;Acquisto di beni e servizi;2;Acquisto di servizi;5;Utenze e canoni;4;Energia elettrica;23-07-2018;
914;1;1348;"3.100,00";"3.100,00";CASTELLINO GIUSEPPE; ;CONTRIBUTO ASSOCIAZIONE A.S.D. PETRA CARNEVALE 2018;23-07-2018;2000;7;184;1;Spese correnti;4;Trasferimenti correnti;4;Trasferimenti correnti a Istituzioni Sociali Private;1;Trasferimenti correnti a Istituzioni Sociali Private;1;Trasferimenti correnti a Istituzioni Sociali Private;23-07-2018;
915;1;1349;"922,26";"2.012,26";GIARDINA VIAGGI SRL;ZBA1FE4AD8;SALDO Fatt.n. 199E  del 26/06/2018 TRASPORTO STUDENTI APR.2018;23-07-2018;2000;9;280;1;Spese correnti;3;Acquisto di beni e servizi;2;Acquisto di servizi;15;Contratti di servizio pubblico;2;Contratti di servizio di trasporto scolastico;23-07-2018;
915;2;1349;"1.090,00";"2.012,26";GIARDINA VIAGGI SRL;ZBA1FE4AD8;SALDO Fatt.n. 200E  del 26/06/2018 TRASPORTO STUDENTI MAGGIO 2018;23-07-2018;2000;9;280;1;Spese correnti;3;Acquisto di beni e servizi;2;Acquisto di servizi;15;Contratti di servizio pubblico;2;Contratti di servizio di trasporto scolastico;23-07-2018;
916;1;1350;"343,17";"343,17";FOTI MARIO; ;SALDO Fatt.n. FatPAM 5/2018  del 25/06/2018 S/DO ONRARIO GIUDIZIO DUSTY;23-07-2018;1058;2;120;1;Spese correnti;3;Acquisto di beni e servizi;2;Acquisto di servizi;99;Altri servizi;2;Altre spese legali;23-07-2018;
917;1;1356;"8.142,72";"8.142,72";COOP. SOCIALE ORCHIDEA;Z432014AD5;ACCONTO Fatt.n. 83 E  del 06/06/2018 preparazione pasti mensa scolastica maggio 2018;24-07-2018;2000;8;122;1;Spese correnti;3;Acquisto di beni e servizi;2;Acquisto di servizi;15;Contratti di servizio pubblico;6;Contratti di servizio per le mense scolastiche;24-07-2018;
918;1;1357;"-104,00";"473,56";COOP. SOCIALE ORCHIDEA;Z432014AD5;SALDO Fatt.n. 99 E  del 14/07/2018 nota credito per impossibilita' tecnica predisposizione seminari;24-07-2018;2000;8;192;1;Spese correnti;3;Acquisto di beni e servizi;2;Acquisto di servizi;15;Contratti di servizio pubblico;6;Contratti di servizio per le mense scolastiche;24-07-2018;
918;2;1357;"577,56";"473,56";COOP. SOCIALE ORCHIDEA;Z432014AD5;SALDO Fatt.n. 83 E  del 06/06/2018 preparazione pasti mensa scolastica maggio 2018;24-07-2018;2000;8;192;1;Spese correnti;3;Acquisto di beni e servizi;2;Acquisto di servizi;15;Contratti di servizio pubblico;6;Contratti di servizio per le mense scolastiche;24-07-2018;
919;1;1358;"986,31";"986,31";edilsegnaletica;ZF4237F2C4;SALDO Fatt.n. FATTPA 3_18  del 15/06/2018 FORNITURA SEGNALETICA STRADALE;24-07-2018;1939;0;217;1;Spese correnti;3;Acquisto di beni e servizi;2;Acquisto di servizi;9;Manutenzione ordinaria e riparazioni;8;Manutenzione ordinaria e riparazioni di beni immobili;24-07-2018;
920;1;1359;"286,83";"286,83";EDISON ENERGIE S.P.A.; ;SALDO Fatt.n. FI18366000005732  del 22/06/2018 fatt.09/02-22/06/2018;24-07-2018;6160;1;395;1;Spese correnti;3;Acquisto di beni e servizi;2;Acquisto di servizi;5;Utenze e canoni;999;Utenze e canoni per altri servizi n.a.c.;25-07-2018;
965;1;1443;"30,00";"30,00";ANAC AUTORITA' NAZIONALE ANTICORRUZIONE;7376806CE0;"spazzamento,raccolta e trasporto allo smaltimento rr.ss.uu. 01/03-30/06/2018-CONTRIBUTO ANAC";27-07-2018;1744;0;120;1;Spese correnti;3;Acquisto di beni e servizi;2;Acquisto di servizi;15;Contratti di servizio pubblico;5;Contratti di servizio per il conferimento in discarica dei rifiuti;30-07-2018;
966;1;1432;"24,99";"94,48";HERA COMM S.r.l.; ;Fatt.n. 411800384433 del 11/01/2018 FORNITURA SERVIZIO ENERGIA ELETTRICA dic.2017;27-07-2018;6030;8;415;1;Spese correnti;3;Acquisto di beni e servizi;2;Acquisto di servizi;5;Utenze e canoni;4;Energia elettrica;27-07-2018;
966;2;1432;"69,49";"94,48";HERA COMM S.r.l.; ;Fatt.n. 411800384447 del 11/01/2018 FORNITURA SERVIZIO ENERGIA ELETTRICA dic.2017;27-07-2018;6030;8;415;1;Spese correnti;3;Acquisto di beni e servizi;2;Acquisto di servizi;5;Utenze e canoni;4;Energia elettrica;27-07-2018;
967;1;1433;"239,76";"1.125,85";HERA COMM S.r.l.; ;Fatt.n. 411800384416 del 11/01/2018 FORNITURA SERVIZIO ENERGIA ELETTRICA dic.2017;27-07-2018;6030;9;416;1;Spese correnti;3;Acquisto di beni e servizi;2;Acquisto di servizi;5;Utenze e canoni;4;Energia elettrica;27-07-2018;
967;2;1433;"886,09";"1.125,85";HERA COMM S.r.l.; ;Fatt.n. 411800384438 del 11/01/2018 FORNITURA SERVIZIO ENERGIA ELETTRICA DIC.2017;27-07-2018;6030;9;416;1;Spese correnti;3;Acquisto di beni e servizi;2;Acquisto di servizi;5;Utenze e canoni;4;Energia elettrica;27-07-2018;
968;1;1444;"348,67";"348,67";HERA COMM S.r.l.; ;Fatt.n. 411800384416 del 11/01/2018 FORNITURA SERVIZIO ENERGIA ELETTRICA dic.2017;27-07-2018;6030;11;418;1;Spese correnti;3;Acquisto di beni e servizi;2;Acquisto di servizi;5;Utenze e canoni;4;Energia elettrica;30-07-2018;
969;1;1434;"69,38";"8.634,38";HERA COMM S.r.l.; ;Fatt.n. 411800384445 del 11/01/2018 FORNITURA SERVIZIO ENERGIA ELETTRICA dic.2017;27-07-2018;6030;12;419;1;Spese correnti;3;Acquisto di beni e servizi;2;Acquisto di servizi;5;Utenze e canoni;4;Energia elettrica;27-07-2018;
969;2;1434;"129,60";"8.634,38";HERA COMM S.r.l.; ;Fatt.n. 411800384420 del 11/01/2018 FORNITURA SERVIZIO ENERGIA ELETTRICA dic.2017;27-07-2018;6030;12;419;1;Spese correnti;3;Acquisto di beni e servizi;2;Acquisto di servizi;5;Utenze e canoni;4;Energia elettrica;27-07-2018;
969;3;1434;"290,87";"8.634,38";HERA COMM S.r.l.; ;Fatt.n. 411800384443 del 11/01/2018 FORNITURA SERVIZIO ENERGIA ELETTRICA dic.2017;27-07-2018;6030;12;419;1;Spese correnti;3;Acquisto di beni e servizi;2;Acquisto di servizi;5;Utenze e canoni;4;Energia elettrica;27-07-2018;
969;4;1434;"372,82";"8.634,38";HERA COMM S.r.l.; ;Fatt.n. 411800842282 del 26/01/2018 FORNITURA SERVIZIO ENERGIA ELETTRICA DIC.2017;27-07-2018;6030;12;419;1;Spese correnti;3;Acquisto di beni e servizi;2;Acquisto di servizi;5;Utenze e canoni;4;Energia elettrica;27-07-2018;
969;5;1434;"525,43";"8.634,38";HERA COMM S.r.l.; ;Fatt.n. 411800384444 del 11/01/2018 FORNITURA SERVIZIO ENERGIA ELETTRICA DIC.2017;27-07-2018;6030;12;419;1;Spese correnti;3;Acquisto di beni e servizi;2;Acquisto di servizi;5;Utenze e canoni;4;Energia elettrica;27-07-2018;
969;6;1434;"540,24";"8.634,38";HERA COMM S.r.l.; ;Fatt.n. 411801727198 del 23/02/2018 FORNITURA SERVIZIO ENERGIA ELETTRICA dic.2017-GEN.2018;27-07-2018;6030;12;419;1;Spese correnti;3;Acquisto di beni e servizi;2;Acquisto di servizi;5;Utenze e canoni;4;Energia elettrica;27-07-2018;
969;7;1434;"674,46";"8.634,38";HERA COMM S.r.l.; ;Fatt.n. 411800384439 del 11/01/2018 FORNITURA SERVIZIO ENERGIA ELETTRICA dic.2017;27-07-2018;6030;12;419;1;Spese correnti;3;Acquisto di beni e servizi;2;Acquisto di servizi;5;Utenze e canoni;4;Energia elettrica;27-07-2018;
969;8;1434;"1.114,95";"8.634,38";HERA COMM S.r.l.; ;Fatt.n. 411800384441 del 11/01/2018 FORNITURA SERVIZIO ENERGIA ELETTRICA DIC.2017;27-07-2018;6030;12;419;1;Spese correnti;3;Acquisto di beni e servizi;2;Acquisto di servizi;5;Utenze e canoni;4;Energia elettrica;27-07-2018;
969;9;1434;"1.266,63";"8.634,38";HERA COMM S.r.l.; ;Fatt.n. 411800384425 del 11/01/2018 FORNITURA SERVIZIO ENERGIA ELETTRICA DIC.2017;27-07-2018;6030;12;419;1;Spese correnti;3;Acquisto di beni e servizi;2;Acquisto di servizi;5;Utenze e canoni;4;Energia elettrica;27-07-2018;
969;10;1434;"3.650,00";"8.634,38";HERA COMM S.r.l.; ;Fatt.n. 411800384442 del 11/01/2018 FORNITURA SERVIZIO ENERGIA ELETTRICA dic.2017;27-07-2018;6030;12;419;1;Spese correnti;3;Acquisto di beni e servizi;2;Acquisto di servizi;5;Utenze e canoni;4;Energia elettrica;27-07-2018;
970;1;1435;"24,99";"2.410,48";HERA COMM S.r.l.; ;Fatt.n. 411800384440 del 11/01/2018 FORNITURA SERVIZIO ENERGIA ELETTRICA dic.2017;27-07-2018;6030;13;420;1;Spese correnti;3;Acquisto di beni e servizi;2;Acquisto di servizi;5;Utenze e canoni;4;Energia elettrica;27-07-2018;
970;2;1435;"37,97";"2.410,48";HERA COMM S.r.l.; ;Fatt.n. 411800384426 del 11/01/2018 FORNITURA SERVIZIO ENERGIA ELETTRICA DIC.2017;27-07-2018;6030;13;420;1;Spese correnti;3;Acquisto di beni e servizi;2;Acquisto di servizi;5;Utenze e canoni;4;Energia elettrica;27-07-2018;
970;3;1435;"53,06";"2.410,48";HERA COMM S.r.l.; ;Fatt.n. 411800384429 del 11/01/2018 FORNITURA SERVIZIO ENERGIA ELETTRICA dic.2017;27-07-2018;6030;13;420;1;Spese correnti;3;Acquisto di beni e servizi;2;Acquisto di servizi;5;Utenze e canoni;4;Energia elettrica;27-07-2018;
970;4;1435;"297,41";"2.410,48";HERA COMM S.r.l.; ;Fatt.n. 411801727200 del 23/02/2018 FORNITURA SERVIZIO ENERGIA ELETTRICA dic.2017-GEN.2018;27-07-2018;6030;13;420;1;Spese correnti;3;Acquisto di beni e servizi;2;Acquisto di servizi;5;Utenze e canoni;4;Energia elettrica;27-07-2018;
970;5;1435;"565,40";"2.410,48";HERA COMM S.r.l.; ;Fatt.n. 411801727199 del 23/02/2018 FORNITURA SERVIZIO ENERGIA ELETTRICA dic.2017-GEN.2018;27-07-2018;6030;13;420;1;Spese correnti;3;Acquisto di beni e servizi;2;Acquisto di servizi;5;Utenze e canoni;4;Energia elettrica;27-07-2018;
970;6;1435;"1.431,65";"2.410,48";HERA COMM S.r.l.; ;Fatt.n. 411800384432 del 11/01/2018 FORNITURA SERVIZIO ENERGIA ELETTRICA dic.2017;27-07-2018;6030;13;420;1;Spese correnti;3;Acquisto di beni e servizi;2;Acquisto di servizi;5;Utenze e canoni;4;Energia elettrica;27-07-2018;
971;1;1436;"84,53";"84,53";HERA COMM S.r.l.; ;Fatt.n. 411800384417 del 11/01/2018 FORNITURA SERVIZIO ENERGIA ELETTRICA dic.2017;27-07-2018;6030;16;422;1;Spese correnti;3;Acquisto di beni e servizi;2;Acquisto di servizi;5;Utenze e canoni;4;Energia elettrica;27-07-2018;
972;1;1445;"309,87";"309,87";UNIPOL  ASSICURAZIONI;Z0E23E7943;POLIZZE ASSICURATIVE AUTOMEZZI COMUNALI 2018/2019-AAD147-CN409JZ;30-07-2018;6090;0;185;1;Spese correnti;10;Altre spese correnti;4;Premi di assicurazione;1;Premi di assicurazione contro i danni;3;Premi di assicurazione per responsabilità civile verso terzi;30-07-2018;
973;1;1446;"901,60";"901,60";UNIPOL  ASSICURAZIONI;Z0E23E7943;POLIZZE ASSICURATIVE AUTOMEZZI COMUNALI 2018/2019-BE180ZH-CS782CA;30-07-2018;6090;1;186;1;Spese correnti;10;Altre spese correnti;4;Premi di assicurazione;1;Premi di assicurazione contro i danni;3;Premi di assicurazione per responsabilità civile verso terzi;30-07-2018;
974;1;1447;"1.444,00";"1.444,00";UNIPOL  ASSICURAZIONI;Z0E23E7943;POLIZZE ASSICURATIVE AUTOMEZZI COMUNALI 2018/2019-CN874MB;30-07-2018;6090;2;187;1;Spese correnti;10;Altre spese correnti;4;Premi di assicurazione;1;Premi di assicurazione contro i danni;3;Premi di assicurazione per responsabilità civile verso terzi;30-07-2018;
975;1;1448;"1.927,02";"1.927,02";UNIPOL  ASSICURAZIONI;Z0E23E7943;POLIZZE ASSICURATIVE AUTOMEZZI COMUNALI 2018/2019-CT940ML-CT914ML-CW015TH;30-07-2018;6090;3;188;1;Spese correnti;10;Altre spese correnti;4;Premi di assicurazione;1;Premi di assicurazione contro i danni;3;Premi di assicurazione per responsabilità civile verso terzi;30-07-2018;
976;1;1449;"1.886,00";"1.886,00";UNIPOL  ASSICURAZIONI;Z0E23E7943;POLIZZE ASSICURATIVE AUTOMEZZI COMUNALI 2018/2019-AB12766-DD917SG;30-07-2018;6090;4;189;1;Spese correnti;10;Altre spese correnti;4;Premi di assicurazione;1;Premi di assicurazione contro i danni;3;Premi di assicurazione per responsabilità civile verso terzi;30-07-2018;
977;1;1450;"2.864,51";"2.864,51";UNIPOL  ASSICURAZIONI;Z0E23E7943;POLIZZE ASSICURATIVE AUTOMEZZI COMUNALI 2018/2019-CN190JJ-BE181ZH-ME394965;30-07-2018;6090;5;190;1;Spese correnti;10;Altre spese correnti;4;Premi di assicurazione;1;Premi di assicurazione contro i danni;3;Premi di assicurazione per responsabilità civile verso terzi;30-07-2018;
978;1;1451;"2.000,00";"2.000,00";UNIPOL  ASSICURAZIONI;Z0E23E7943;POLIZZE ASSICURATIVE AUTOMEZZI COMUNALI 2018/2019-CN142MB-CZ832XJ;30-07-2018;6090;7;191;1;Spese correnti;10;Altre spese correnti;4;Premi di assicurazione;1;Premi di assicurazione contro i danni;3;Premi di assicurazione per responsabilità civile verso terzi;30-07-2018;
979;1;1452;"604,55";"2.568,51";AL CENTESIMO SOC. COOP. S.R.L.;ZAF20DE63B;SALDO Fatt.n. 3/E  del 28/02/2018 GENERI ALIMENTARI PER ASILO NIDO FEB.2018;30-07-2018;1776;1;408;1;Spese correnti;3;Acquisto di beni e servizi;1;Acquisto di beni;2;Altri beni di consumo;999;Altri beni e materiali di consumo n.a.c.;30-07-2018;
979;2;1452;"886,64";"2.568,51";AL CENTESIMO SOC. COOP. S.R.L.;ZAF20DE63B;SALDO Fatt.n. 8/E  del 14/05/2018 GENERI ALIMENTARI PER ASILO NIDO APR.2018;30-07-2018;1776;1;408;1;Spese correnti;3;Acquisto di beni e servizi;1;Acquisto di beni;2;Altri beni di consumo;999;Altri beni e materiali di consumo n.a.c.;30-07-2018;
979;3;1452;"1.077,32";"2.568,51";AL CENTESIMO SOC. COOP. S.R.L.;ZAF20DE63B;SALDO Fatt.n. 9/E  del 11/06/2018 GENERI ALIMENTARI PER ASILO NIDO MAG.2018;30-07-2018;1776;1;408;1;Spese correnti;3;Acquisto di beni e servizi;1;Acquisto di beni;2;Altri beni di consumo;999;Altri beni e materiali di consumo n.a.c.;30-07-2018;
980;1;1453;"33,39";"278,36";HERA COMM S.r.l.; ;Fatt.n. 411805882663 del 11/07/2018 FORNITURA SERVIZIO ENERGIA ELETTRICA GIU.2018;30-07-2018;6030;6;460;1;Spese correnti;3;Acquisto di beni e servizi;2;Acquisto di servizi;5;Utenze e canoni;4;Energia elettrica;30-07-2018;
980;2;1453;"57,47";"278,36";HERA COMM S.r.l.; ;Fatt.n. 411803903837 del 11/05/2018 FORNITURA SERVIZIO ENERGIA ELETTRICA APR.2018;30-07-2018;6030;6;460;1;Spese correnti;3;Acquisto di beni e servizi;2;Acquisto di servizi;5;Utenze e canoni;4;Energia elettrica;30-07-2018;
980;3;1453;"63,63";"278,36";HERA COMM S.r.l.; ;Fatt.n. 411804920482 del 09/06/2018 FORNITURA SERVIZIO ENERGIA ELETTRICA mag.18;30-07-2018;6030;6;460;1;Spese correnti;3;Acquisto di beni e servizi;2;Acquisto di servizi;5;Utenze e canoni;4;Energia elettrica;30-07-2018;
980;4;1453;"123,87";"278,36";HERA COMM S.r.l.; ;Fatt.n. 411803619393 del 30/04/2018 FORNITURA SERVIZIO ENERGIA ELETTRICA feb./mar.2018;30-07-2018;6030;6;460;1;Spese correnti;3;Acquisto di beni e servizi;2;Acquisto di servizi;5;Utenze e canoni;4;Energia elettrica;30-07-2018;
981;1;1454;"37,41";"287,67";HERA COMM S.r.l.; ;Fatt.n. 411803903845 del 11/05/2018 FORNITURA SERVIZIO ENERGIA ELETTRICA APR.2018;30-07-2018;6030;7;461;1;Spese correnti;3;Acquisto di beni e servizi;2;Acquisto di servizi;5;Utenze e canoni;4;Energia elettrica;30-07-2018;
981;2;1454;"38,97";"287,67";HERA COMM S.r.l.; ;Fatt.n. 411804920490 del 09/06/2018 FORNITURA SERVIZIO ENERGIA ELETTRICA mag.18;30-07-2018;6030;7;461;1;Spese correnti;3;Acquisto di beni e servizi;2;Acquisto di servizi;5;Utenze e canoni;4;Energia elettrica;30-07-2018;
981;3;1454;"66,32";"287,67";HERA COMM S.r.l.; ;Fatt.n. 411805882670 del 11/07/2018 FORNITURA SERVIZIO ENERGIA ELETTRICA GIU.2018;30-07-2018;6030;7;461;1;Spese correnti;3;Acquisto di beni e servizi;2;Acquisto di servizi;5;Utenze e canoni;4;Energia elettrica;30-07-2018;
981;4;1454;"144,97";"287,67";HERA COMM S.r.l.; ;Fatt.n. 411803619401 del 30/04/2018 FORNITURA SERVIZIO ENERGIA ELETTRICA feb./mar.2018;30-07-2018;6030;7;461;1;Spese correnti;3;Acquisto di beni e servizi;2;Acquisto di servizi;5;Utenze e canoni;4;Energia elettrica;30-07-2018;
982;1;1455;"13,20";"613,55";HERA COMM S.r.l.; ;Fatt.n. 411805882666 del 11/07/2018 FORNITURA SERVIZIO ENERGIA ELETTRICA GIU.2018;30-07-2018;6030;8;462;1;Spese correnti;3;Acquisto di beni e servizi;2;Acquisto di servizi;5;Utenze e canoni;4;Energia elettrica;30-07-2018;
982;2;1455;"24,95";"613,55";HERA COMM S.r.l.; ;Fatt.n. 411803903840 del 11/05/2018 FORNITURA SERVIZIO ENERGIA ELETTRICA APR.2018;30-07-2018;6030;8;462;1;Spese correnti;3;Acquisto di beni e servizi;2;Acquisto di servizi;5;Utenze e canoni;4;Energia elettrica;30-07-2018;
982;3;1455;"25,90";"613,55";HERA COMM S.r.l.; ;Fatt.n. 411804920485 del 09/06/2018 FORNITURA SERVIZIO ENERGIA ELETTRICA mag.18;30-07-2018;6030;8;462;1;Spese correnti;3;Acquisto di beni e servizi;2;Acquisto di servizi;5;Utenze e canoni;4;Energia elettrica;30-07-2018;
982;4;1455;"35,50";"613,55";HERA COMM S.r.l.; ;Fatt.n. 411803903821 del 11/05/2018 FORNITURA SERVIZIO ENERGIA ELETTRICA APR.2018;30-07-2018;6030;8;462;1;Spese correnti;3;Acquisto di beni e servizi;2;Acquisto di servizi;5;Utenze e canoni;4;Energia elettrica;30-07-2018;
982;5;1455;"36,45";"613,55";HERA COMM S.r.l.; ;Fatt.n. 411804920465 del 09/06/2018 FORNITURA SERVIZIO ENERGIA ELETTRICA mag.18;30-07-2018;6030;8;462;1;Spese correnti;3;Acquisto di beni e servizi;2;Acquisto di servizi;5;Utenze e canoni;4;Energia elettrica;30-07-2018;
982;6;1455;"41,82";"613,55";HERA COMM S.r.l.; ;Fatt.n. 411803903846 del 11/05/2018 FORNITURA SERVIZIO ENERGIA ELETTRICA APR.2018;30-07-2018;6030;8;462;1;Spese correnti;3;Acquisto di beni e servizi;2;Acquisto di servizi;5;Utenze e canoni;4;Energia elettrica;30-07-2018;
982;7;1455;"47,16";"613,55";HERA COMM S.r.l.; ;Fatt.n. 411804920491 del 09/06/2018 FORNITURA SERVIZIO ENERGIA ELETTRICA mag.18;30-07-2018;6030;8;462;1;Spese correnti;3;Acquisto di beni e servizi;2;Acquisto di servizi;5;Utenze e canoni;4;Energia elettrica;30-07-2018;
982;8;1455;"49,90";"613,55";HERA COMM S.r.l.; ;Fatt.n. 411803619396 del 30/04/2018 FORNITURA SERVIZIO ENERGIA ELETTRICA feb./mar.2018;30-07-2018;6030;8;462;1;Spese correnti;3;Acquisto di beni e servizi;2;Acquisto di servizi;5;Utenze e canoni;4;Energia elettrica;30-07-2018;
982;9;1455;"71,00";"613,55";HERA COMM S.r.l.; ;Fatt.n. 411803619376 del 30/04/2018 FORNITURA SERVIZIO ENERGIA ELETTRICA feb./mar.2018;30-07-2018;6030;8;462;1;Spese correnti;3;Acquisto di beni e servizi;2;Acquisto di servizi;5;Utenze e canoni;4;Energia elettrica;30-07-2018;
982;10;1455;"85,58";"613,55";HERA COMM S.r.l.; ;Fatt.n. 411803619402 del 30/04/2018 FORNITURA SERVIZIO ENERGIA ELETTRICA feb./mar.2018;30-07-2018;6030;8;462;1;Spese correnti;3;Acquisto di beni e servizi;2;Acquisto di servizi;5;Utenze e canoni;4;Energia elettrica;30-07-2018;
982;11;1455;"87,44";"613,55";HERA COMM S.r.l.; ;Fatt.n. 411805882646 del 11/07/2018 FORNITURA SERVIZIO ENERGIA ELETTRICA;30-07-2018;6030;8;462;1;Spese correnti;3;Acquisto di beni e servizi;2;Acquisto di servizi;5;Utenze e canoni;4;Energia elettrica;30-07-2018;
982;12;1455;"94,65";"613,55";HERA COMM S.r.l.; ;Fatt.n. 411805882671 del 11/07/2018 FORNITURA SERVIZIO ENERGIA ELETTRICA GIU.2018;30-07-2018;6030;8;462;1;Spese correnti;3;Acquisto di beni e servizi;2;Acquisto di servizi;5;Utenze e canoni;4;Energia elettrica;30-07-2018;
983;1;1456;"324,38";"1.665,67";HERA COMM S.r.l.; ;Fatt.n. 411804920463 del 09/06/2018 FORNITURA SERVIZIO ENERGIA ELETTRICA mag.18;30-07-2018;6030;9;463;1;Spese correnti;3;Acquisto di beni e servizi;2;Acquisto di servizi;5;Utenze e canoni;4;Energia elettrica;30-07-2018;
983;2;1456;"537,70";"1.665,67";HERA COMM S.r.l.; ;Fatt.n. 411805882644 del 11/07/2018 FORNITURA SERVIZIO ENERGIA ELETTRICA;30-07-2018;6030;9;463;1;Spese correnti;3;Acquisto di beni e servizi;2;Acquisto di servizi;5;Utenze e canoni;4;Energia elettrica;30-07-2018;
983;3;1456;"803,59";"1.665,67";HERA COMM S.r.l.; ;Fatt.n. 411801275641 del 08/02/2018 FORNITURA SERVIZIO ENERGIA ELETTRICA GEN.2018;30-07-2018;6030;9;463;1;Spese correnti;3;Acquisto di beni e servizi;2;Acquisto di servizi;5;Utenze e canoni;4;Energia elettrica;30-07-2018;
984;1;1457;"612,62";"3.761,63";HERA COMM S.r.l.; ;Fatt.n. 411804831917 del 09/06/2018 FORNITURA SERVIZIO ENERGIA ELETTRICA mag.18;30-07-2018;6030;10;464;1;Spese correnti;3;Acquisto di beni e servizi;2;Acquisto di servizi;5;Utenze e canoni;4;Energia elettrica;30-07-2018;
984;2;1457;"639,21";"3.761,63";HERA COMM S.r.l.; ;Fatt.n. 411805746294 del 11/07/2018 FORNITURA SERVIZIO ENERGIA ELETTRICA GIU.2018;30-07-2018;6030;10;464;1;Spese correnti;3;Acquisto di beni e servizi;2;Acquisto di servizi;5;Utenze e canoni;4;Energia elettrica;30-07-2018;
984;3;1457;"798,55";"3.761,63";HERA COMM S.r.l.; ;Fatt.n. 411804026527 del 11/05/2018 FORNITURA SERVIZIO ENERGIA ELETTRICA APR.2018;30-07-2018;6030;10;464;1;Spese correnti;3;Acquisto di beni e servizi;2;Acquisto di servizi;5;Utenze e canoni;4;Energia elettrica;30-07-2018;
984;4;1457;"1.711,25";"3.761,63";HERA COMM S.r.l.; ;Fatt.n. 411803619375 del 30/04/2018 FORNITURA SERVIZIO ENERGIA ELETTRICA feb./mar.2018;30-07-2018;6030;10;464;1;Spese correnti;3;Acquisto di beni e servizi;2;Acquisto di servizi;5;Utenze e canoni;4;Energia elettrica;30-07-2018;
985;1;1458;"66,05";"2.704,75";HERA COMM S.r.l.; ;Fatt.n. 411805882651 del 11/07/2018 FORNITURA SERVIZIO ENERGIA ELETTRICA GIU.2018;30-07-2018;6030;11;465;1;Spese correnti;3;Acquisto di beni e servizi;2;Acquisto di servizi;5;Utenze e canoni;4;Energia elettrica;30-07-2018;
985;2;1458;"170,63";"2.704,75";HERA COMM S.r.l.; ;Fatt.n. 411804920470 del 09/06/2018 FORNITURA SERVIZIO ENERGIA ELETTRICA mag.18;30-07-2018;6030;11;465;1;Spese correnti;3;Acquisto di beni e servizi;2;Acquisto di servizi;5;Utenze e canoni;4;Energia elettrica;30-07-2018;
985;3;1458;"256,25";"2.704,75";HERA COMM S.r.l.; ;Fatt.n. 411803903825 del 11/05/2018 FORNITURA SERVIZIO ENERGIA ELETTRICA APR.2018;30-07-2018;6030;11;465;1;Spese correnti;3;Acquisto di beni e servizi;2;Acquisto di servizi;5;Utenze e canoni;4;Energia elettrica;30-07-2018;
985;4;1458;"361,17";"2.704,75";HERA COMM S.r.l.; ;Fatt.n. 411803903819 del 11/05/2018 FORNITURA SERVIZIO ENERGIA ELETTRICA APR.2018;30-07-2018;6030;11;465;1;Spese correnti;3;Acquisto di beni e servizi;2;Acquisto di servizi;5;Utenze e canoni;4;Energia elettrica;30-07-2018;
985;5;1458;"788,84";"2.704,75";HERA COMM S.r.l.; ;Fatt.n. 411803619381 del 30/04/2018 FORNITURA SERVIZIO ENERGIA ELETTRICA feb./mar.2018;30-07-2018;6030;11;465;1;Spese correnti;3;Acquisto di beni e servizi;2;Acquisto di servizi;5;Utenze e canoni;4;Energia elettrica;30-07-2018;
985;6;1458;"1.061,81";"2.704,75";HERA COMM S.r.l.; ;Fatt.n. 411803619373 del 30/04/2018 FORNITURA SERVIZIO ENERGIA ELETTRICA feb./mar.2018;30-07-2018;6030;11;465;1;Spese correnti;3;Acquisto di beni e servizi;2;Acquisto di servizi;5;Utenze e canoni;4;Energia elettrica;30-07-2018;
986;1;1459;"7,15";"23.731,09";HERA COMM S.r.l.; ;Fatt.n. 411803903844 del 11/05/2018 FORNITURA SERVIZIO ENERGIA ELETTRICA APR.2018;30-07-2018;6030;12;466;1;Spese correnti;3;Acquisto di beni e servizi;2;Acquisto di servizi;5;Utenze e canoni;4;Energia elettrica;30-07-2018;
986;2;1459;"7,15";"23.731,09";HERA COMM S.r.l.; ;Fatt.n. 411804920489 del 09/06/2018 FORNITURA SERVIZIO ENERGIA ELETTRICA mag.18;30-07-2018;6030;12;466;1;Spese correnti;3;Acquisto di beni e servizi;2;Acquisto di servizi;5;Utenze e canoni;4;Energia elettrica;30-07-2018;
986;3;1459;"11,76";"23.731,09";HERA COMM S.r.l.; ;Fatt.n. 411804920472 del 09/06/2018 FORNITURA SERVIZIO ENERGIA ELETTRICA mag.18;30-07-2018;6030;12;466;1;Spese correnti;3;Acquisto di beni e servizi;2;Acquisto di servizi;5;Utenze e canoni;4;Energia elettrica;30-07-2018;
986;4;1459;"14,30";"23.731,09";HERA COMM S.r.l.; ;Fatt.n. 411803619400 del 30/04/2018 FORNITURA SERVIZIO ENERGIA ELETTRICA mar.18;30-07-2018;6030;12;466;1;Spese correnti;3;Acquisto di beni e servizi;2;Acquisto di servizi;5;Utenze e canoni;4;Energia elettrica;30-07-2018;
986;5;1459;"14,44";"23.731,09";HERA COMM S.r.l.; ;Fatt.n. 411803903827 del 11/05/2018 FORNITURA SERVIZIO ENERGIA ELETTRICA APR.2018;30-07-2018;6030;12;466;1;Spese correnti;3;Acquisto di beni e servizi;2;Acquisto di servizi;5;Utenze e canoni;4;Energia elettrica;30-07-2018;
986;6;1459;"24,63";"23.731,09";HERA COMM S.r.l.; ;Fatt.n. 411803619383 del 30/04/2018 FORNITURA SERVIZIO ENERGIA ELETTRICA feb./mar.2018;30-07-2018;6030;12;466;1;Spese correnti;3;Acquisto di beni e servizi;2;Acquisto di servizi;5;Utenze e canoni;4;Energia elettrica;30-07-2018;
986;7;1459;"32,04";"23.731,09";HERA COMM S.r.l.; ;Fatt.n. 411804920475 del 09/06/2018 FORNITURA SERVIZIO ENERGIA ELETTRICA mag.18;30-07-2018;6030;12;466;1;Spese correnti;3;Acquisto di beni e servizi;2;Acquisto di servizi;5;Utenze e canoni;4;Energia elettrica;30-07-2018;
986;8;1459;"32,87";"23.731,09";HERA COMM S.r.l.; ;Fatt.n. 411803903830 del 11/05/2018 FORNITURA SERVIZIO ENERGIA ELETTRICA APR.2018;30-07-2018;6030;12;466;1;Spese correnti;3;Acquisto di beni e servizi;2;Acquisto di servizi;5;Utenze e canoni;4;Energia elettrica;30-07-2018;
986;9;1459;"33,29";"23.731,09";HERA COMM S.r.l.; ;Fatt.n. 411805882656 del 11/07/2018 FORNITURA SERVIZIO ENERGIA ELETTRICA GIU.2018;30-07-2018;6030;12;466;1;Spese correnti;3;Acquisto di beni e servizi;2;Acquisto di servizi;5;Utenze e canoni;4;Energia elettrica;30-07-2018;
986;10;1459;"45,63";"23.731,09";HERA COMM S.r.l.; ;Fatt.n. 411805882653 del 11/07/2018 FORNITURA SERVIZIO ENERGIA ELETTRICA GIU.2018;30-07-2018;6030;12;466;1;Spese correnti;3;Acquisto di beni e servizi;2;Acquisto di servizi;5;Utenze e canoni;4;Energia elettrica;30-07-2018;
986;11;1459;"49,59";"23.731,09";HERA COMM S.r.l.; ;Fatt.n. 411804920487 del 09/06/2018 FORNITURA SERVIZIO ENERGIA ELETTRICA mag.18;30-07-2018;6030;12;466;1;Spese correnti;3;Acquisto di beni e servizi;2;Acquisto di servizi;5;Utenze e canoni;4;Energia elettrica;30-07-2018;
986;12;1459;"49,96";"23.731,09";HERA COMM S.r.l.; ;Fatt.n. 411805882668 del 11/07/2018 FORNITURA SERVIZIO ENERGIA ELETTRICA GIU.2018;30-07-2018;6030;12;466;1;Spese correnti;3;Acquisto di beni e servizi;2;Acquisto di servizi;5;Utenze e canoni;4;Energia elettrica;30-07-2018;
986;13;1459;"51,18";"23.731,09";HERA COMM S.r.l.; ;Fatt.n. 411803903842 del 11/05/2018 FORNITURA SERVIZIO ENERGIA ELETTRICA;30-07-2018;6030;12;466;1;Spese correnti;3;Acquisto di beni e servizi;2;Acquisto di servizi;5;Utenze e canoni;4;Energia elettrica;30-07-2018;
986;14;1459;"62,04";"23.731,09";HERA COMM S.r.l.; ;Fatt.n. 411803903824 del 11/05/2018 FORNITURA SERVIZIO ENERGIA ELETTRICA APR.2018;30-07-2018;6030;12;466;1;Spese correnti;3;Acquisto di beni e servizi;2;Acquisto di servizi;5;Utenze e canoni;4;Energia elettrica;30-07-2018;
986;15;1459;"64,55";"23.731,09";HERA COMM S.r.l.; ;Fatt.n. 411801275648 del 08/02/2018 FORNITURA SERVIZIO ENERGIA ELETTRICA GEN.2018;30-07-2018;6030;12;466;1;Spese correnti;3;Acquisto di beni e servizi;2;Acquisto di servizi;5;Utenze e canoni;4;Energia elettrica;30-07-2018;
986;16;1459;"67,15";"23.731,09";HERA COMM S.r.l.; ;Fatt.n. 411803903833 del 11/05/2018 FORNITURA SERVIZIO ENERGIA ELETTRICA APR.2018;30-07-2018;6030;12;466;1;Spese correnti;3;Acquisto di beni e servizi;2;Acquisto di servizi;5;Utenze e canoni;4;Energia elettrica;30-07-2018;
986;17;1459;"69,37";"23.731,09";HERA COMM S.r.l.; ;Fatt.n. 411804920478 del 09/06/2018 FORNITURA SERVIZIO ENERGIA ELETTRICA mag.18;30-07-2018;6030;12;466;1;Spese correnti;3;Acquisto di beni e servizi;2;Acquisto di servizi;5;Utenze e canoni;4;Energia elettrica;30-07-2018;
986;18;1459;"72,64";"23.731,09";HERA COMM S.r.l.; ;Fatt.n. 411805882640 del 11/07/2018 FORNITURA SERVIZIO ENERGIA ELETTRICA GIU.2018;30-07-2018;6030;12;466;1;Spese correnti;3;Acquisto di beni e servizi;2;Acquisto di servizi;5;Utenze e canoni;4;Energia elettrica;30-07-2018;
986;19;1459;"76,21";"23.731,09";HERA COMM S.r.l.; ;Fatt.n. 411803619386 del 30/04/2018 FORNITURA SERVIZIO ENERGIA ELETTRICA feb./mar.2018;30-07-2018;6030;12;466;1;Spese correnti;3;Acquisto di beni e servizi;2;Acquisto di servizi;5;Utenze e canoni;4;Energia elettrica;30-07-2018;
986;20;1459;"76,75";"23.731,09";HERA COMM S.r.l.; ;Fatt.n. 411805882669 del 11/07/2018 FORNITURA SERVIZIO ENERGIA ELETTRICA GIU.2018;30-07-2018;6030;12;466;1;Spese correnti;3;Acquisto di beni e servizi;2;Acquisto di servizi;5;Utenze e canoni;4;Energia elettrica;30-07-2018;
986;21;1459;"82,24";"23.731,09";HERA COMM S.r.l.; ;Fatt.n. 411805882650 del 11/07/2018 FORNITURA SERVIZIO ENERGIA ELETTRICA GIU.2018;30-07-2018;6030;12;466;1;Spese correnti;3;Acquisto di beni e servizi;2;Acquisto di servizi;5;Utenze e canoni;4;Energia elettrica;30-07-2018;
986;22;1459;"82,28";"23.731,09";HERA COMM S.r.l.; ;Fatt.n. 411804920459 del 09/06/2018 FORNITURA SERVIZIO ENERGIA ELETTRICA mag.18;30-07-2018;6030;12;466;1;Spese correnti;3;Acquisto di beni e servizi;2;Acquisto di servizi;5;Utenze e canoni;4;Energia elettrica;30-07-2018;
986;23;1459;"82,47";"23.731,09";HERA COMM S.r.l.; ;Fatt.n. 411803903815 del 11/05/2018 FORNITURA SERVIZIO ENERGIA ELETTRICA APR.2018;30-07-2018;6030;12;466;1;Spese correnti;3;Acquisto di beni e servizi;2;Acquisto di servizi;5;Utenze e canoni;4;Energia elettrica;30-07-2018;
986;24;1459;"85,06";"23.731,09";HERA COMM S.r.l.; ;Fatt.n. 411805882654 del 11/07/2018 FORNITURA SERVIZIO ENERGIA ELETTRICA GIU.2018;30-07-2018;6030;12;466;1;Spese correnti;3;Acquisto di beni e servizi;2;Acquisto di servizi;5;Utenze e canoni;4;Energia elettrica;30-07-2018;
986;25;1459;"86,65";"23.731,09";HERA COMM S.r.l.; ;Fatt.n. 411804920469 del 09/06/2018 FORNITURA SERVIZIO ENERGIA ELETTRICA mag.18;30-07-2018;6030;12;466;1;Spese correnti;3;Acquisto di beni e servizi;2;Acquisto di servizi;5;Utenze e canoni;4;Energia elettrica;30-07-2018;
986;26;1459;"87,03";"23.731,09";HERA COMM S.r.l.; ;Fatt.n. 411805882648 del 11/07/2018 FORNITURA SERVIZIO ENERGIA ELETTRICA GIU.2018;30-07-2018;6030;12;466;1;Spese correnti;3;Acquisto di beni e servizi;2;Acquisto di servizi;5;Utenze e canoni;4;Energia elettrica;30-07-2018;
986;27;1459;"87,24";"23.731,09";HERA COMM S.r.l.; ;Fatt.n. 411804920488 del 09/06/2018 FORNITURA SERVIZIO ENERGIA ELETTRICA mag.18;30-07-2018;6030;12;466;1;Spese correnti;3;Acquisto di beni e servizi;2;Acquisto di servizi;5;Utenze e canoni;4;Energia elettrica;30-07-2018;
986;28;1459;"87,72";"23.731,09";HERA COMM S.r.l.; ;Fatt.n. 411803903843 del 11/05/2018 FORNITURA SERVIZIO ENERGIA ELETTRICA APR.2018;30-07-2018;6030;12;466;1;Spese correnti;3;Acquisto di beni e servizi;2;Acquisto di servizi;5;Utenze e canoni;4;Energia elettrica;30-07-2018;
986;29;1459;"91,38";"23.731,09";HERA COMM S.r.l.; ;Fatt.n. 411805882659 del 11/07/2018 FORNITURA SERVIZIO ENERGIA ELETTRICA GIU.2018;30-07-2018;6030;12;466;1;Spese correnti;3;Acquisto di beni e servizi;2;Acquisto di servizi;5;Utenze e canoni;4;Energia elettrica;30-07-2018;
986;30;1459;"94,78";"23.731,09";HERA COMM S.r.l.; ;Fatt.n. 411804920467 del 09/06/2018 FORNITURA SERVIZIO ENERGIA ELETTRICA mag.18;30-07-2018;6030;12;466;1;Spese correnti;3;Acquisto di beni e servizi;2;Acquisto di servizi;5;Utenze e canoni;4;Energia elettrica;30-07-2018;
986;31;1459;"97,91";"23.731,09";HERA COMM S.r.l.; ;Fatt.n. 411805882655 del 11/07/2018 FORNITURA SERVIZIO ENERGIA ELETTRICA GIU.2018;30-07-2018;6030;12;466;1;Spese correnti;3;Acquisto di beni e servizi;2;Acquisto di servizi;5;Utenze e canoni;4;Energia elettrica;30-07-2018;
986;32;1459;"98,53";"23.731,09";HERA COMM S.r.l.; ;Fatt.n. 411804920473 del 09/06/2018 FORNITURA SERVIZIO ENERGIA ELETTRICA mag.18;30-07-2018;6030;12;466;1;Spese correnti;3;Acquisto di beni e servizi;2;Acquisto di servizi;5;Utenze e canoni;4;Energia elettrica;30-07-2018;
986;33;1459;"101,38";"23.731,09";HERA COMM S.r.l.; ;Fatt.n. 411803903828 del 11/05/2018 FORNITURA SERVIZIO ENERGIA ELETTRICA APR.2018;30-07-2018;6030;12;466;1;Spese correnti;3;Acquisto di beni e servizi;2;Acquisto di servizi;5;Utenze e canoni;4;Energia elettrica;30-07-2018;
986;34;1459;"101,76";"23.731,09";HERA COMM S.r.l.; ;Fatt.n. 411804502594 del 25/05/2018 FORNITURA SERVIZIO ENERGIA ELETTRICA APR.2018;30-07-2018;6030;12;466;1;Spese correnti;3;Acquisto di beni e servizi;2;Acquisto di servizi;5;Utenze e canoni;4;Energia elettrica;30-07-2018;
986;35;1459;"110,41";"23.731,09";HERA COMM S.r.l.; ;Fatt.n. 411803903829 del 11/05/2018 FORNITURA SERVIZIO ENERGIA ELETTRICA APR.2018;30-07-2018;6030;12;466;1;Spese correnti;3;Acquisto di beni e servizi;2;Acquisto di servizi;5;Utenze e canoni;4;Energia elettrica;30-07-2018;
986;36;1459;"110,55";"23.731,09";HERA COMM S.r.l.; ;Fatt.n. 411804920474 del 09/06/2018 FORNITURA SERVIZIO ENERGIA ELETTRICA mag.18;30-07-2018;6030;12;466;1;Spese correnti;3;Acquisto di beni e servizi;2;Acquisto di servizi;5;Utenze e canoni;4;Energia elettrica;30-07-2018;
986;37;1459;"120,69";"23.731,09";HERA COMM S.r.l.; ;Fatt.n. 411803619398 del 30/04/2018 FORNITURA SERVIZIO ENERGIA ELETTRICA feb./mar.2018;30-07-2018;6030;12;466;1;Spese correnti;3;Acquisto di beni e servizi;2;Acquisto di servizi;5;Utenze e canoni;4;Energia elettrica;30-07-2018;
986;38;1459;"128,32";"23.731,09";HERA COMM S.r.l.; ;Fatt.n. 411805882636 del 11/07/2018 FORNITURA SERVIZIO ENERGIA ELETTRICA GIU.2018;30-07-2018;6030;12;466;1;Spese correnti;3;Acquisto di beni e servizi;2;Acquisto di servizi;5;Utenze e canoni;4;Energia elettrica;30-07-2018;
986;39;1459;"130,25";"23.731,09";HERA COMM S.r.l.; ;Fatt.n. 411805882635 del 11/07/2018 FORNITURA SERVIZIO ENERGIA ELETTRICA GIU.2018;30-07-2018;6030;12;466;1;Spese correnti;3;Acquisto di beni e servizi;2;Acquisto di servizi;5;Utenze e canoni;4;Energia elettrica;30-07-2018;
986;40;1459;"135,68";"23.731,09";HERA COMM S.r.l.; ;Fatt.n. 411805882647 del 11/07/2018 FORNITURA SERVIZIO ENERGIA ELETTRICA GIU.2018;30-07-2018;6030;12;466;1;Spese correnti;3;Acquisto di beni e servizi;2;Acquisto di servizi;5;Utenze e canoni;4;Energia elettrica;30-07-2018;
986;41;1459;"136,31";"23.731,09";HERA COMM S.r.l.; ;Fatt.n. 411805882637 del 11/07/2018 FORNITURA SERVIZIO ENERGIA ELETTRICA GIU.2018;30-07-2018;6030;12;466;1;Spese correnti;3;Acquisto di beni e servizi;2;Acquisto di servizi;5;Utenze e canoni;4;Energia elettrica;30-07-2018;
986;42;1459;"140,37";"23.731,09";HERA COMM S.r.l.; ;Fatt.n. 411804920455 del 09/06/2018 FORNITURA SERVIZIO ENERGIA ELETTRICA mag.18;30-07-2018;6030;12;466;1;Spese correnti;3;Acquisto di beni e servizi;2;Acquisto di servizi;5;Utenze e canoni;4;Energia elettrica;30-07-2018;
986;43;1459;"140,84";"23.731,09";HERA COMM S.r.l.; ;Fatt.n. 411803903811 del 11/05/2018 FORNITURA SERVIZIO ENERGIA ELETTRICA APR.2018;30-07-2018;6030;12;466;1;Spese correnti;3;Acquisto di beni e servizi;2;Acquisto di servizi;5;Utenze e canoni;4;Energia elettrica;30-07-2018;
986;44;1459;"144,79";"23.731,09";HERA COMM S.r.l.; ;Fatt.n. 411804920454 del 09/06/2018 FORNITURA SERVIZIO ENERGIA ELETTRICA mag.18;30-07-2018;6030;12;466;1;Spese correnti;3;Acquisto di beni e servizi;2;Acquisto di servizi;5;Utenze e canoni;4;Energia elettrica;30-07-2018;
986;45;1459;"145,81";"23.731,09";HERA COMM S.r.l.; ;Fatt.n. 411803903810 del 11/05/2018 FORNITURA SERVIZIO ENERGIA ELETTRICA APR.2018;30-07-2018;6030;12;466;1;Spese correnti;3;Acquisto di beni e servizi;2;Acquisto di servizi;5;Utenze e canoni;4;Energia elettrica;30-07-2018;
986;46;1459;"149,74";"23.731,09";HERA COMM S.r.l.; ;Fatt.n. 411804920466 del 09/06/2018 FORNITURA SERVIZIO ENERGIA ELETTRICA mag.18;30-07-2018;6030;12;466;1;Spese correnti;3;Acquisto di beni e servizi;2;Acquisto di servizi;5;Utenze e canoni;4;Energia elettrica;30-07-2018;
986;47;1459;"152,61";"23.731,09";HERA COMM S.r.l.; ;Fatt.n. 411804920456 del 09/06/2018 FORNITURA SERVIZIO ENERGIA ELETTRICA mag.18;30-07-2018;6030;12;466;1;Spese correnti;3;Acquisto di beni e servizi;2;Acquisto di servizi;5;Utenze e canoni;4;Energia elettrica;30-07-2018;
986;48;1459;"153,22";"23.731,09";HERA COMM S.r.l.; ;Fatt.n. 411803903812 del 11/05/2018 FORNITURA SERVIZIO ENERGIA ELETTRICA APR.2018;30-07-2018;6030;12;466;1;Spese correnti;3;Acquisto di beni e servizi;2;Acquisto di servizi;5;Utenze e canoni;4;Energia elettrica;30-07-2018;
986;49;1459;"154,46";"23.731,09";HERA COMM S.r.l.; ;Fatt.n. 411803903822 del 11/05/2018 FORNITURA SERVIZIO ENERGIA ELETTRICA APR.2018;30-07-2018;6030;12;466;1;Spese correnti;3;Acquisto di beni e servizi;2;Acquisto di servizi;5;Utenze e canoni;4;Energia elettrica;30-07-2018;
986;50;1459;"157,89";"23.731,09";HERA COMM S.r.l.; ;Fatt.n. 411805427573 del 26/06/2018 FORNITURA SERVIZIO ENERGIA ELETTRICA;30-07-2018;6030;12;466;1;Spese correnti;3;Acquisto di beni e servizi;2;Acquisto di servizi;5;Utenze e canoni;4;Energia elettrica;30-07-2018;
986;51;1459;"161,89";"23.731,09";HERA COMM S.r.l.; ;Fatt.n. 411803619389 del 30/04/2018 FORNITURA SERVIZIO ENERGIA ELETTRICA feb./mar.2018;30-07-2018;6030;12;466;1;Spese correnti;3;Acquisto di beni e servizi;2;Acquisto di servizi;5;Utenze e canoni;4;Energia elettrica;30-07-2018;
986;52;1459;"178,22";"23.731,09";HERA COMM S.r.l.; ;Fatt.n. 411804502595 del 25/05/2018 FORNITURA SERVIZIO ENERGIA ELETTRICA APR.2018;30-07-2018;6030;12;466;1;Spese correnti;3;Acquisto di beni e servizi;2;Acquisto di servizi;5;Utenze e canoni;4;Energia elettrica;30-07-2018;
986;53;1459;"182,62";"23.731,09";HERA COMM S.r.l.; ;Fatt.n. 411803619380 del 30/04/2018 FORNITURA SERVIZIO ENERGIA ELETTRICA feb./mar.2018;30-07-2018;6030;12;466;1;Spese correnti;3;Acquisto di beni e servizi;2;Acquisto di servizi;5;Utenze e canoni;4;Energia elettrica;30-07-2018;
986;54;1459;"198,77";"23.731,09";HERA COMM S.r.l.; ;Fatt.n. 411803619369 del 30/04/2018 FORNITURA SERVIZIO ENERGIA ELETTRICA feb./mar.2018;30-07-2018;6030;12;466;1;Spese correnti;3;Acquisto di beni e servizi;2;Acquisto di servizi;5;Utenze e canoni;4;Energia elettrica;30-07-2018;
986;55;1459;"210,72";"23.731,09";HERA COMM S.r.l.; ;Fatt.n. 411803619399 del 30/04/2018 FORNITURA SERVIZIO ENERGIA ELETTRICA feb./mar.2018;30-07-2018;6030;12;466;1;Spese correnti;3;Acquisto di beni e servizi;2;Acquisto di servizi;5;Utenze e canoni;4;Energia elettrica;30-07-2018;
986;56;1459;"216,10";"23.731,09";HERA COMM S.r.l.; ;Fatt.n. 411803532645 del 24/04/2018 FORNITURA SERVIZIO ENERGIA ELETTRICA mar.2018;30-07-2018;6030;12;466;1;Spese correnti;3;Acquisto di beni e servizi;2;Acquisto di servizi;5;Utenze e canoni;4;Energia elettrica;30-07-2018;
986;57;1459;"220,10";"23.731,09";HERA COMM S.r.l.; ;Fatt.n. 411803619385 del 30/04/2018 FORNITURA SERVIZIO ENERGIA ELETTRICA feb./mar.2018;30-07-2018;6030;12;466;1;Spese correnti;3;Acquisto di beni e servizi;2;Acquisto di servizi;5;Utenze e canoni;4;Energia elettrica;30-07-2018;
986;58;1459;"220,87";"23.731,09";HERA COMM S.r.l.; ;Fatt.n. 411802694750 del 26/03/2018 FORNITURA SERVIZIO ENERGIA ELETTRICA feb.2018;30-07-2018;6030;12;466;1;Spese correnti;3;Acquisto di beni e servizi;2;Acquisto di servizi;5;Utenze e canoni;4;Energia elettrica;30-07-2018;
986;59;1459;"235,02";"23.731,09";HERA COMM S.r.l.; ;Fatt.n. 411801275646 del 08/02/2018 FORNITURA SERVIZIO ENERGIA ELETTRICA gen.2018;30-07-2018;6030;12;466;1;Spese correnti;3;Acquisto di beni e servizi;2;Acquisto di servizi;5;Utenze e canoni;4;Energia elettrica;30-07-2018;
986;60;1459;"235,89";"23.731,09";HERA COMM S.r.l.; ;Fatt.n. 411803619384 del 30/04/2018 FORNITURA SERVIZIO ENERGIA ELETTRICA feb./mar.2018;30-07-2018;6030;12;466;1;Spese correnti;3;Acquisto di beni e servizi;2;Acquisto di servizi;5;Utenze e canoni;4;Energia elettrica;30-07-2018;
986;61;1459;"275,20";"23.731,09";HERA COMM S.r.l.; ;Fatt.n. 411805882657 del 11/07/2018 FORNITURA SERVIZIO ENERGIA ELETTRICA GIU.2018;30-07-2018;6030;12;466;1;Spese correnti;3;Acquisto di beni e servizi;2;Acquisto di servizi;5;Utenze e canoni;4;Energia elettrica;30-07-2018;
986;62;1459;"296,94";"23.731,09";HERA COMM S.r.l.; ;Fatt.n. 411805882641 del 11/07/2018 FORNITURA SERVIZIO ENERGIA ELETTRICA GIU.2018;30-07-2018;6030;12;466;1;Spese correnti;3;Acquisto di beni e servizi;2;Acquisto di servizi;5;Utenze e canoni;4;Energia elettrica;30-07-2018;
986;63;1459;"298,18";"23.731,09";HERA COMM S.r.l.; ;Fatt.n. 411803903831 del 11/05/2018 FORNITURA SERVIZIO ENERGIA ELETTRICA APR.2018;30-07-2018;6030;12;466;1;Spese correnti;3;Acquisto di beni e servizi;2;Acquisto di servizi;5;Utenze e canoni;4;Energia elettrica;30-07-2018;
986;64;1459;"299,48";"23.731,09";HERA COMM S.r.l.; ;Fatt.n. 411804920476 del 09/06/2018 FORNITURA SERVIZIO ENERGIA ELETTRICA mag.18;30-07-2018;6030;12;466;1;Spese correnti;3;Acquisto di beni e servizi;2;Acquisto di servizi;5;Utenze e canoni;4;Energia elettrica;30-07-2018;
986;65;1459;"323,23";"23.731,09";HERA COMM S.r.l.; ;Fatt.n. 411803903816 del 11/05/2018 FORNITURA SERVIZIO ENERGIA ELETTRICA APR.2018;30-07-2018;6030;12;466;1;Spese correnti;3;Acquisto di beni e servizi;2;Acquisto di servizi;5;Utenze e canoni;4;Energia elettrica;30-07-2018;
986;66;1459;"326,92";"23.731,09";HERA COMM S.r.l.; ;Fatt.n. 411804920460 del 09/06/2018 FORNITURA SERVIZIO ENERGIA ELETTRICA mag.18;30-07-2018;6030;12;466;1;Spese correnti;3;Acquisto di beni e servizi;2;Acquisto di servizi;5;Utenze e canoni;4;Energia elettrica;30-07-2018;
986;67;1459;"332,82";"23.731,09";HERA COMM S.r.l.; ;Fatt.n. 411803619365 del 30/04/2018 FORNITURA SERVIZIO ENERGIA ELETTRICA feb./mar.2018;30-07-2018;6030;12;466;1;Spese correnti;3;Acquisto di beni e servizi;2;Acquisto di servizi;5;Utenze e canoni;4;Energia elettrica;30-07-2018;
986;68;1459;"341,27";"23.731,09";HERA COMM S.r.l.; ;Fatt.n. 411805882660 del 11/07/2018 FORNITURA SERVIZIO ENERGIA ELETTRICA GIU.2018;30-07-2018;6030;12;466;1;Spese correnti;3;Acquisto di beni e servizi;2;Acquisto di servizi;5;Utenze e canoni;4;Energia elettrica;30-07-2018;
986;69;1459;"347,39";"23.731,09";HERA COMM S.r.l.; ;Fatt.n. 411803619364 del 30/04/2018 FORNITURA SERVIZIO ENERGIA ELETTRICA feb./mar.2018;30-07-2018;6030;12;466;1;Spese correnti;3;Acquisto di beni e servizi;2;Acquisto di servizi;5;Utenze e canoni;4;Energia elettrica;30-07-2018;
986;70;1459;"360,06";"23.731,09";HERA COMM S.r.l.; ;Fatt.n. 411803619377 del 30/04/2018 FORNITURA SERVIZIO ENERGIA ELETTRICA feb./mar.2018;30-07-2018;6030;12;466;1;Spese correnti;3;Acquisto di beni e servizi;2;Acquisto di servizi;5;Utenze e canoni;4;Energia elettrica;30-07-2018;
986;71;1459;"363,93";"23.731,09";HERA COMM S.r.l.; ;Fatt.n. 411803619366 del 30/04/2018 FORNITURA SERVIZIO ENERGIA ELETTRICA feb./mar.2018;30-07-2018;6030;12;466;1;Spese correnti;3;Acquisto di beni e servizi;2;Acquisto di servizi;5;Utenze e canoni;4;Energia elettrica;30-07-2018;
986;72;1459;"373,46";"23.731,09";HERA COMM S.r.l.; ;Fatt.n. 411804920479 del 09/06/2018 FORNITURA SERVIZIO ENERGIA ELETTRICA mag.18;30-07-2018;6030;12;466;1;Spese correnti;3;Acquisto di beni e servizi;2;Acquisto di servizi;5;Utenze e canoni;4;Energia elettrica;30-07-2018;
986;73;1459;"375,30";"23.731,09";HERA COMM S.r.l.; ;Fatt.n. 411803619378 del 30/04/2018 FORNITURA SERVIZIO ENERGIA ELETTRICA feb./mar.2018;30-07-2018;6030;12;466;1;Spese correnti;3;Acquisto di beni e servizi;2;Acquisto di servizi;5;Utenze e canoni;4;Energia elettrica;30-07-2018;
986;74;1459;"406,48";"23.731,09";HERA COMM S.r.l.; ;Fatt.n. 411803903834 del 11/05/2018 FORNITURA SERVIZIO ENERGIA ELETTRICA APR.2018;30-07-2018;6030;12;466;1;Spese correnti;3;Acquisto di beni e servizi;2;Acquisto di servizi;5;Utenze e canoni;4;Energia elettrica;30-07-2018;
986;75;1459;"484,99";"23.731,09";HERA COMM S.r.l.; ;Fatt.n. 411805882661 del 11/07/2018 FORNITURA SERVIZIO ENERGIA ELETTRICA GIU.2018;30-07-2018;6030;12;466;1;Spese correnti;3;Acquisto di beni e servizi;2;Acquisto di servizi;5;Utenze e canoni;4;Energia elettrica;30-07-2018;
986;76;1459;"488,02";"23.731,09";HERA COMM S.r.l.; ;Fatt.n. 411801275647 del 08/02/2018 FORNITURA SERVIZIO ENERGIA ELETTRICA GEN.2018;30-07-2018;6030;12;466;1;Spese correnti;3;Acquisto di beni e servizi;2;Acquisto di servizi;5;Utenze e canoni;4;Energia elettrica;30-07-2018;
986;77;1459;"527,44";"23.731,09";HERA COMM S.r.l.; ;Fatt.n. 411803903835 del 11/05/2018 FORNITURA SERVIZIO ENERGIA ELETTRICA APR.2018;30-07-2018;6030;12;466;1;Spese correnti;3;Acquisto di beni e servizi;2;Acquisto di servizi;5;Utenze e canoni;4;Energia elettrica;30-07-2018;
986;78;1459;"533,19";"23.731,09";HERA COMM S.r.l.; ;Fatt.n. 411804920480 del 09/06/2018 FORNITURA SERVIZIO ENERGIA ELETTRICA mag.18;30-07-2018;6030;12;466;1;Spese correnti;3;Acquisto di beni e servizi;2;Acquisto di servizi;5;Utenze e canoni;4;Energia elettrica;30-07-2018;
986;79;1459;"621,00";"23.731,09";HERA COMM S.r.l.; ;Fatt.n. 411801275642 del 08/02/2018 FORNITURA SERVIZIO ENERGIA ELETTRICA GEN.2018;30-07-2018;6030;12;466;1;Spese correnti;3;Acquisto di beni e servizi;2;Acquisto di servizi;5;Utenze e canoni;4;Energia elettrica;30-07-2018;
986;80;1459;"702,96";"23.731,09";HERA COMM S.r.l.; ;Fatt.n. 411803619387 del 30/04/2018 FORNITURA SERVIZIO ENERGIA ELETTRICA feb./mar.2018;30-07-2018;6030;12;466;1;Spese correnti;3;Acquisto di beni e servizi;2;Acquisto di servizi;5;Utenze e canoni;4;Energia elettrica;30-07-2018;
986;81;1459;"938,52";"23.731,09";HERA COMM S.r.l.; ;Fatt.n. 411803619390 del 30/04/2018 FORNITURA SERVIZIO ENERGIA ELETTRICA feb./mar.2018;30-07-2018;6030;12;466;1;Spese correnti;3;Acquisto di beni e servizi;2;Acquisto di servizi;5;Utenze e canoni;4;Energia elettrica;30-07-2018;
986;82;1459;"1.048,72";"23.731,09";HERA COMM S.r.l.; ;Fatt.n. 411801275644 del 08/02/2018 FORNITURA SERVIZIO ENERGIA ELETTRICA GEN.2018;30-07-2018;6030;12;466;1;Spese correnti;3;Acquisto di beni e servizi;2;Acquisto di servizi;5;Utenze e canoni;4;Energia elettrica;30-07-2018;
986;83;1459;"1.176,03";"23.731,09";HERA COMM S.r.l.; ;Fatt.n. 411801275628 del 08/02/2018 FORNITURA SERVIZIO ENERGIA ELETTRICA GEN.2018;30-07-2018;6030;12;466;1;Spese correnti;3;Acquisto di beni e servizi;2;Acquisto di servizi;5;Utenze e canoni;4;Energia elettrica;30-07-2018;
986;84;1459;"1.260,44";"23.731,09";HERA COMM S.r.l.; ;Fatt.n. 411803619391 del 30/04/2018 FORNITURA SERVIZIO ENERGIA ELETTRICA feb./mar.2018;30-07-2018;6030;12;466;1;Spese correnti;3;Acquisto di beni e servizi;2;Acquisto di servizi;5;Utenze e canoni;4;Energia elettrica;30-07-2018;
986;85;1459;"1.433,43";"23.731,09";HERA COMM S.r.l.; ;Fatt.n. 411803619370 del 30/04/2018 FORNITURA SERVIZIO ENERGIA ELETTRICA feb./mar.2018;30-07-2018;6030;12;466;1;Spese correnti;3;Acquisto di beni e servizi;2;Acquisto di servizi;5;Utenze e canoni;4;Energia elettrica;30-07-2018;
986;86;1459;"3.394,42";"23.731,09";HERA COMM S.r.l.; ;Fatt.n. 411801275645 del 08/02/2018 FORNITURA SERVIZIO ENERGIA ELETTRICA GEN.2018;30-07-2018;6030;12;466;1;Spese correnti;3;Acquisto di beni e servizi;2;Acquisto di servizi;5;Utenze e canoni;4;Energia elettrica;30-07-2018;
987;1;1460;"5,92";"9.877,94";HERA COMM S.r.l.; ;Fatt.n. 411804920468 del 09/06/2018 FORNITURA SERVIZIO ENERGIA ELETTRICA mag.18;30-07-2018;6030;13;467;1;Spese correnti;3;Acquisto di beni e servizi;2;Acquisto di servizi;5;Utenze e canoni;4;Energia elettrica;30-07-2018;
987;2;1460;"6,17";"9.877,94";HERA COMM S.r.l.; ;Fatt.n. 411803903823 del 11/05/2018 FORNITURA SERVIZIO ENERGIA ELETTRICA APR.2018;30-07-2018;6030;13;467;1;Spese correnti;3;Acquisto di beni e servizi;2;Acquisto di servizi;5;Utenze e canoni;4;Energia elettrica;30-07-2018;
987;3;1460;"12,66";"9.877,94";HERA COMM S.r.l.; ;Fatt.n. 411803619379 del 30/04/2018 FORNITURA SERVIZIO ENERGIA ELETTRICA FEB./MAR.18;30-07-2018;6030;13;467;1;Spese correnti;3;Acquisto di beni e servizi;2;Acquisto di servizi;5;Utenze e canoni;4;Energia elettrica;30-07-2018;
987;4;1460;"17,83";"9.877,94";HERA COMM S.r.l.; ;Fatt.n. 411805882642 del 11/07/2018 FORNITURA SERVIZIO ENERGIA ELETTRICA GIU.2018;30-07-2018;6030;13;467;1;Spese correnti;3;Acquisto di beni e servizi;2;Acquisto di servizi;5;Utenze e canoni;4;Energia elettrica;30-07-2018;
987;5;1460;"22,37";"9.877,94";HERA COMM S.r.l.; ;Fatt.n. 411801275629 del 08/02/2018 FORNITURA SERVIZIO ENERGIA ELETTRICA GEN.2018;30-07-2018;6030;13;467;1;Spese correnti;3;Acquisto di beni e servizi;2;Acquisto di servizi;5;Utenze e canoni;4;Energia elettrica;30-07-2018;
987;6;1460;"24,95";"9.877,94";HERA COMM S.r.l.; ;Fatt.n. 411801275643 del 08/02/2018 FORNITURA SERVIZIO ENERGIA ELETTRICA GEN.2018;30-07-2018;6030;13;467;1;Spese correnti;3;Acquisto di beni e servizi;2;Acquisto di servizi;5;Utenze e canoni;4;Energia elettrica;30-07-2018;
987;7;1460;"27,12";"9.877,94";HERA COMM S.r.l.; ;Fatt.n. 411804920461 del 09/06/2018 FORNITURA SERVIZIO ENERGIA ELETTRICA mag.18;30-07-2018;6030;13;467;1;Spese correnti;3;Acquisto di beni e servizi;2;Acquisto di servizi;5;Utenze e canoni;4;Energia elettrica;30-07-2018;
987;8;1460;"30,62";"9.877,94";HERA COMM S.r.l.; ;Fatt.n. 411803903817 del 11/05/2018 FORNITURA SERVIZIO ENERGIA ELETTRICA APR.2018;30-07-2018;6030;13;467;1;Spese correnti;3;Acquisto di beni e servizi;2;Acquisto di servizi;5;Utenze e canoni;4;Energia elettrica;30-07-2018;
987;9;1460;"45,59";"9.877,94";HERA COMM S.r.l.; ;Fatt.n. 411805882649 del 11/07/2018 FORNITURA SERVIZIO ENERGIA ELETTRICA GIU.2018;30-07-2018;6030;13;467;1;Spese correnti;3;Acquisto di beni e servizi;2;Acquisto di servizi;5;Utenze e canoni;4;Energia elettrica;30-07-2018;
987;10;1460;"48,35";"9.877,94";HERA COMM S.r.l.; ;Fatt.n. 411803903820 del 11/05/2018 FORNITURA SERVIZIO ENERGIA ELETTRICA APR.2018;30-07-2018;6030;13;467;1;Spese correnti;3;Acquisto di beni e servizi;2;Acquisto di servizi;5;Utenze e canoni;4;Energia elettrica;30-07-2018;
987;11;1460;"49,30";"9.877,94";HERA COMM S.r.l.; ;Fatt.n. 411804920464 del 09/06/2018 FORNITURA SERVIZIO ENERGIA ELETTRICA mag.18;30-07-2018;6030;13;467;1;Spese correnti;3;Acquisto di beni e servizi;2;Acquisto di servizi;5;Utenze e canoni;4;Energia elettrica;30-07-2018;
987;12;1460;"49,90";"9.877,94";HERA COMM S.r.l.; ;Fatt.n. 411803619371 del 30/04/2018 FORNITURA SERVIZIO ENERGIA ELETTRICA feb./mar.2018;30-07-2018;6030;13;467;1;Spese correnti;3;Acquisto di beni e servizi;2;Acquisto di servizi;5;Utenze e canoni;4;Energia elettrica;30-07-2018;
987;13;1460;"51,63";"9.877,94";HERA COMM S.r.l.; ;Fatt.n. 411803903836 del 11/05/2018 FORNITURA SERVIZIO ENERGIA ELETTRICA APR.2018;30-07-2018;6030;13;467;1;Spese correnti;3;Acquisto di beni e servizi;2;Acquisto di servizi;5;Utenze e canoni;4;Energia elettrica;30-07-2018;
987;14;1460;"53,20";"9.877,94";HERA COMM S.r.l.; ;Fatt.n. 411804920481 del 09/06/2018 FORNITURA SERVIZIO ENERGIA ELETTRICA;30-07-2018;6030;13;467;1;Spese correnti;3;Acquisto di beni e servizi;2;Acquisto di servizi;5;Utenze e canoni;4;Energia elettrica;30-07-2018;
987;15;1460;"96,70";"9.877,94";HERA COMM S.r.l.; ;Fatt.n. 411803619374 del 30/04/2018 FORNITURA SERVIZIO ENERGIA ELETTRICA FEB./MAR.18;30-07-2018;6030;13;467;1;Spese correnti;3;Acquisto di beni e servizi;2;Acquisto di servizi;5;Utenze e canoni;4;Energia elettrica;30-07-2018;
987;16;1460;"98,16";"9.877,94";HERA COMM S.r.l.; ;Fatt.n. 411805882662 del 11/07/2018 FORNITURA SERVIZIO ENERGIA ELETTRICA GIU.2018;30-07-2018;6030;13;467;1;Spese correnti;3;Acquisto di beni e servizi;2;Acquisto di servizi;5;Utenze e canoni;4;Energia elettrica;30-07-2018;
987;17;1460;"102,76";"9.877,94";HERA COMM S.r.l.; ;Fatt.n. 411805427575 del 26/06/2018 FORNITURA SERVIZIO ENERGIA ELETTRICA mag.18;30-07-2018;6030;13;467;1;Spese correnti;3;Acquisto di beni e servizi;2;Acquisto di servizi;5;Utenze e canoni;4;Energia elettrica;30-07-2018;
987;18;1460;"103,77";"9.877,94";HERA COMM S.r.l.; ;Fatt.n. 411803619392 del 30/04/2018 FORNITURA SERVIZIO ENERGIA ELETTRICA feb./mar.2018;30-07-2018;6030;13;467;1;Spese correnti;3;Acquisto di beni e servizi;2;Acquisto di servizi;5;Utenze e canoni;4;Energia elettrica;30-07-2018;
987;19;1460;"137,42";"9.877,94";HERA COMM S.r.l.; ;Fatt.n. 411804502597 del 25/05/2018 FORNITURA SERVIZIO ENERGIA ELETTRICA APR.2018;30-07-2018;6030;13;467;1;Spese correnti;3;Acquisto di beni e servizi;2;Acquisto di servizi;5;Utenze e canoni;4;Energia elettrica;30-07-2018;
987;20;1460;"138,36";"9.877,94";HERA COMM S.r.l.; ;Fatt.n. 411802694752 del 26/03/2018 FORNITURA SERVIZIO ENERGIA ELETTRICA FEB.2018;30-07-2018;6030;13;467;1;Spese correnti;3;Acquisto di beni e servizi;2;Acquisto di servizi;5;Utenze e canoni;4;Energia elettrica;30-07-2018;
987;21;1460;"151,60";"9.877,94";HERA COMM S.r.l.; ;Fatt.n. 411803532647 del 24/04/2018 FORNITURA SERVIZIO ENERGIA ELETTRICA mar.2018;30-07-2018;6030;13;467;1;Spese correnti;3;Acquisto di beni e servizi;2;Acquisto di servizi;5;Utenze e canoni;4;Energia elettrica;30-07-2018;
987;22;1460;"177,73";"9.877,94";HERA COMM S.r.l.; ;Fatt.n. 411805882645 del 11/07/2018 FORNITURA SERVIZIO ENERGIA ELETTRICA GIU.2018;30-07-2018;6030;13;467;1;Spese correnti;3;Acquisto di beni e servizi;2;Acquisto di servizi;5;Utenze e canoni;4;Energia elettrica;30-07-2018;
987;23;1460;"257,68";"9.877,94";HERA COMM S.r.l.; ;Fatt.n. 411805427574 del 26/06/2018 FORNITURA SERVIZIO ENERGIA ELETTRICA mag.18;30-07-2018;6030;13;467;1;Spese correnti;3;Acquisto di beni e servizi;2;Acquisto di servizi;5;Utenze e canoni;4;Energia elettrica;30-07-2018;
987;24;1460;"261,34";"9.877,94";HERA COMM S.r.l.; ;Fatt.n. 411804502596 del 25/05/2018 FORNITURA SERVIZIO ENERGIA ELETTRICA APR.2018;30-07-2018;6030;13;467;1;Spese correnti;3;Acquisto di beni e servizi;2;Acquisto di servizi;5;Utenze e canoni;4;Energia elettrica;30-07-2018;
987;25;1460;"262,91";"9.877,94";HERA COMM S.r.l.; ;Fatt.n. 411802694751 del 26/03/2018 FORNITURA SERVIZIO ENERGIA ELETTRICA feb.2018;30-07-2018;6030;13;467;1;Spese correnti;3;Acquisto di beni e servizi;2;Acquisto di servizi;5;Utenze e canoni;4;Energia elettrica;30-07-2018;
987;26;1460;"288,51";"9.877,94";HERA COMM S.r.l.; ;Fatt.n. 411803532646 del 24/04/2018 FORNITURA SERVIZIO ENERGIA ELETTRICA mar.2018;30-07-2018;6030;13;467;1;Spese correnti;3;Acquisto di beni e servizi;2;Acquisto di servizi;5;Utenze e canoni;4;Energia elettrica;30-07-2018;
987;27;1460;"1.257,44";"9.877,94";HERA COMM S.r.l.; ;Fatt.n. 411805882665 del 11/07/2018 FORNITURA SERVIZIO ENERGIA ELETTRICA GIU.2018;30-07-2018;6030;13;467;1;Spese correnti;3;Acquisto di beni e servizi;2;Acquisto di servizi;5;Utenze e canoni;4;Energia elettrica;30-07-2018;
987;28;1460;"1.448,68";"9.877,94";HERA COMM S.r.l.; ;Fatt.n. 411803903839 del 11/05/2018 FORNITURA SERVIZIO ENERGIA ELETTRICA APR.2018;30-07-2018;6030;13;467;1;Spese correnti;3;Acquisto di beni e servizi;2;Acquisto di servizi;5;Utenze e canoni;4;Energia elettrica;30-07-2018;
987;29;1460;"1.459,42";"9.877,94";HERA COMM S.r.l.; ;Fatt.n. 411804920484 del 09/06/2018 FORNITURA SERVIZIO ENERGIA ELETTRICA mag.18;30-07-2018;6030;13;467;1;Spese correnti;3;Acquisto di beni e servizi;2;Acquisto di servizi;5;Utenze e canoni;4;Energia elettrica;30-07-2018;
987;30;1460;"3.189,85";"9.877,94";HERA COMM S.r.l.; ;Fatt.n. 411803619395 del 30/04/2018 FORNITURA SERVIZIO ENERGIA ELETTRICA feb./mar.2018;30-07-2018;6030;13;467;1;Spese correnti;3;Acquisto di beni e servizi;2;Acquisto di servizi;5;Utenze e canoni;4;Energia elettrica;30-07-2018;
988;1;1461;"125,61";"1.051,09";HERA COMM S.r.l.; ;Fatt.n. 411803903818 del 11/05/2018 FORNITURA SERVIZIO ENERGIA ELETTRICA APR.2018;30-07-2018;6030;14;468;1;Spese correnti;3;Acquisto di beni e servizi;2;Acquisto di servizi;5;Utenze e canoni;4;Energia elettrica;30-07-2018;
988;2;1461;"156,68";"1.051,09";HERA COMM S.r.l.; ;Fatt.n. 411804920462 del 09/06/2018 FORNITURA SERVIZIO ENERGIA ELETTRICA mag.18;30-07-2018;6030;14;468;1;Spese correnti;3;Acquisto di beni e servizi;2;Acquisto di servizi;5;Utenze e canoni;4;Energia elettrica;30-07-2018;
988;3;1461;"322,48";"1.051,09";HERA COMM S.r.l.; ;Fatt.n. 411805882643 del 11/07/2018 FORNITURA SERVIZIO ENERGIA ELETTRICA GIU.2018;30-07-2018;6030;14;468;1;Spese correnti;3;Acquisto di beni e servizi;2;Acquisto di servizi;5;Utenze e canoni;4;Energia elettrica;30-07-2018;
988;4;1461;"446,32";"1.051,09";HERA COMM S.r.l.; ;Fatt.n. 411803619372 del 30/04/2018 FORNITURA SERVIZIO ENERGIA ELETTRICA FEB./MAR.18;30-07-2018;6030;14;468;1;Spese correnti;3;Acquisto di beni e servizi;2;Acquisto di servizi;5;Utenze e canoni;4;Energia elettrica;30-07-2018;
989;1;1462;"37,92";"2.786,57";HERA COMM S.r.l.; ;Fatt.n. 411803903832 del 11/05/2018 FORNITURA SERVIZIO ENERGIA ELETTRICA APR.2018;30-07-2018;6030;16;469;1;Spese correnti;3;Acquisto di beni e servizi;2;Acquisto di servizi;5;Utenze e canoni;4;Energia elettrica;30-07-2018;
989;2;1462;"43,91";"2.786,57";HERA COMM S.r.l.; ;Fatt.n. 411804920477 del 09/06/2018 FORNITURA SERVIZIO ENERGIA ELETTRICA mag.18;30-07-2018;6030;16;469;1;Spese correnti;3;Acquisto di beni e servizi;2;Acquisto di servizi;5;Utenze e canoni;4;Energia elettrica;30-07-2018;
989;3;1462;"61,45";"2.786,57";HERA COMM S.r.l.; ;Fatt.n. 411803903826 del 11/05/2018 FORNITURA SERVIZIO ENERGIA ELETTRICA APR.2018;30-07-2018;6030;16;469;1;Spese correnti;3;Acquisto di beni e servizi;2;Acquisto di servizi;5;Utenze e canoni;4;Energia elettrica;30-07-2018;
989;4;1462;"66,72";"2.786,57";HERA COMM S.r.l.; ;Fatt.n. 411804920471 del 09/06/2018 FORNITURA SERVIZIO ENERGIA ELETTRICA mag.18;30-07-2018;6030;16;469;1;Spese correnti;3;Acquisto di beni e servizi;2;Acquisto di servizi;5;Utenze e canoni;4;Energia elettrica;30-07-2018;
989;5;1462;"78,23";"2.786,57";HERA COMM S.r.l.; ;Fatt.n. 411803619388 del 30/04/2018 FORNITURA SERVIZIO ENERGIA ELETTRICA;30-07-2018;6030;16;469;1;Spese correnti;3;Acquisto di beni e servizi;2;Acquisto di servizi;5;Utenze e canoni;4;Energia elettrica;30-07-2018;
989;6;1462;"89,03";"2.786,57";HERA COMM S.r.l.; ;Fatt.n. 411805882658 del 11/07/2018 FORNITURA SERVIZIO ENERGIA ELETTRICA GIU.2018;30-07-2018;6030;16;469;1;Spese correnti;3;Acquisto di beni e servizi;2;Acquisto di servizi;5;Utenze e canoni;4;Energia elettrica;30-07-2018;
989;7;1462;"106,64";"2.786,57";HERA COMM S.r.l.; ;Fatt.n. 411805882652 del 11/07/2018 FORNITURA SERVIZIO ENERGIA ELETTRICA GIU.2018;30-07-2018;6030;16;469;1;Spese correnti;3;Acquisto di beni e servizi;2;Acquisto di servizi;5;Utenze e canoni;4;Energia elettrica;30-07-2018;
989;8;1462;"150,35";"2.786,57";HERA COMM S.r.l.; ;Fatt.n. 411803619382 del 30/04/2018 FORNITURA SERVIZIO ENERGIA ELETTRICA FEB./MAR.18;30-07-2018;6030;16;469;1;Spese correnti;3;Acquisto di beni e servizi;2;Acquisto di servizi;5;Utenze e canoni;4;Energia elettrica;30-07-2018;
989;9;1462;"351,63";"2.786,57";HERA COMM S.r.l.; ;Fatt.n. 411805882639 del 11/07/2018 FORNITURA SERVIZIO ENERGIA ELETTRICA GIU.2018;30-07-2018;6030;16;469;1;Spese correnti;3;Acquisto di beni e servizi;2;Acquisto di servizi;5;Utenze e canoni;4;Energia elettrica;30-07-2018;
989;10;1462;"439,63";"2.786,57";HERA COMM S.r.l.; ;Fatt.n. 411803903814 del 11/05/2018 FORNITURA SERVIZIO ENERGIA ELETTRICA APR.2018;30-07-2018;6030;16;469;1;Spese correnti;3;Acquisto di beni e servizi;2;Acquisto di servizi;5;Utenze e canoni;4;Energia elettrica;30-07-2018;
989;11;1462;"457,03";"2.786,57";HERA COMM S.r.l.; ;Fatt.n. 411804920458 del 09/06/2018 FORNITURA SERVIZIO ENERGIA ELETTRICA mag.18;30-07-2018;6030;16;469;1;Spese correnti;3;Acquisto di beni e servizi;2;Acquisto di servizi;5;Utenze e canoni;4;Energia elettrica;30-07-2018;
989;12;1462;"904,03";"2.786,57";HERA COMM S.r.l.; ;Fatt.n. 411803619368 del 30/04/2018 FORNITURA SERVIZIO ENERGIA ELETTRICA FEB./MAR.18;30-07-2018;6030;16;469;1;Spese correnti;3;Acquisto di beni e servizi;2;Acquisto di servizi;5;Utenze e canoni;4;Energia elettrica;30-07-2018;
990;1;1463;"163,58";"1.253,78";HERA COMM S.r.l.; ;Fatt.n. 411804920457 del 09/06/2018 FORNITURA SERVIZIO ENERGIA ELETTRICA mag.18;30-07-2018;6030;17;470;1;Spese correnti;3;Acquisto di beni e servizi;2;Acquisto di servizi;5;Utenze e canoni;4;Energia elettrica;30-07-2018;
990;2;1463;"195,14";"1.253,78";HERA COMM S.r.l.; ;Fatt.n. 411803903813 del 11/05/2018 FORNITURA SERVIZIO ENERGIA ELETTRICA APR.2018;30-07-2018;6030;17;470;1;Spese correnti;3;Acquisto di beni e servizi;2;Acquisto di servizi;5;Utenze e canoni;4;Energia elettrica;30-07-2018;
990;3;1463;"315,49";"1.253,78";HERA COMM S.r.l.; ;Fatt.n. 411805882638 del 11/07/2018 FORNITURA SERVIZIO ENERGIA ELETTRICA GIU.2018;30-07-2018;6030;17;470;1;Spese correnti;3;Acquisto di beni e servizi;2;Acquisto di servizi;5;Utenze e canoni;4;Energia elettrica;30-07-2018;
990;4;1463;"579,57";"1.253,78";HERA COMM S.r.l.; ;Fatt.n. 411803619367 del 30/04/2018 FORNITURA SERVIZIO ENERGIA ELETTRICA feb./mar.2018;30-07-2018;6030;17;470;1;Spese correnti;3;Acquisto di beni e servizi;2;Acquisto di servizi;5;Utenze e canoni;4;Energia elettrica;30-07-2018;
991;1;1464;"13,20";"113,95";HERA COMM S.r.l.; ;Fatt.n. 411805882664 del 11/07/2018 FORNITURA SERVIZIO ENERGIA ELETTRICA GIU.2018;30-07-2018;6030;18;471;1;Spese correnti;3;Acquisto di beni e servizi;2;Acquisto di servizi;5;Utenze e canoni;4;Energia elettrica;30-07-2018;
991;2;1464;"24,95";"113,95";HERA COMM S.r.l.; ;Fatt.n. 411803903838 del 11/05/2018 FORNITURA SERVIZIO ENERGIA ELETTRICA APR.2018;30-07-2018;6030;18;471;1;Spese correnti;3;Acquisto di beni e servizi;2;Acquisto di servizi;5;Utenze e canoni;4;Energia elettrica;30-07-2018;
991;3;1464;"25,90";"113,95";HERA COMM S.r.l.; ;Fatt.n. 411804920483 del 09/06/2018 FORNITURA SERVIZIO ENERGIA ELETTRICA mag.18;30-07-2018;6030;18;471;1;Spese correnti;3;Acquisto di beni e servizi;2;Acquisto di servizi;5;Utenze e canoni;4;Energia elettrica;30-07-2018;
991;4;1464;"49,90";"113,95";HERA COMM S.r.l.; ;Fatt.n. 411803619394 del 30/04/2018 FORNITURA SERVIZIO ENERGIA ELETTRICA FEB./MAR.18;30-07-2018;6030;18;471;1;Spese correnti;3;Acquisto di beni e servizi;2;Acquisto di servizi;5;Utenze e canoni;4;Energia elettrica;30-07-2018;
992;1;1465;"45,92";"317,70";HERA COMM S.r.l.; ;Fatt.n. 411803903841 del 11/05/2018 FORNITURA SERVIZIO ENERGIA ELETTRICA APR.2018;30-07-2018;6030;19;472;1;Spese correnti;3;Acquisto di beni e servizi;2;Acquisto di servizi;5;Utenze e canoni;4;Energia elettrica;30-07-2018;
992;2;1465;"58,44";"317,70";HERA COMM S.r.l.; ;Fatt.n. 411804920486 del 09/06/2018 FORNITURA SERVIZIO ENERGIA ELETTRICA mag.18;30-07-2018;6030;19;472;1;Spese correnti;3;Acquisto di beni e servizi;2;Acquisto di servizi;5;Utenze e canoni;4;Energia elettrica;30-07-2018;
992;3;1465;"103,02";"317,70";HERA COMM S.r.l.; ;Fatt.n. 411803619397 del 30/04/2018 FORNITURA SERVIZIO ENERGIA ELETTRICA FEB./MAR.18;30-07-2018;6030;19;472;1;Spese correnti;3;Acquisto di beni e servizi;2;Acquisto di servizi;5;Utenze e canoni;4;Energia elettrica;30-07-2018;
992;4;1465;"110,32";"317,70";HERA COMM S.r.l.; ;Fatt.n. 411805882667 del 11/07/2018 FORNITURA SERVIZIO ENERGIA ELETTRICA GIU.2018;30-07-2018;6030;19;472;1;Spese correnti;3;Acquisto di beni e servizi;2;Acquisto di servizi;5;Utenze e canoni;4;Energia elettrica;30-07-2018;
996;1;1468;"1.518,37";"2.011,84";FIORE SALVATORE VITTORIO; ;INDENNITA' FUNZIONE MESE DI LUGLIO 2018;01-08-2018;1001;0;18;1;Spese correnti;3;Acquisto di beni e servizi;2;Acquisto di servizi;1;Organi e incarichi istituzionali dell'amministrazione;1;Organi istituzionali dell'amministrazione - Indennità;01-08-2018;
996;2;1469;"151,83";"2.011,84";INTERDONATO ARMANDO; ;INDENNITA' FUNZIONE MESE DI LUGLIO 2018;01-08-2018;1001;0;18;1;Spese correnti;3;Acquisto di beni e servizi;2;Acquisto di servizi;1;Organi e incarichi istituzionali dell'amministrazione;1;Organi istituzionali dell'amministrazione - Indennità;01-08-2018;
996;3;1470;"113,88";"2.011,84";LAMANCUSA MARCO; ;INDENNITA' FUNZIONE MESE DI LUGLIO 2018;01-08-2018;1001;0;18;1;Spese correnti;3;Acquisto di beni e servizi;2;Acquisto di servizi;1;Organi e incarichi istituzionali dell'amministrazione;1;Organi istituzionali dell'amministrazione - Indennità;01-08-2018;
996;4;1471;"227,76";"2.011,84";PETTINATO  ROSA SANDRA; ;INDENNITA' FUNZIONE MESE DI LUGLIO 2018;01-08-2018;1001;0;18;1;Spese correnti;3;Acquisto di beni e servizi;2;Acquisto di servizi;1;Organi e incarichi istituzionali dell'amministrazione;1;Organi istituzionali dell'amministrazione - Indennità;01-08-2018;
997;1;1472;"227,76";"227,76";FORZANO GIUSEPPE; ;INDENNITA' FUNZIONE PRESIDENTE C.C. MESE DI LUGLIO 2018;01-08-2018;1001;0;56;1;Spese correnti;3;Acquisto di beni e servizi;2;Acquisto di servizi;1;Organi e incarichi istituzionali dell'amministrazione;1;Organi istituzionali dell'amministrazione - Indennità;01-08-2018;
998;1;1473;"2.227,28";"2.227,28";CARTAREGIA COSIMO;Z032181600;SALDO Fatt.n. 16/PA  del 05/07/2018 MANUTENZ. IMP. PUBBL. ILL. GIU.2018;01-08-2018;3930;1;586;1;Spese correnti;3;Acquisto di beni e servizi;2;Acquisto di servizi;15;Contratti di servizio pubblico;999;Altre spese per contratti di servizio pubblico;01-08-2018;
999;1;1474;"21,02";"21,02";LO PRESTI GIORGIO;Z73243D5B0;Fatt.n. FATTPA 4_18 del 05/07/2018 SOMMA URGENZA DEL 06/07/18 RIPRISTINO COND.IDRICA;01-08-2018;3304;8;203;2;Spese in conto capitale;2;Investimenti fissi lordi e acquisto di terreni;1;Beni materiali;9;Beni immobili;10;Infrastrutture idrauliche;01-08-2018;
1000;1;1475;"763,75";"763,75";LO PRESTI GIORGIO;Z73243D5B0;Fatt.n. FATTPA 4_18 del 05/07/2018 SOMMA URGENZA DEL 06/07/18 RIPRISTINO COND.IDRICA;01-08-2018;4035;0;202;2;Spese in conto capitale;2;Investimenti fissi lordi e acquisto di terreni;1;Beni materiali;9;Beni immobili;13;Altre vie di comunicazione;01-08-2018;
1001;1;1476;"4.273,79";"4.273,79";LO PRESTI GIORGIO;Z73243D5B0;Fatt.n. FATTPA 4_18 del 05/07/2018 SOMMA URGENZA DEL 06/07/18 RIPRISTINO COND.IDRICA;01-08-2018;4035;1;201;2;Spese in conto capitale;2;Investimenti fissi lordi e acquisto di terreni;1;Beni materiali;9;Beni immobili;13;Altre vie di comunicazione;01-08-2018;
1002;1;1477;"677,30";"677,30";HALLEY SUD SRL;Z001C8D941;Fatt.n. 201800379 del 05/07/2018 Canone di assistenza Software dal 01/04/2018 al 30/06/2018;01-08-2018;2100;1;495;1;Spese correnti;3;Acquisto di beni e servizi;2;Acquisto di servizi;19;Servizi informatici e di telecomunicazioni;5;Servizi per i sistemi e relativa manutenzione;01-08-2018;
1003;1;1478;"1.500,40";"1.500,40";HALLEY SUD SRL;Z001C8D941;Fatt.n. 201800379 del 05/07/2018 Canone di assistenza Software dal 01/04/2018 al 30/06/2018;01-08-2018;2100;6;348;1;Spese correnti;3;Acquisto di beni e servizi;2;Acquisto di servizi;19;Servizi informatici e di telecomunicazioni;5;Servizi per i sistemi e relativa manutenzione;01-08-2018;
1004;1;1479;"854,00";"854,00";HALLEY CONSULTING;Z4422F8948;SALDO Fatt.n. 20180826  del 07/06/2018 SERVIZIO SUPPORTO GESTIONALE INFORMATICO ADEGUAMENTO INVENTARIO;01-08-2018;2100;1;47;1;Spese correnti;3;Acquisto di beni e servizi;2;Acquisto di servizi;19;Servizi informatici e di telecomunicazioni;5;Servizi per i sistemi e relativa manutenzione;01-08-2018;
1005;1;1480;"2.562,00";"2.562,00";HALLEY CONSULTING;ZA921749B4;SALDO Fatt.n. 20180843  del 08/06/2018 SERVIZIO REDAZIONE RENDICONTO DI GESTIONE ANNO 2017;01-08-2018;2100;1;515;1;Spese correnti;3;Acquisto di beni e servizi;2;Acquisto di servizi;19;Servizi informatici e di telecomunicazioni;5;Servizi per i sistemi e relativa manutenzione;01-08-2018;
1006;1;1481;"344,74";"344,74";ORIFICI CARMELO-MARTINO CARMELA; ;CANONE LOCAZIONE IMMOBILE P.M. MESE DI AGOSTO 2018;01-08-2018;2230;0;154;1;Spese correnti;3;Acquisto di beni e servizi;2;Acquisto di servizi;7;Utilizzo di beni di terzi;1;Locazione di beni immobili;01-08-2018;
1007;1;1482;"2.420,83";"2.420,83";Q8 QUASER SRL;ZAB20D7466;SALDO Fatt.n. 0030039060  del 30/06/2018 GASOLIO RISCALDAMENTO;03-08-2018;6060;5;381;1;Spese correnti;3;Acquisto di beni e servizi;1;Acquisto di beni;2;Altri beni di consumo;2;"Carburanti, combustibili e lubrificanti";06-08-2018;
1008;1;1483;"13,42";"75,66";AUTOSTRADE PER L'ITALIA S.p.A.; ;ACCONTO Fatt.n. 900015109D  del 30/07/2018 PEDAGGI AUTOSTRADALI LUG.2018;08-08-2018;1017;0;28;1;Spese correnti;3;Acquisto di beni e servizi;2;Acquisto di servizi;99;Altri servizi;999;Altri servizi diversi n.a.c.;08-08-2018;
1008;2;1442;"60,98";"75,66";AUTOSTRADE PER L'ITALIA S.p.A.; ;SALDO Fatt.n. 900015109D  del 30/07/2018 PEDAGGI AUTOSTRADALI LUG.2018;08-08-2018;1017;0;28;1;Spese correnti;3;Acquisto di beni e servizi;2;Acquisto di servizi;99;Altri servizi;999;Altri servizi diversi n.a.c.;08-08-2018;
1008;3;1484;"0,23";"75,66";TELEPASS SPA; ;ACCONTO Fatt.n. 900015191T  del 30/07/2018 TELEPASS LUG.2018;08-08-2018;1017;0;28;1;Spese correnti;3;Acquisto di beni e servizi;2;Acquisto di servizi;99;Altri servizi;999;Altri servizi diversi n.a.c.;08-08-2018;
1008;4;1484;"1,03";"75,66";TELEPASS SPA; ;SALDO Fatt.n. 900015191T  del 30/07/2018 TELEPASS LUG.2018;08-08-2018;1017;0;28;1;Spese correnti;3;Acquisto di beni e servizi;2;Acquisto di servizi;99;Altri servizi;999;Altri servizi diversi n.a.c.;08-08-2018;
1009;1;1485;"7.368,00";"7.368,00";S.R.R. MESSINA PROVINCIA SOC. CONSOR. SPA; ;ACCONTO Fatt.n. 41  del 28/02/2018 QUOTA STRUTTURA AZIENDALE SRR MESSINA PROVINCIA;08-08-2018;10600;7;239;1;Spese correnti;10;Altre spese correnti;99;Altre spese correnti n.a.c.;99;Altre spese correnti n.a.c.;999;Altre spese correnti n.a.c.;08-08-2018;
1010;1;1486;"878,40";"39.886,68";C.G.F.C. S.R.L.;ZDC24915C7;SALDO Fatt.n. 3/E  del 06/04/2018 RIMBORSO ONERI DI DISCARICA LAVORI RIPRISTINO CONDOTTA FOGNARIA LOC. MANGANO E VIA N.DANTE;08-08-2018;10600;7;237;1;Spese correnti;10;Altre spese correnti;99;Altre spese correnti n.a.c.;99;Altre spese correnti n.a.c.;999;Altre spese correnti n.a.c.;08-08-2018;
1010;2;1486;"39.008,28";"39.886,68";C.G.F.C. S.R.L.;ZDC24915C7;SALDO Fatt.n. 2/E  del 06/04/2018 RIPRISTINO CONDOTTA FOGNARIA LOC. MANGANO E VIA N.DANTE;08-08-2018;10600;7;237;1;Spese correnti;10;Altre spese correnti;99;Altre spese correnti n.a.c.;99;Altre spese correnti n.a.c.;999;Altre spese correnti n.a.c.;08-08-2018;
1011;1;1487;"200,00";"400,00";ARLOTTA MARIA CATENA; ;CONTRIBUTO ASSISTENZA ECONOMICA FAMIGLIE E PERSONE BISOGNOSE ANNO 2018;08-08-2018;1900;0;200;1;Spese correnti;4;Trasferimenti correnti;2;Trasferimenti correnti a Famiglie;1;Interventi previdenziali;999;Altri sussidi e assegni;08-08-2018;
1011;2;1488;"200,00";"400,00";RADU ZAMFIRA; ;CONTRIBUTO ASSISTENZA ECONOMICA FAMIGLIE E PERSONE BISOGNOSE ANNO 2018;08-08-2018;1900;0;200;1;Spese correnti;4;Trasferimenti correnti;2;Trasferimenti correnti a Famiglie;1;Interventi previdenziali;999;Altri sussidi e assegni;08-08-2018;
1012;1;1493;"1.499,99";"1.499,99";CAFARELLI TINDARO;ZF323EAC33;SALDO Fatt.n. 000002-2018-CATI  del 12/07/2018 SALDO FORNITURA DI GASOLIO;08-08-2018;1579;0;176;1;Spese correnti;3;Acquisto di beni e servizi;2;Acquisto di servizi;9;Manutenzione ordinaria e riparazioni;8;Manutenzione ordinaria e riparazioni di beni immobili;10-08-2018;
1013;1;1494;"14,01";"100,00";KUWAIT PETROLEUM ITALIA S.P.A.;6516542493;Fatt.n. PJ00146210 del 30/06/2018 CARBURANTE PER AUTOMEZZI COM.LI GIU.2018;08-08-2018;6080;1;22;1;Spese correnti;3;Acquisto di beni e servizi;1;Acquisto di beni;2;Altri beni di consumo;2;"Carburanti, combustibili e lubrificanti";10-08-2018;
1013;2;1494;"85,99";"100,00";KUWAIT PETROLEUM ITALIA S.P.A.;6516542493;Fatt.n. PJ00146210 del 30/06/2018 CARBURANTE PER AUTOMEZZI COM.LI GIU.2018;08-08-2018;6080;1;22;1;Spese correnti;3;Acquisto di beni e servizi;1;Acquisto di beni;2;Altri beni di consumo;2;"Carburanti, combustibili e lubrificanti";10-08-2018;
1014;1;1495;"67,00";"67,00";KUWAIT PETROLEUM ITALIA S.P.A.;6516542493;Fatt.n. PJ00146210 del 30/06/2018 CARBURANTE PER AUTOMEZZI COM.LI GIU.2018;08-08-2018;6080;2;23;1;Spese correnti;3;Acquisto di beni e servizi;1;Acquisto di beni;2;Altri beni di consumo;2;"Carburanti, combustibili e lubrificanti";10-08-2018;
1015;1;1496;"350,00";"350,00";KUWAIT PETROLEUM ITALIA S.P.A.;6516542493;Fatt.n. PJ00146210 del 30/06/2018 CARBURANTE PER AUTOMEZZI COM.LI GIU.2018;08-08-2018;6080;3;24;1;Spese correnti;3;Acquisto di beni e servizi;1;Acquisto di beni;2;Altri beni di consumo;2;"Carburanti, combustibili e lubrificanti";10-08-2018;
1016;1;1497;"270,00";"270,00";KUWAIT PETROLEUM ITALIA S.P.A.;6516542493;Fatt.n. PJ00146210 del 30/06/2018 CARBURANTE PER AUTOMEZZI COM.LI GIU.2018;08-08-2018;6080;4;25;1;Spese correnti;3;Acquisto di beni e servizi;1;Acquisto di beni;2;Altri beni di consumo;2;"Carburanti, combustibili e lubrificanti";10-08-2018;
1017;1;1498;"520,00";"520,00";KUWAIT PETROLEUM ITALIA S.P.A.;6516542493;Fatt.n. PJ00146210 del 30/06/2018 CARBURANTE PER AUTOMEZZI COM.LI GIU.2018;08-08-2018;6080;5;26;1;Spese correnti;3;Acquisto di beni e servizi;1;Acquisto di beni;2;Altri beni di consumo;2;"Carburanti, combustibili e lubrificanti";10-08-2018;
1018;1;1499;"32,00";"32,00";KUWAIT PETROLEUM ITALIA S.P.A.;6516542493;Fatt.n. PJ00146210 del 30/06/2018 CARBURANTE PER AUTOMEZZI COM.LI GIU.2018;08-08-2018;6080;7;27;1;Spese correnti;3;Acquisto di beni e servizi;1;Acquisto di beni;2;Altri beni di consumo;2;"Carburanti, combustibili e lubrificanti";10-08-2018;
1019;1;1500;"11.895,00";"11.895,00";C.G.F.C. S.R.L.;Z80241FEA5;SALDO Fatt.n. 5/E  del 16/07/2018 LAVORI SISTEMAZIONE ALCUNI TRATTI STRADE COMUNALI;08-08-2018;10980;0;216;2;Spese in conto capitale;2;Investimenti fissi lordi e acquisto di terreni;1;Beni materiali;9;Beni immobili;13;Altre vie di comunicazione;10-08-2018;
1020;1;1492;"197,15";"197,15";TELECOM ITALIA S.P.A.-TIM SPA; ;SALDO Fatt.n. 8V00326961  del 09/07/2018 FATT. IV BIM.2018 IST.COMPRENSIVO;08-08-2018;6040;9;392;1;Spese correnti;3;Acquisto di beni e servizi;2;Acquisto di servizi;5;Utenze e canoni;1;Telefonia fissa;10-08-2018;
1021;1;1551;"11.568,29";"11.568,29";SIRACUSANO FABRIZIO; ;INCARICO REDAZIONE P.R.G.-SENTENZA N.762/2017 DEL TRIBUNALE DI PATTI D.I.;08-08-2018;1553;1;1054;2;Spese in conto capitale;2;Investimenti fissi lordi e acquisto di terreni;3;Beni immateriali;5;Incarichi professionali per la realizzazione di investimenti;1;Incarichi professionali per la realizzazione di investimenti;24-08-2018;
1022;1;1489;"21,80";"21,80";P.A.G.M. DI MANNINO GIOVANNI; ;SALDO Fatt.n. FATTPA 3_18  del 26/07/2018 REVISIONE AUTOMEZZI;08-08-2018;6070;9;484;1;Spese correnti;3;Acquisto di beni e servizi;2;Acquisto di servizi;9;Manutenzione ordinaria e riparazioni;1;"Manutenzione ordinaria e riparazioni di mezzi di trasporto ad uso civile, di sicurezza e ordine pubblico";08-08-2018;
1023;1;1490;"10,90";"10,90";P.A.G.M. DI MANNINO GIOVANNI; ;SALDO Fatt.n. FATTPA 4_18  del 27/07/2018 REVISIONE AUTOMEZZI ME 394965;08-08-2018;6070;5;482;1;Spese correnti;3;Acquisto di beni e servizi;2;Acquisto di servizi;9;Manutenzione ordinaria e riparazioni;1;"Manutenzione ordinaria e riparazioni di mezzi di trasporto ad uso civile, di sicurezza e ordine pubblico";08-08-2018;
1024;1;1491;"42,90";"42,90";MyO S.R.L.; ;SALDO Fatt.n. 2040/180017875  del 28/06/2018 materiale cancelleria;08-08-2018;1043;3;441;1;Spese correnti;3;Acquisto di beni e servizi;2;Acquisto di servizi;16;Servizi amministrativi;2;Spese postali;08-08-2018;
1026;1;1502;"2.043,78";"2.043,78";Wind Tre S.p.A.; ;SALDO Fatt.n. 2018E000006412  del 21/07/2018 TELEFONIA MOBILE FATTURAZIONE 01/05-30/06/2018;08-08-2018;6040;5;390;1;Spese correnti;3;Acquisto di beni e servizi;2;Acquisto di servizi;5;Utenze e canoni;1;Telefonia fissa;10-08-2018;
1027;1;1503;"6.340,48";"6.340,48";IALITE ONLUS;ZA020E82FC;"SALDO Fatt.n. 123  del 04/07/2018 SERVIZIO DI ASSISTENZA DOMICILIARE IN FAVORE DI         ANZIANI,MINORI, DIVERSAMENTE ABILI E NUCLEI FAMILIARI IN CONDIZIONI DI         DISAGIO - DAL 01.06.2018 AL 30.06.2018 - CIG: ZA020E82FC";08-08-2018;1878;2;35;1;Spese correnti;3;Acquisto di beni e servizi;2;Acquisto di servizi;15;Contratti di servizio pubblico;9;Contratti di servizio di assistenza sociale domiciliare;10-08-2018;
1029;1;1552;"111,41";"2.018,42";LOPRESTI MARIA GABRIELLA; ;SALDO Fatt.n. 11/E  del 26/07/2018 RIMB. N. 2 SPESE VIAGGIO;20-08-2018;1046;0;115;1;Spese correnti;3;Acquisto di beni e servizi;2;Acquisto di servizi;1;Organi e incarichi istituzionali dell'amministrazione;1;Organi istituzionali dell'amministrazione - Indennità;24-08-2018;
1029;2;1552;"1.907,01";"2.018,42";LOPRESTI MARIA GABRIELLA; ;SALDO Fatt.n. 10/E  del 26/07/2018 COMP. REVISORE DEI CONTI 01/04-30/06/2018;20-08-2018;1046;0;115;1;Spese correnti;3;Acquisto di beni e servizi;2;Acquisto di servizi;1;Organi e incarichi istituzionali dell'amministrazione;1;Organi istituzionali dell'amministrazione - Indennità;24-08-2018;
1076;1;1549;"56,93";"56,93";EDISON ENERGIE S.P.A.; ;SALDO Fatt.n. FI18366000007114  del 24/07/2018 canoni 01/06-24/07/2018;20-08-2018;6160;3;397;1;Spese correnti;3;Acquisto di beni e servizi;2;Acquisto di servizi;5;Utenze e canoni;6;Gas;21-08-2018;
1077;1;1550;"150,00";"150,00";ECONOMO COMUNALE; ;RIMBORSO SPESE ECONOMATO PER ALLESTIMENTO PICCOLO BUFFET IN OCCASIONE DEL RADUNO TURISTICO DI AUTO STORICH;20-08-2018;1512;1;166;1;Spese correnti;3;Acquisto di beni e servizi;2;Acquisto di servizi;2;"Organizzazione eventi, pubblicita` e servizi per trasferta";5;Organizzazione e partecipazione a manifestazioni e convegni;21-08-2018;
1078;1;1553;"150,00";"150,00";ECONOMO COMUNALE; ;RIMBORSO SPESE ECONOMATO PER ACQUISTO BROCHURE CONVEGNO IL POSSESSO RESPONSABILE;20-08-2018;1766;0;178;1;Spese correnti;3;Acquisto di beni e servizi;2;Acquisto di servizi;99;Altri servizi;999;Altri servizi diversi n.a.c.;24-08-2018;
1079;1;1554;"720,00";"720,00";UNIPOL  ASSICURAZIONI;Z1F23259C2;Servizio assicurativo RCT e infortuni bambini asilo nido 15/04/2018-15/04/2019;21-08-2018;1776;0;41;1;Spese correnti;3;Acquisto di beni e servizi;1;Acquisto di beni;2;Altri beni di consumo;999;Altri beni e materiali di consumo n.a.c.;24-08-2018;
1080;1;1555;"150,00";"150,00";UNIPOL  ASSICURAZIONI;Z402431D57;POLIZZA ASS.VA ATTIVITA' SOCIALMENTE UTILI IN CAMBIO CONTRIBUTO ECONOMICO;21-08-2018;1900;0;197;1;Spese correnti;4;Trasferimenti correnti;2;Trasferimenti correnti a Famiglie;1;Interventi previdenziali;999;Altri sussidi e assegni;24-08-2018;
1081;1;1556;"2,69";"16,16";AUTOSTRADE PER L'ITALIA S.p.A.; ;ACCONTO Fatt.n. 900012819D  del 30/06/2018 pedaggi autostradali giu.2018;22-08-2018;1017;0;28;1;Spese correnti;3;Acquisto di beni e servizi;2;Acquisto di servizi;99;Altri servizi;999;Altri servizi diversi n.a.c.;24-08-2018;
1081;2;1199;"12,21";"16,16";AUTOSTRADE PER L'ITALIA S.p.A.; ;SALDO Fatt.n. 900012819D  del 30/06/2018 pedaggi autostradali giu.2018;22-08-2018;1017;0;28;1;Spese correnti;3;Acquisto di beni e servizi;2;Acquisto di servizi;99;Altri servizi;999;Altri servizi diversi n.a.c.;24-08-2018;
1081;3;1557;"0,23";"16,16";TELEPASS SPA; ;ACCONTO Fatt.n. 900012936T  del 30/06/2018 telepass giu.2018;22-08-2018;1017;0;28;1;Spese correnti;3;Acquisto di beni e servizi;2;Acquisto di servizi;99;Altri servizi;999;Altri servizi diversi n.a.c.;24-08-2018;
1081;4;1557;"1,03";"16,16";TELEPASS SPA; ;SALDO Fatt.n. 900012936T  del 30/06/2018 telepass giu.2018;22-08-2018;1017;0;28;1;Spese correnti;3;Acquisto di beni e servizi;2;Acquisto di servizi;99;Altri servizi;999;Altri servizi diversi n.a.c.;24-08-2018;
1082;1;1558;"2,00";"939,61";POSTE ITALIANE S.P.A.;ZE11FF32F1;ACCONTO Fatt.n. 8718023062  del 26/01/2018 FATTURAZIONE RECAPITO RELATIVO AL MESE DI OTTOBRE 2017;22-08-2018;1043;3;287;1;Spese correnti;3;Acquisto di beni e servizi;2;Acquisto di servizi;16;Servizi amministrativi;2;Spese postali;24-08-2018;
1082;2;1558;"937,61";"939,61";POSTE ITALIANE S.P.A.;ZE11FF32F1;ACCONTO Fatt.n. 8718023062  del 26/01/2018 FATTURAZIONE RECAPITO RELATIVO AL MESE DI OTTOBRE 2017;22-08-2018;1043;3;287;1;Spese correnti;3;Acquisto di beni e servizi;2;Acquisto di servizi;16;Servizi amministrativi;2;Spese postali;24-08-2018;
1083;1;1559;"974,74";"974,74";POSTE ITALIANE S.P.A.;ZE11FF32F1;SALDO Fatt.n. 8718023062  del 26/01/2018 FATTURAZIONE RECAPITO RELATIVO AL MESE DI OTTOBRE 2017;22-08-2018;1043;3;233;1;Spese correnti;3;Acquisto di beni e servizi;2;Acquisto di servizi;16;Servizi amministrativi;2;Spese postali;24-08-2018;
1084;1;1621;"2.999,98";"2.999,98";LO PRESTI GIORGIO;Z9A2466559;SALDO Fatt.n. FATTPA 5_18  del 23/07/2018 INTERVENTO RIPRISTINO ACQUEDOTTO-SOMMA URGENZA DEL 06/07/18;22-08-2018;4035;0;222;2;Spese in conto capitale;2;Investimenti fissi lordi e acquisto di terreni;1;Beni materiali;9;Beni immobili;13;Altre vie di comunicazione;27-08-2018;
1085;1;1622;"6.501,29";"6.501,29";SICULA TRASPORTI S.R.L.;6150991658;SALDO Fatt.n. 1154/03  del 30/06/2018 CONFERIMENTO RIFIUTI GIU.2018;22-08-2018;1743;0;234;1;Spese correnti;3;Acquisto di beni e servizi;2;Acquisto di servizi;15;Contratti di servizio pubblico;5;Contratti di servizio per il conferimento in discarica dei rifiuti;27-08-2018;
1086;1;1560;"7.577,90";"7.577,90";LA TECNICA DI MONDELLO SANTI;Z4C1CCAADX;SALDO Fatt.n. FATTPA 23_18  del 24/07/2018 SMALTIMENTO FANGHI IMP. DEPURAZIONE ARABITE;22-08-2018;10600;7;236;1;Spese correnti;10;Altre spese correnti;99;Altre spese correnti n.a.c.;99;Altre spese correnti n.a.c.;999;Altre spese correnti n.a.c.;24-08-2018;
1087;1;1561;"3.498,84";"3.498,84";LO PRESTI GIORGIO;Z9C249162D;SALDO Fatt.n. FATTPA 6_18  del 24/07/2018 SOMMA URGENZA DEL 27/12/17-RIPRISTINO CONDOTTA FOGNARIA C/DA CASALE;22-08-2018;10600;7;238;1;Spese correnti;10;Altre spese correnti;99;Altre spese correnti n.a.c.;99;Altre spese correnti n.a.c.;999;Altre spese correnti n.a.c.;24-08-2018;
1088;1;1562;"671,00";"671,00";PARAVIA ELEVATORS SERVICE SRL;ZFA23B1668;SALDO Fatt.n. 20181400109  del 23/07/2018 MANUTENZIONE ASCENSORE IST. COMPRENSIVO;22-08-2018;1025;0;161;1;Spese correnti;3;Acquisto di beni e servizi;2;Acquisto di servizi;9;Manutenzione ordinaria e riparazioni;8;Manutenzione ordinaria e riparazioni di beni immobili;24-08-2018;
1089;1;1563;"31,22";"52,78";MISSIONE UFFICIO; ;SALDO Fatt.n. 6/PA  del 10/08/2018 CARTA PER FOTOCOPIATORI;22-08-2018;1043;3;441;1;Spese correnti;3;Acquisto di beni e servizi;2;Acquisto di servizi;16;Servizi amministrativi;2;Spese postali;24-08-2018;
1089;2;1564;"21,56";"52,78";MyO S.R.L.; ;SALDO Fatt.n. 2040/180021210  del 03/08/2018 TONER;22-08-2018;1043;3;441;1;Spese correnti;3;Acquisto di beni e servizi;2;Acquisto di servizi;16;Servizi amministrativi;2;Spese postali;24-08-2018;
1090;1;1623;"416,54";"416,54";ENEL ENERGIA SPA; ;SALDO Fatt.n. 004811395011  del 12/08/2018 FATT. LUG.2018;27-08-2018;6030;5;459;1;Spese correnti;3;Acquisto di beni e servizi;2;Acquisto di servizi;5;Utenze e canoni;4;Energia elettrica;27-08-2018;
1091;1;1624;"169,79";"4.504,13";ENEL ENERGIA SPA; ;SALDO Fatt.n. 004811395009  del 12/08/2018 FATT. I.P. LUG.2018;27-08-2018;6030;12;466;1;Spese correnti;3;Acquisto di beni e servizi;2;Acquisto di servizi;5;Utenze e canoni;4;Energia elettrica;27-08-2018;
1091;2;1624;"4.334,34";"4.504,13";ENEL ENERGIA SPA; ;SALDO Fatt.n. 004811395010  del 12/08/2018 FATT. I.P. LUG.2018;27-08-2018;6030;12;466;1;Spese correnti;3;Acquisto di beni e servizi;2;Acquisto di servizi;5;Utenze e canoni;4;Energia elettrica;27-08-2018;
1093;1;1618;"30,00";"30,00";ANAC AUTORITA' NAZIONALE ANTICORRUZIONE;7258614DC0;"serv. spazzamento,raccolta e trasporto rr.ss.uu. fino a feb.2018-CONTRIBUTO ANAC";27-08-2018;1744;0;438;1;Spese correnti;3;Acquisto di beni e servizi;2;Acquisto di servizi;15;Contratti di servizio pubblico;5;Contratti di servizio per il conferimento in discarica dei rifiuti;27-08-2018;
1094;1;1619;"30,00";"30,00";ANAC AUTORITA' NAZIONALE ANTICORRUZIONE;7258614DC0;"serv. spazzamento,raccolta e trasporto rr.ss.uu. fino a feb.2018-CONTRIBUTO ANAC";27-08-2018;1744;0;437;1;Spese correnti;3;Acquisto di beni e servizi;2;Acquisto di servizi;15;Contratti di servizio pubblico;5;Contratti di servizio per il conferimento in discarica dei rifiuti;27-08-2018;
1095;1;1620;"30,00";"30,00";ANAC AUTORITA' NAZIONALE ANTICORRUZIONE;7292763269;consolidamento via l.da vinci-CONTRIBUTO ANAC;27-08-2018;5276;1;160;2;Spese in conto capitale;2;Investimenti fissi lordi e acquisto di terreni;1;Beni materiali;9;Beni immobili;13;Altre vie di comunicazione;27-08-2018;
1096;1;1625;"0,01";"348,49";M. & D. di CANGEMI LAURA;ZF121637F3;SALDO Fatt.n. 000005-2018-FE  del 30/06/2018 FORNITURA MATERIALE D'USO PER L'ASILO NIDO RIF.DET.N.155 DEL 21/12/2017 PROT.GEN.N.16026/279 DEL 21/12/2017;27-08-2018;1776;1;510;1;Spese correnti;3;Acquisto di beni e servizi;1;Acquisto di beni;2;Altri beni di consumo;999;Altri beni e materiali di consumo n.a.c.;27-08-2018;
1096;2;1625;"108,76";"348,49";M. & D. di CANGEMI LAURA;ZF121637F3;SALDO Fatt.n. 000004-2018-FE  del 30/06/2018 FORNITURA MATERIALE D'USO PER L'ASILO NIDO RIF.DET.N.155 DEL 21/12/2017 PROT.GEN.N.16026/279 DEL 21/12/2017;27-08-2018;1776;1;510;1;Spese correnti;3;Acquisto di beni e servizi;1;Acquisto di beni;2;Altri beni di consumo;999;Altri beni e materiali di consumo n.a.c.;27-08-2018;
1096;3;1625;"116,38";"348,49";M. & D. di CANGEMI LAURA;ZF121637F3;ACCONTO Fatt.n. 000005-2018-FE  del 30/06/2018 FORNITURA MATERIALE D'USO PER L'ASILO NIDO RIF.DET.N.155 DEL 21/12/2017 PROT.GEN.N.16026/279 DEL 21/12/2017;27-08-2018;1776;1;510;1;Spese correnti;3;Acquisto di beni e servizi;1;Acquisto di beni;2;Altri beni di consumo;999;Altri beni e materiali di consumo n.a.c.;27-08-2018;
1096;4;1625;"123,34";"348,49";M. & D. di CANGEMI LAURA;ZF121637F3;SALDO Fatt.n. 000002-2018-FE  del 30/06/2018 FORNITURA MATERIALE D'USO PER L'ASILO NIDO RIF.DET.N.155 DEL 21/12/2017 PROT.GEN.N.16026/279 DEL 21/12/2017;27-08-2018;1776;1;510;1;Spese correnti;3;Acquisto di beni e servizi;1;Acquisto di beni;2;Altri beni di consumo;999;Altri beni e materiali di consumo n.a.c.;27-08-2018;
1097;1;1633;"17.648,17";"17.648,17";GEO PLANTS S.R.L.;7292763269;SALDO Fatt.n. 14/PA  del 30/07/2018 REALIZZAZIONE PIANO DI MONITORAGGIO LAVORI CONSOLIDAMENTO VIA L.DA VINCI;28-08-2018;5276;1;160;2;Spese in conto capitale;2;Investimenti fissi lordi e acquisto di terreni;1;Beni materiali;9;Beni immobili;13;Altre vie di comunicazione;28-08-2018;
1098;1;1634;"9.813,29";"9.813,29";PRINCIOTTA MELINA;Z4F2365D7B;SALDO Fatt.n. FATTPA 1_18  del 03/05/2018 ordinanza sgombero neve n.2 del 06/01/17;28-08-2018;4091;0;551;2;Spese in conto capitale;2;Investimenti fissi lordi e acquisto di terreni;1;Beni materiali;9;Beni immobili;12;Infrastrutture stradali;29-08-2018;
1099;1;1635;"553,71";"553,71";BENFATTA SALVATORE & C. S.N.C.;ZD82457EFB;SALDO Fatt.n. 000003-2018-FATTURE  del 27/07/2018 IMPEGNO SPESA prot. 10120 DEL 26/07/2018-ripristino condotta fognaria Via Palermo;29-08-2018;1577;0;232;1;Spese correnti;3;Acquisto di beni e servizi;2;Acquisto di servizi;9;Manutenzione ordinaria e riparazioni;11;Manutenzione ordinaria e riparazioni di altri beni materiali;29-08-2018;
1100;1;1637;"3.998,55";"3.998,55";MATOS DI MANNINO GABRIELLA;ZC8241046C;SALDO Fatt.n. 54/E  del 24/07/2018 VENDITA DIVISE E UNIFORMI PER P.M.;31-08-2018;1266;0;181;1;Spese correnti;3;Acquisto di beni e servizi;1;Acquisto di beni;2;Altri beni di consumo;4;Vestiario;31-08-2018;
1101;1;1638;"2.885,30";"2.885,30";HALLEY CONSULTING;ZE91C8D94E;SALDO Fatt.n. 20180941  del 02/07/2018 CANONE ASS.ZA SOFTWARE 01/04-30/06/2018;31-08-2018;2100;1;346;1;Spese correnti;3;Acquisto di beni e servizi;2;Acquisto di servizi;19;Servizi informatici e di telecomunicazioni;5;Servizi per i sistemi e relativa manutenzione;31-08-2018;
1102;1;1639;"-0,02";"123,35";M. & D. di CANGEMI LAURA;ZF121637F3;SALDO Fatt.n. 000003-2018-FE  del 30/06/2018 FORNITURA MATERIALE D'USO PER L'ASILO NIDO RIF.DET.N.155 DEL 21/12/2017 PROT.GEN.N.16026/279 DEL 21/12/2017;31-08-2018;1776;1;510;1;Spese correnti;3;Acquisto di beni e servizi;1;Acquisto di beni;2;Altri beni di consumo;999;Altri beni e materiali di consumo n.a.c.;31-08-2018;
1102;2;1639;"123,37";"123,35";M. & D. di CANGEMI LAURA;ZF121637F3;SALDO Fatt.n. 000003-2018-FE  del 30/06/2018 FORNITURA MATERIALE D'USO PER L'ASILO NIDO RIF.DET.N.155 DEL 21/12/2017 PROT.GEN.N.16026/279 DEL 21/12/2017;31-08-2018;1776;1;510;1;Spese correnti;3;Acquisto di beni e servizi;1;Acquisto di beni;2;Altri beni di consumo;999;Altri beni e materiali di consumo n.a.c.;31-08-2018;
1103;1;1640;"3.669,93";"3.669,93";HERA COMM S.r.l.; ;Fatt.n. 411806367513 del 26/07/2018 FORNITURA SERVIZIO ENERGIA ELETTRICA;31-08-2018;6030;9;463;1;Spese correnti;3;Acquisto di beni e servizi;2;Acquisto di servizi;5;Utenze e canoni;4;Energia elettrica;31-08-2018;
1104;1;1641;"48,65";"26.858,73";HERA COMM S.r.l.; ;Fatt.n. 411806367512 del 26/07/2018 FORNITURA SERVIZIO ENERGIA ELETTRICA;31-08-2018;6030;12;466;1;Spese correnti;3;Acquisto di beni e servizi;2;Acquisto di servizi;5;Utenze e canoni;4;Energia elettrica;31-08-2018;
1104;2;1641;"141,15";"26.858,73";HERA COMM S.r.l.; ;Fatt.n. 411806367508 del 26/07/2018 FORNITURA SERVIZIO ENERGIA ELETTRICA;31-08-2018;6030;12;466;1;Spese correnti;3;Acquisto di beni e servizi;2;Acquisto di servizi;5;Utenze e canoni;4;Energia elettrica;31-08-2018;
1104;3;1641;"257,37";"26.858,73";HERA COMM S.r.l.; ;Fatt.n. 411806367521 del 26/07/2018 FORNITURA SERVIZIO ENERGIA ELETTRICA;31-08-2018;6030;12;466;1;Spese correnti;3;Acquisto di beni e servizi;2;Acquisto di servizi;5;Utenze e canoni;4;Energia elettrica;31-08-2018;
1104;4;1641;"1.010,79";"26.858,73";HERA COMM S.r.l.; ;Fatt.n. 411806367518 del 26/07/2018 FORNITURA SERVIZIO ENERGIA ELETTRICA;31-08-2018;6030;12;466;1;Spese correnti;3;Acquisto di beni e servizi;2;Acquisto di servizi;5;Utenze e canoni;4;Energia elettrica;31-08-2018;
1104;5;1641;"1.850,31";"26.858,73";HERA COMM S.r.l.; ;Fatt.n. 411806367519 del 26/07/2018 FORNITURA SERVIZIO ENERGIA ELETTRICA;31-08-2018;6030;12;466;1;Spese correnti;3;Acquisto di beni e servizi;2;Acquisto di servizi;5;Utenze e canoni;4;Energia elettrica;31-08-2018;
1104;6;1641;"2.353,31";"26.858,73";HERA COMM S.r.l.; ;Fatt.n. 411806367514 del 26/07/2018 FORNITURA SERVIZIO ENERGIA ELETTRICA;31-08-2018;6030;12;466;1;Spese correnti;3;Acquisto di beni e servizi;2;Acquisto di servizi;5;Utenze e canoni;4;Energia elettrica;31-08-2018;
1104;7;1641;"3.928,29";"26.858,73";HERA COMM S.r.l.; ;Fatt.n. 411806367516 del 26/07/2018 FORNITURA SERVIZIO ENERGIA ELETTRICA;31-08-2018;6030;12;466;1;Spese correnti;3;Acquisto di beni e servizi;2;Acquisto di servizi;5;Utenze e canoni;4;Energia elettrica;31-08-2018;
1104;8;1641;"4.400,57";"26.858,73";HERA COMM S.r.l.; ;Fatt.n. 411806367509 del 26/07/2018 FORNITURA SERVIZIO ENERGIA ELETTRICA;31-08-2018;6030;12;466;1;Spese correnti;3;Acquisto di beni e servizi;2;Acquisto di servizi;5;Utenze e canoni;4;Energia elettrica;31-08-2018;
1104;9;1641;"12.868,29";"26.858,73";HERA COMM S.r.l.; ;Fatt.n. 411806367517 del 26/07/2018 FORNITURA SERVIZIO ENERGIA ELETTRICA;31-08-2018;6030;12;466;1;Spese correnti;3;Acquisto di beni e servizi;2;Acquisto di servizi;5;Utenze e canoni;4;Energia elettrica;31-08-2018;
1105;1;1642;"113,94";"819,74";HERA COMM S.r.l.; ;Fatt.n. 411806367515 del 26/07/2018 FORNITURA SERVIZIO ENERGIA ELETTRICA;31-08-2018;6030;13;467;1;Spese correnti;3;Acquisto di beni e servizi;2;Acquisto di servizi;5;Utenze e canoni;4;Energia elettrica;31-08-2018;
1105;2;1642;"174,91";"819,74";HERA COMM S.r.l.; ;Fatt.n. 411806367520 del 26/07/2018 FORNITURA SERVIZIO ENERGIA ELETTRICA;31-08-2018;6030;13;467;1;Spese correnti;3;Acquisto di beni e servizi;2;Acquisto di servizi;5;Utenze e canoni;4;Energia elettrica;31-08-2018;
1105;3;1642;"181,87";"819,74";HERA COMM S.r.l.; ;Fatt.n. 411806367510 del 26/07/2018 FORNITURA SERVIZIO ENERGIA ELETTRICA;31-08-2018;6030;13;467;1;Spese correnti;3;Acquisto di beni e servizi;2;Acquisto di servizi;5;Utenze e canoni;4;Energia elettrica;31-08-2018;
1105;4;1642;"349,02";"819,74";HERA COMM S.r.l.; ;Fatt.n. 411806367511 del 26/07/2018 FORNITURA SERVIZIO ENERGIA ELETTRICA;31-08-2018;6030;13;467;1;Spese correnti;3;Acquisto di beni e servizi;2;Acquisto di servizi;5;Utenze e canoni;4;Energia elettrica;31-08-2018;
1106;1;1643;"1.000,00";"1.000,00";CAFARELLI TINDARO;ZF323EAC33;SALDO Fatt.n. 000003-2018-CATI  del 01/08/2018 SALDO INTEGRAZIONE FORNITURA GASOLIO;31-08-2018;1579;0;213;1;Spese correnti;3;Acquisto di beni e servizi;2;Acquisto di servizi;9;Manutenzione ordinaria e riparazioni;8;Manutenzione ordinaria e riparazioni di beni immobili;31-08-2018;
1107;1;1644;"1.781,48";"1.781,48";CARTAREGIA COSIMO;Z032181600;SALDO Fatt.n. 17/PA  del 02/08/2018 lRif. Determina prot. 04  dell'11/01/2018-manutenz. imp. pubblica ill.ne lug.2018;31-08-2018;3930;1;586;1;Spese correnti;3;Acquisto di beni e servizi;2;Acquisto di servizi;15;Contratti di servizio pubblico;999;Altre spese per contratti di servizio pubblico;31-08-2018;
1108;1;1645;"1.518,37";"2.011,84";FIORE SALVATORE VITTORIO; ;INDENNITA' FUNZIONE AGOSTO 2018;03-09-2018;1001;0;18;1;Spese correnti;3;Acquisto di beni e servizi;2;Acquisto di servizi;1;Organi e incarichi istituzionali dell'amministrazione;1;Organi istituzionali dell'amministrazione - Indennità;03-09-2018;
1108;2;1646;"151,83";"2.011,84";INTERDONATO ARMANDO; ;INDENNITA' FUNZIONE AGOSTO 2018;03-09-2018;1001;0;18;1;Spese correnti;3;Acquisto di beni e servizi;2;Acquisto di servizi;1;Organi e incarichi istituzionali dell'amministrazione;1;Organi istituzionali dell'amministrazione - Indennità;03-09-2018;
1108;3;1647;"113,88";"2.011,84";LAMANCUSA MARCO; ;INDENNITA' FUNZIONE AGOSTO 2018;03-09-2018;1001;0;18;1;Spese correnti;3;Acquisto di beni e servizi;2;Acquisto di servizi;1;Organi e incarichi istituzionali dell'amministrazione;1;Organi istituzionali dell'amministrazione - Indennità;03-09-2018;
1108;4;1648;"227,76";"2.011,84";PETTINATO  ROSA SANDRA; ;INDENNITA' FUNZIONE AGOSTO 2018;03-09-2018;1001;0;18;1;Spese correnti;3;Acquisto di beni e servizi;2;Acquisto di servizi;1;Organi e incarichi istituzionali dell'amministrazione;1;Organi istituzionali dell'amministrazione - Indennità;03-09-2018;
1109;1;1649;"227,76";"227,76";FORZANO GIUSEPPE; ;INDENNITA' FUNZIONE PRESIDENTE C.C. AGOSTO 2018;03-09-2018;1001;0;56;1;Spese correnti;3;Acquisto di beni e servizi;2;Acquisto di servizi;1;Organi e incarichi istituzionali dell'amministrazione;1;Organi istituzionali dell'amministrazione - Indennità;03-09-2018;
1111;1;1657;"350,00";"1.050,00";CASTELLINO ANTONINO; ;CONTRIBUTO ASSISTENZA ECONOMICA FAMIGLIE E PERSONE BISOGNOSE ANNO 2018;04-09-2018;1900;0;200;1;Spese correnti;4;Trasferimenti correnti;2;Trasferimenti correnti a Famiglie;1;Interventi previdenziali;999;Altri sussidi e assegni;10-09-2018;
1111;2;1650;"350,00";"1.050,00";SARDO MARIA PIETRINA; ;CONTRIBUTO ASSISTENZA ECONOMICA FAMIGLIE E PERSONE BISOGNOSE ANNO 2018;04-09-2018;1900;0;200;1;Spese correnti;4;Trasferimenti correnti;2;Trasferimenti correnti a Famiglie;1;Interventi previdenziali;999;Altri sussidi e assegni;04-09-2018;
1111;3;1651;"350,00";"1.050,00";STARVAGGI DANIELA; ;CONTRIBUTO ASSISTENZA ECONOMICA FAMIGLIE E PERSONE BISOGNOSE ANNO 2018;04-09-2018;1900;0;200;1;Spese correnti;4;Trasferimenti correnti;2;Trasferimenti correnti a Famiglie;1;Interventi previdenziali;999;Altri sussidi e assegni;04-09-2018;
1112;1;1652;"5.431,11";"5.431,11";S.R.R. MESSINA PROVINCIA SOC. CONSOR. SPA; ;ACCONTO Fatt.n. 271  del 30/07/2018 QUOTA STRUTTURA AZIENDALE SRR MESSINA PROVINCIA;07-09-2018;1752;2;170;1;Spese correnti;4;Trasferimenti correnti;3;Trasferimenti correnti a Imprese;99;Trasferimenti correnti a altre imprese;999;Trasferimenti correnti a altre imprese;07-09-2018;
1113;1;1653;"984,00";"984,00";FORZANO ANGELA; ;restituzione somme ditta Forzano Angela-COMPENSAZIONE CON TIA ANNO 2012;07-09-2018;4035;0;562;2;Spese in conto capitale;2;Investimenti fissi lordi e acquisto di terreni;1;Beni materiali;9;Beni immobili;13;Altre vie di comunicazione;07-09-2018;
1114;1;1654;"267,44";"267,44";FORZANO ANGELA; ;restituzione somme ditta Forzano Angela-COMPENSAZIONE IN ACC. S/DO TARES 2013;07-09-2018;4035;0;562;2;Spese in conto capitale;2;Investimenti fissi lordi e acquisto di terreni;1;Beni materiali;9;Beni immobili;13;Altre vie di comunicazione;07-09-2018;
1115;1;1655;"100,03";"100,03";CAPORLINGUA GIUSEPPE; ;restituzione somme ditta Caporlingua Giuseppe ed altri-COMPENSAZIONE RUOLO ACQUA ACC.2016;07-09-2018;4035;0;563;2;Spese in conto capitale;2;Investimenti fissi lordi e acquisto di terreni;1;Beni materiali;9;Beni immobili;13;Altre vie di comunicazione;07-09-2018;
1116;1;1656;"11,17";"11,17";CAPORLINGUA GIUSEPPE; ;restituzione somme ditta Caporlingua Giuseppe ed altri-COMPENSAZIONE CON RUOLO FOGNATURA ACC.2016;07-09-2018;4035;0;563;2;Spese in conto capitale;2;Investimenti fissi lordi e acquisto di terreni;1;Beni materiali;9;Beni immobili;13;Altre vie di comunicazione;07-09-2018;
1117;1;0;"1,30";"1,30";CAPORLINGUA GIUSEPPE; ;restituzione somme ditta Caporlingua Giuseppe ed altri-SALDO;07-09-2018;4035;0;563;2;Spese in conto capitale;2;Investimenti fissi lordi e acquisto di terreni;1;Beni materiali;9;Beni immobili;13;Altre vie di comunicazione;07-09-2018;
1118;1;1658;"1.220,00";"1.220,00";HALLEY CONSULTING;ZD32434EC4;SALDO Fatt.n. 20181120  del 10/07/2018 Quota parziale servizio adeguamento normativo con l'ARERA servizio idrico integrato;10-09-2018;2100;2;196;1;Spese correnti;3;Acquisto di beni e servizi;2;Acquisto di servizi;19;Servizi informatici e di telecomunicazioni;5;Servizi per i sistemi e relativa manutenzione;10-09-2018;
1119;1;1659;"5,09";"29,46";AUTOSTRADE PER L'ITALIA S.p.A.; ;SALDO Fatt.n. 900017266D  del 30/08/2018 PEDAGGI AUTOSTRADALI AGO. 2018;11-09-2018;1017;0;28;1;Spese correnti;3;Acquisto di beni e servizi;2;Acquisto di servizi;99;Altri servizi;999;Altri servizi diversi n.a.c.;11-09-2018;
1119;2;1636;"23,11";"29,46";AUTOSTRADE PER L'ITALIA S.p.A.; ;ACCONTO Fatt.n. 900017266D  del 30/08/2018 PEDAGGI AUTOSTRADALI AGO. 2018;11-09-2018;1017;0;28;1;Spese correnti;3;Acquisto di beni e servizi;2;Acquisto di servizi;99;Altri servizi;999;Altri servizi diversi n.a.c.;11-09-2018;
1119;3;1660;"0,23";"29,46";TELEPASS SPA; ;ACCONTO Fatt.n. 900017337T  del 30/08/2018;11-09-2018;1017;0;28;1;Spese correnti;3;Acquisto di beni e servizi;2;Acquisto di servizi;99;Altri servizi;999;Altri servizi diversi n.a.c.;11-09-2018;
1119;4;1660;"1,03";"29,46";TELEPASS SPA; ;SALDO Fatt.n. 900017337T  del 30/08/2018;11-09-2018;1017;0;28;1;Spese correnti;3;Acquisto di beni e servizi;2;Acquisto di servizi;99;Altri servizi;999;Altri servizi diversi n.a.c.;11-09-2018;
1121;1;1665;"344,74";"344,74";ORIFICI CARMELO-MARTINO CARMELA; ;CANONE LOCAZIONE IMMOBILE P.M. mese di settembre 2018;12-09-2018;2230;0;154;1;Spese correnti;3;Acquisto di beni e servizi;2;Acquisto di servizi;7;Utilizzo di beni di terzi;1;Locazione di beni immobili;12-09-2018;
1122;1;1666;"2.052,77";"2.052,77";LO PRESTI GIORGIO;Z7924A66D9;SALDO Fatt.n. FATTPA 7_18  del 13/08/2018 ripristino acquedotto centro e frazioni-somma urgenza del 19/07/18;12-09-2018;3304;8;252;2;Spese in conto capitale;2;Investimenti fissi lordi e acquisto di terreni;1;Beni materiali;9;Beni immobili;10;Infrastrutture idrauliche;12-09-2018;
1123;1;1667;"250,00";"250,00";MISSIONE UFFICIO;Z8C210ED2C;Fatt.n. 25/P del 31/05/2018 CARTA PER FOTOCOPIATORI;12-09-2018;6050;1;420;1;Spese correnti;3;Acquisto di beni e servizi;1;Acquisto di beni;2;Altri beni di consumo;1;"Carta, cancelleria e stampati";12-09-2018;
1124;1;1668;"134,00";"134,00";MISSIONE UFFICIO;Z8C210ED2C;Fatt.n. 25/P del 31/05/2018 CARTA PER FOTOCOPIATORI;12-09-2018;6050;2;421;1;Spese correnti;3;Acquisto di beni e servizi;1;Acquisto di beni;2;Altri beni di consumo;1;"Carta, cancelleria e stampati";12-09-2018;
1125;1;1669;"48,00";"48,00";MISSIONE UFFICIO;Z8C210ED2C;Fatt.n. 25/P del 31/05/2018 CARTA PER FOTOCOPIATORI;12-09-2018;6050;3;422;1;Spese correnti;3;Acquisto di beni e servizi;1;Acquisto di beni;2;Altri beni di consumo;1;"Carta, cancelleria e stampati";12-09-2018;
1126;1;1670;"35,00";"35,00";MISSIONE UFFICIO;Z8C210ED2C;Fatt.n. 25/P del 31/05/2018 CARTA PER FOTOCOPIATORI;12-09-2018;6050;5;423;1;Spese correnti;3;Acquisto di beni e servizi;1;Acquisto di beni;2;Altri beni di consumo;1;"Carta, cancelleria e stampati";12-09-2018;
1127;1;1671;"200,00";"200,00";MISSIONE UFFICIO;Z8C210ED2C;Fatt.n. 25/P del 31/05/2018 CARTA PER FOTOCOPIATORI;12-09-2018;6050;6;424;1;Spese correnti;3;Acquisto di beni e servizi;1;Acquisto di beni;2;Altri beni di consumo;1;"Carta, cancelleria e stampati";12-09-2018;
1128;1;1672;"56,73";"56,73";MISSIONE UFFICIO;Z8C210ED2C;Fatt.n. 25/P del 31/05/2018 CARTA PER FOTOCOPIATORI;12-09-2018;6050;9;425;1;Spese correnti;3;Acquisto di beni e servizi;1;Acquisto di beni;2;Altri beni di consumo;1;"Carta, cancelleria e stampati";12-09-2018;
1129;1;1673;"210,00";"210,00";MISSIONE UFFICIO;Z8C210ED2C;Fatt.n. 25/P del 31/05/2018 CARTA PER FOTOCOPIATORI;12-09-2018;6050;11;426;1;Spese correnti;3;Acquisto di beni e servizi;1;Acquisto di beni;2;Altri beni di consumo;1;"Carta, cancelleria e stampati";12-09-2018;
1130;1;1674;"50,00";"50,00";MISSIONE UFFICIO;Z8C210ED2C;Fatt.n. 25/P del 31/05/2018 CARTA PER FOTOCOPIATORI;12-09-2018;6050;13;427;1;Spese correnti;3;Acquisto di beni e servizi;1;Acquisto di beni;2;Altri beni di consumo;1;"Carta, cancelleria e stampati";12-09-2018;
1131;1;1675;"220,00";"220,00";MISSIONE UFFICIO;Z8C210ED2C;Fatt.n. 25/P del 31/05/2018 CARTA PER FOTOCOPIATORI;12-09-2018;6050;14;428;1;Spese correnti;3;Acquisto di beni e servizi;1;Acquisto di beni;2;Altri beni di consumo;1;"Carta, cancelleria e stampati";12-09-2018;
1132;1;1676;"134,00";"134,00";MISSIONE UFFICIO;Z8C210ED2C;Fatt.n. 25/P del 31/05/2018 CARTA PER FOTOCOPIATORI;12-09-2018;6050;18;429;1;Spese correnti;3;Acquisto di beni e servizi;1;Acquisto di beni;2;Altri beni di consumo;1;"Carta, cancelleria e stampati";12-09-2018;
1133;1;1677;"410,21";"410,21";PENNISI SALVATORE;ZD0232633A;SALDO Fatt.n. 333  del 10/08/2018 VENDITA ESTINTORI E PIANTANE;12-09-2018;1025;0;174;1;Spese correnti;3;Acquisto di beni e servizi;2;Acquisto di servizi;9;Manutenzione ordinaria e riparazioni;8;Manutenzione ordinaria e riparazioni di beni immobili;12-09-2018;
1134;1;1661;"4,96";"3.106,57";TELECOM ITALIA S.P.A.-TIM SPA; ;Fatt.n. 8A00581776 del 06/08/2018 sc. 17/09/2018 5BIM 2018;12-09-2018;6040;5;390;1;Spese correnti;3;Acquisto di beni e servizi;2;Acquisto di servizi;5;Utenze e canoni;1;Telefonia fissa;12-09-2018;
1134;2;1661;"74,49";"3.106,57";TELECOM ITALIA S.P.A.-TIM SPA; ;Fatt.n. 8V00371647 del 06/08/2018 sc. 17/09/2018 5BIM 2018;12-09-2018;6040;5;390;1;Spese correnti;3;Acquisto di beni e servizi;2;Acquisto di servizi;5;Utenze e canoni;1;Telefonia fissa;12-09-2018;
1134;3;1661;"389,34";"3.106,57";TELECOM ITALIA S.P.A.-TIM SPA; ;Fatt.n. 8V00370917 del 06/08/2018 sc. 17/09/2018 5BIM 2018;12-09-2018;6040;5;390;1;Spese correnti;3;Acquisto di beni e servizi;2;Acquisto di servizi;5;Utenze e canoni;1;Telefonia fissa;12-09-2018;
1134;4;1661;"816,44";"3.106,57";TELECOM ITALIA S.P.A.-TIM SPA; ;Fatt.n. 8V00371650 del 06/08/2018 sc. 17/09/2018 5BIM 2018;12-09-2018;6040;5;390;1;Spese correnti;3;Acquisto di beni e servizi;2;Acquisto di servizi;5;Utenze e canoni;1;Telefonia fissa;12-09-2018;
1134;5;1661;"834,26";"3.106,57";TELECOM ITALIA S.P.A.-TIM SPA; ;Fatt.n. 8V00369791 del 06/08/2018 sc. 17/09/2018 5BIM 2018;12-09-2018;6040;5;390;1;Spese correnti;3;Acquisto di beni e servizi;2;Acquisto di servizi;5;Utenze e canoni;1;Telefonia fissa;12-09-2018;
1134;6;1661;"987,08";"3.106,57";TELECOM ITALIA S.P.A.-TIM SPA; ;Fatt.n. 4220918800007867 del 06/08/2018 sc. 17/09/2018 5BIM 2018;12-09-2018;6040;5;390;1;Spese correnti;3;Acquisto di beni e servizi;2;Acquisto di servizi;5;Utenze e canoni;1;Telefonia fissa;12-09-2018;
1135;1;1662;"76,39";"211,86";TELECOM ITALIA S.P.A.-TIM SPA; ;Fatt.n. 8V00371374 del 06/08/2018 sc. 17/09/2018 5BIM 2018;12-09-2018;6040;6;391;1;Spese correnti;3;Acquisto di beni e servizi;2;Acquisto di servizi;5;Utenze e canoni;1;Telefonia fissa;12-09-2018;
1135;2;1662;"135,47";"211,86";TELECOM ITALIA S.P.A.-TIM SPA; ;Fatt.n. 4220918800007863 del 06/08/2018 sc. 17/09/2018 5BIM 2018;12-09-2018;6040;6;391;1;Spese correnti;3;Acquisto di beni e servizi;2;Acquisto di servizi;5;Utenze e canoni;1;Telefonia fissa;12-09-2018;
1136;1;1663;"76,39";"219,05";TELECOM ITALIA S.P.A.-TIM SPA; ;Fatt.n. 8V00368213 del 06/08/2018 sc. 17/09/2018 5BIM 2018;12-09-2018;6040;10;393;1;Spese correnti;3;Acquisto di beni e servizi;2;Acquisto di servizi;5;Utenze e canoni;1;Telefonia fissa;12-09-2018;
1136;2;1663;"142,66";"219,05";TELECOM ITALIA S.P.A.-TIM SPA; ;Fatt.n. 4220918800007867 del 06/08/2018 sc. 17/09/2018 5BIM 2018;12-09-2018;6040;10;393;1;Spese correnti;3;Acquisto di beni e servizi;2;Acquisto di servizi;5;Utenze e canoni;1;Telefonia fissa;12-09-2018;
1138;1;1679;"14,01";"111,00";KUWAIT PETROLEUM ITALIA S.P.A.;6516542493;Fatt.n. PJ00224986 del 31/07/2018 sc. 14/09/2018 CARBURANTE AUTOMEZZI COMUNALI LUG.2018;13-09-2018;6080;1;22;1;Spese correnti;3;Acquisto di beni e servizi;1;Acquisto di beni;2;Altri beni di consumo;2;"Carburanti, combustibili e lubrificanti";13-09-2018;
1138;2;1679;"96,99";"111,00";KUWAIT PETROLEUM ITALIA S.P.A.;6516542493;Fatt.n. PJ00224986 del 31/07/2018 sc. 14/09/2018 CARBURANTE AUTOMEZZI COMUNALI LUG.2018;13-09-2018;6080;1;22;1;Spese correnti;3;Acquisto di beni e servizi;1;Acquisto di beni;2;Altri beni di consumo;2;"Carburanti, combustibili e lubrificanti";13-09-2018;
1139;1;1680;"98,00";"98,00";KUWAIT PETROLEUM ITALIA S.P.A.;6516542493;Fatt.n. PJ00224986 del 31/07/2018 sc. 14/09/2018 CARBURANTE AUTOMEZZI COMUNALI LUG.2018;13-09-2018;6080;2;23;1;Spese correnti;3;Acquisto di beni e servizi;1;Acquisto di beni;2;Altri beni di consumo;2;"Carburanti, combustibili e lubrificanti";13-09-2018;
1140;1;1681;"242,00";"242,00";KUWAIT PETROLEUM ITALIA S.P.A.;6516542493;Fatt.n. PJ00224986 del 31/07/2018 sc. 14/09/2018 CARBURANTE AUTOMEZZI COMUNALI LUG.2018;13-09-2018;6080;3;24;1;Spese correnti;3;Acquisto di beni e servizi;1;Acquisto di beni;2;Altri beni di consumo;2;"Carburanti, combustibili e lubrificanti";13-09-2018;
1141;1;1682;"348,63";"348,63";KUWAIT PETROLEUM ITALIA S.P.A.;6516542493;Fatt.n. PJ00224986 del 31/07/2018 sc. 14/09/2018 CARBURANTE AUTOMEZZI COMUNALI LUG.2018;13-09-2018;6080;4;25;1;Spese correnti;3;Acquisto di beni e servizi;1;Acquisto di beni;2;Altri beni di consumo;2;"Carburanti, combustibili e lubrificanti";13-09-2018;
1142;1;1683;"330,00";"330,00";KUWAIT PETROLEUM ITALIA S.P.A.;6516542493;Fatt.n. PJ00224986 del 31/07/2018 sc. 14/09/2018 CARBURANTE AUTOMEZZI COMUNALI LUG.2018;13-09-2018;6080;5;26;1;Spese correnti;3;Acquisto di beni e servizi;1;Acquisto di beni;2;Altri beni di consumo;2;"Carburanti, combustibili e lubrificanti";13-09-2018;
1143;1;1684;"277,00";"277,00";KUWAIT PETROLEUM ITALIA S.P.A.;6516542493;Fatt.n. PJ00224986 del 31/07/2018 sc. 14/09/2018 CARBURANTE AUTOMEZZI COMUNALI LUG.2018;13-09-2018;6080;7;27;1;Spese correnti;3;Acquisto di beni e servizi;1;Acquisto di beni;2;Altri beni di consumo;2;"Carburanti, combustibili e lubrificanti";13-09-2018;
1144;1;1685;"2.440,00";"2.440,00";HALLEY CONSULTING;ZD32434EC4;SALDO Fatt.n. 20181146  del 17/07/2018 QUOTA PARZIALE SERVIZIO ADEGUAMENTO NORMATIVO CON L'ARERA ANNO 2018;13-09-2018;2100;2;196;1;Spese correnti;3;Acquisto di beni e servizi;2;Acquisto di servizi;19;Servizi informatici e di telecomunicazioni;5;Servizi per i sistemi e relativa manutenzione;13-09-2018;
1145;1;1686;"3.991,90";"3.991,90";BENFATTA SALVATORE & C. S.N.C.;Z27245571E;SALDO Fatt.n. 000004-2018-FATTURE  del 16/08/2018 DETERMINA N.115 DEL 12/07/2018-manutenzione e pulitura bottini di raccolta sorgenti;13-09-2018;1690;2;215;1;Spese correnti;3;Acquisto di beni e servizi;2;Acquisto di servizi;9;Manutenzione ordinaria e riparazioni;11;Manutenzione ordinaria e riparazioni di altri beni materiali;13-09-2018;
1146;1;1687;"4.211,15";"4.211,15";SICULA TRASPORTI S.R.L.;6150991658;SALDO Fatt.n. 1387/03  del 31/07/2018 CONFERIMENTO IN DISCARICA PER SMALT. RIFIUTI LUGLIO 2018;13-09-2018;1743;0;261;1;Spese correnti;3;Acquisto di beni e servizi;2;Acquisto di servizi;15;Contratti di servizio pubblico;5;Contratti di servizio per il conferimento in discarica dei rifiuti;13-09-2018;
1147;1;1722;"37,80";"37,80";ZS INFORMATICA S.R.L.; ;SALDO Fatt.n. 151  del 04/08/2018 INTERVENTO DEL 23/07/2018;20-09-2018;2120;2;274;1;Spese correnti;3;Acquisto di beni e servizi;2;Acquisto di servizi;9;Manutenzione ordinaria e riparazioni;11;Manutenzione ordinaria e riparazioni di altri beni materiali;21-09-2018;
1192;1;1738;"3.330,60";"3.330,60";EREDI PASCALE A.N. DI PASCALE ADRIANO & C. SAS;Z102365D2B;SALDO Fatt.n. 000003-2018-FE  del 03/05/2018 ORDINANZA N.4 DEL 6/01/2017;21-09-2018;4091;0;549;2;Spese in conto capitale;2;Investimenti fissi lordi e acquisto di terreni;1;Beni materiali;9;Beni immobili;12;Infrastrutture stradali;21-09-2018;
1193;1;1739;"367,39";"367,39";ENEL ENERGIA SPA; ;SALDO Fatt.n. 004811565641  del 06/09/2018 FATT. AGO.2018-CHIUSURA CONTRATTO;21-09-2018;6030;5;459;1;Spese correnti;3;Acquisto di beni e servizi;2;Acquisto di servizi;5;Utenze e canoni;4;Energia elettrica;21-09-2018;
1194;1;1740;"71,78";"5.158,92";ENEL ENERGIA SPA; ;SALDO Fatt.n. 004811532949  del 06/09/2018 FATT. LUG./AGO.2018;21-09-2018;6030;12;466;1;Spese correnti;3;Acquisto di beni e servizi;2;Acquisto di servizi;5;Utenze e canoni;4;Energia elettrica;21-09-2018;
1194;2;1740;"195,22";"5.158,92";ENEL ENERGIA SPA; ;SALDO Fatt.n. 004811565639  del 06/09/2018 FATT. AGO.2018-CHIUSURA CONTRATTO;21-09-2018;6030;12;466;1;Spese correnti;3;Acquisto di beni e servizi;2;Acquisto di servizi;5;Utenze e canoni;4;Energia elettrica;21-09-2018;
1194;3;1740;"4.891,92";"5.158,92";ENEL ENERGIA SPA; ;SALDO Fatt.n. 004811565640  del 06/09/2018 FATT. AGO.2018-CHIUSURA CONTRATTO;21-09-2018;6030;12;466;1;Spese correnti;3;Acquisto di beni e servizi;2;Acquisto di servizi;5;Utenze e canoni;4;Energia elettrica;21-09-2018;
1195;1;1721;"217,50";"217,50";AGENZIA DELLE ENTRATE; ;REGISTRAZIONE SENTENZA TRIB. DI PATTI N.105/2018;21-09-2018;1058;0;264;1;Spese correnti;3;Acquisto di beni e servizi;2;Acquisto di servizi;99;Altri servizi;2;Altre spese legali;21-09-2018;
1196;1;1741;"7.460,30";"7.460,30";PRINCIOTTA MELINA;ZF0243F957;SALDO Fatt.n. FATTPA 4_18  del 12/09/2018 PULITURA CADITOIE STRADALI;24-09-2018;1744;1;204;1;Spese correnti;3;Acquisto di beni e servizi;2;Acquisto di servizi;15;Contratti di servizio pubblico;5;Contratti di servizio per il conferimento in discarica dei rifiuti;24-09-2018;
1197;1;1742;"2.918,42";"2.918,42";ANTONINO MASTRANTONIO "EDIL M.A.S." COSTRUZIONI;Z89218925C;SALDO Fatt.n. 000001-2018-FE  del 31/01/2018 SALDO INTERVENTI URGENTI DETERMINA 312 DEL 29/12/2017;26-09-2018;4091;0;552;2;Spese in conto capitale;2;Investimenti fissi lordi e acquisto di terreni;1;Beni materiali;9;Beni immobili;12;Infrastrutture stradali;26-09-2018;
1198;1;1795;"103,19";"103,19";EDISON ENERGIE S.P.A.; ;SALDO Fatt.n. FI18366000007917  del 05/09/2018 canoni e consumi gas metano fatturazione periodo 29/05-21/08/2018;26-09-2018;6160;0;394;1;Spese correnti;3;Acquisto di beni e servizi;2;Acquisto di servizi;5;Utenze e canoni;6;Gas;27-09-2018;
1199;1;1796;"35,28";"35,28";EDISON ENERGIE S.P.A.; ;SALDO Fatt.n. FI18366000007916  del 05/09/2018 canoni e consumi gas metano fatturazione periodo 30/05-21/08/2018;26-09-2018;6160;1;395;1;Spese correnti;3;Acquisto di beni e servizi;2;Acquisto di servizi;5;Utenze e canoni;999;Utenze e canoni per altri servizi n.a.c.;27-09-2018;
1200;1;1797;"174,24";"174,24";ASMEL CONSORTILE ARL;7292763269;SALDO Fatt.n. 0126/PA  del 30/08/2018 Affidamento appalto per la realizzazione del piano di monitoraggio in seguito all'esecuzione dei lavori di consolidamento zona centro abitato compresa tra la via L. Da Vinci e la via Catania.;27-09-2018;5276;1;160;2;Spese in conto capitale;2;Investimenti fissi lordi e acquisto di terreni;1;Beni materiali;9;Beni immobili;13;Altre vie di comunicazione;27-09-2018;
1201;1;1798;"219,74";"219,74";ASMEL CONSORTILE ARL;7258614DC0;"ACCONTO Fatt.n. 0125/PA  del 30/08/2018 Affidamento, mediante procedura negoziata del Servizio di spazzamento, raccolta e trasporto allo smaltimento dei rifiuti solidi urbani differenziati e indifferenziati dal 17/11/2017 al 28/02/2018.";27-09-2018;1744;0;437;1;Spese correnti;3;Acquisto di beni e servizi;2;Acquisto di servizi;15;Contratti di servizio pubblico;5;Contratti di servizio per il conferimento in discarica dei rifiuti;27-09-2018;
1202;1;1799;"48,34";"48,34";ASMEL CONSORTILE ARL;7258614DC0;"SALDO Fatt.n. 0125/PA  del 30/08/2018 Affidamento, mediante procedura negoziata del Servizio di spazzamento, raccolta e trasporto allo smaltimento dei rifiuti solidi urbani differenziati e indifferenziati dal 17/11/2017 al 28/02/2018.";27-09-2018;1744;0;437;1;Spese correnti;3;Acquisto di beni e servizi;2;Acquisto di servizi;15;Contratti di servizio pubblico;5;Contratti di servizio per il conferimento in discarica dei rifiuti;27-09-2018;
1203;1;1800;"6.930,00";"6.930,00";ASSOCIAZIONE CULTURALE CIRCOLO ARTISTI;Z72246EE9E;SALDO Fatt.n. FATTPA 10_18  del 30/08/2018 Prestazione artistica I Soldi Spicci g.13/08/2018;27-09-2018;1512;1;225;1;Spese correnti;3;Acquisto di beni e servizi;2;Acquisto di servizi;2;"Organizzazione eventi, pubblicita` e servizi per trasferta";5;Organizzazione e partecipazione a manifestazioni e convegni;27-09-2018;
1204;1;1801;"656,02";"656,02";Xerox Spa;ZF21C92253;SALDO Fatt.n. 180009678 /G  del 02/08/2018 noleggio fotocopiatori 01/05-31/07/2018;27-09-2018;2110;3;436;1;Spese correnti;3;Acquisto di beni e servizi;2;Acquisto di servizi;7;Utilizzo di beni di terzi;8;Noleggi di impianti e macchinari;27-09-2018;
1205;1;1802;"43,15";"43,15";HERA COMM S.r.l.; ;Fatt.n. 411806705316 del 09/08/2018 FORNITURA SERVIZIO ENERGIA ELETTRICA;27-09-2018;6030;6;460;1;Spese correnti;3;Acquisto di beni e servizi;2;Acquisto di servizi;5;Utenze e canoni;4;Energia elettrica;27-09-2018;
1206;1;1803;"33,64";"33,64";HERA COMM S.r.l.; ;Fatt.n. 411806705332 del 09/08/2018 FORNITURA SERVIZIO ENERGIA ELETTRICA;27-09-2018;6030;7;461;1;Spese correnti;3;Acquisto di beni e servizi;2;Acquisto di servizi;5;Utenze e canoni;4;Energia elettrica;27-09-2018;
1207;1;1804;"19,11";"101,10";HERA COMM S.r.l.; ;Fatt.n. 411806705319 del 09/08/2018 FORNITURA SERVIZIO ENERGIA ELETTRICA;27-09-2018;6030;8;462;1;Spese correnti;3;Acquisto di beni e servizi;2;Acquisto di servizi;5;Utenze e canoni;4;Energia elettrica;27-09-2018;
1207;2;1804;"37,31";"101,10";HERA COMM S.r.l.; ;Fatt.n. 411806705298 del 09/08/2018 FORNITURA SERVIZIO ENERGIA ELETTRICA;27-09-2018;6030;8;462;1;Spese correnti;3;Acquisto di beni e servizi;2;Acquisto di servizi;5;Utenze e canoni;4;Energia elettrica;27-09-2018;
1207;3;1804;"44,68";"101,10";HERA COMM S.r.l.; ;Fatt.n. 411806705333 del 09/08/2018 FORNITURA SERVIZIO ENERGIA ELETTRICA;27-09-2018;6030;8;462;1;Spese correnti;3;Acquisto di beni e servizi;2;Acquisto di servizi;5;Utenze e canoni;4;Energia elettrica;27-09-2018;
1208;1;1805;"343,34";"343,34";HERA COMM S.r.l.; ;Fatt.n. 411806705324 del 09/08/2018 FORNITURA SERVIZIO ENERGIA ELETTRICA;27-09-2018;6030;9;463;1;Spese correnti;3;Acquisto di beni e servizi;2;Acquisto di servizi;5;Utenze e canoni;4;Energia elettrica;27-09-2018;
1209;1;1806;"383,70";"383,70";HERA COMM S.r.l.; ;Fatt.n. 411806791671 del 09/08/2018 FORNITURA SERVIZIO ENERGIA ELETTRICA;27-09-2018;6030;10;464;1;Spese correnti;3;Acquisto di beni e servizi;2;Acquisto di servizi;5;Utenze e canoni;4;Energia elettrica;27-09-2018;
1210;1;1807;"99,13";"411,00";HERA COMM S.r.l.; ;Fatt.n. 411806705303 del 09/08/2018 FORNITURA SERVIZIO ENERGIA ELETTRICA;27-09-2018;6030;11;465;1;Spese correnti;3;Acquisto di beni e servizi;2;Acquisto di servizi;5;Utenze e canoni;4;Energia elettrica;27-09-2018;
1210;2;1807;"311,87";"411,00";HERA COMM S.r.l.; ;Fatt.n. 411806705296 del 09/08/2018 FORNITURA SERVIZIO ENERGIA ELETTRICA;27-09-2018;6030;11;465;1;Spese correnti;3;Acquisto di beni e servizi;2;Acquisto di servizi;5;Utenze e canoni;4;Energia elettrica;27-09-2018;
1211;1;1808;"12,09";"7.496,02";HERA COMM S.r.l.; ;Fatt.n. 411806705323 del 09/08/2018 FORNITURA SERVIZIO ENERGIA ELETTRICA;27-09-2018;6030;12;466;1;Spese correnti;3;Acquisto di beni e servizi;2;Acquisto di servizi;5;Utenze e canoni;4;Energia elettrica;27-09-2018;
1211;2;1808;"30,45";"7.496,02";HERA COMM S.r.l.; ;Fatt.n. 411806705307 del 09/08/2018 FORNITURA SERVIZIO ENERGIA ELETTRICA;27-09-2018;6030;12;466;1;Spese correnti;3;Acquisto di beni e servizi;2;Acquisto di servizi;5;Utenze e canoni;4;Energia elettrica;27-09-2018;
1211;3;1808;"42,83";"7.496,02";HERA COMM S.r.l.; ;Fatt.n. 411806705331 del 09/08/2018 FORNITURA SERVIZIO ENERGIA ELETTRICA;27-09-2018;6030;12;466;1;Spese correnti;3;Acquisto di beni e servizi;2;Acquisto di servizi;5;Utenze e canoni;4;Energia elettrica;27-09-2018;
1211;4;1808;"47,91";"7.496,02";HERA COMM S.r.l.; ;Fatt.n. 411806705321 del 09/08/2018 FORNITURA SERVIZIO ENERGIA ELETTRICA;27-09-2018;6030;12;466;1;Spese correnti;3;Acquisto di beni e servizi;2;Acquisto di servizi;5;Utenze e canoni;4;Energia elettrica;27-09-2018;
1211;5;1808;"70,25";"7.496,02";HERA COMM S.r.l.; ;Fatt.n. 411806705310 del 09/08/2018 FORNITURA SERVIZIO ENERGIA ELETTRICA;27-09-2018;6030;12;466;1;Spese correnti;3;Acquisto di beni e servizi;2;Acquisto di servizi;5;Utenze e canoni;4;Energia elettrica;27-09-2018;
1211;6;1808;"75,47";"7.496,02";HERA COMM S.r.l.; ;Fatt.n. 411806705292 del 09/08/2018 FORNITURA SERVIZIO ENERGIA ELETTRICA;27-09-2018;6030;12;466;1;Spese correnti;3;Acquisto di beni e servizi;2;Acquisto di servizi;5;Utenze e canoni;4;Energia elettrica;27-09-2018;
1211;7;1808;"79,25";"7.496,02";HERA COMM S.r.l.; ;Fatt.n. 411806705322 del 09/08/2018 FORNITURA SERVIZIO ENERGIA ELETTRICA;27-09-2018;6030;12;466;1;Spese correnti;3;Acquisto di beni e servizi;2;Acquisto di servizi;5;Utenze e canoni;4;Energia elettrica;27-09-2018;
1211;8;1808;"87,55";"7.496,02";HERA COMM S.r.l.; ;Fatt.n. 411806705302 del 09/08/2018 FORNITURA SERVIZIO ENERGIA ELETTRICA;27-09-2018;6030;12;466;1;Spese correnti;3;Acquisto di beni e servizi;2;Acquisto di servizi;5;Utenze e canoni;4;Energia elettrica;27-09-2018;
1211;9;1808;"91,06";"7.496,02";HERA COMM S.r.l.; ;Fatt.n. 411806705300 del 09/08/2018 FORNITURA SERVIZIO ENERGIA ELETTRICA;27-09-2018;6030;12;466;1;Spese correnti;3;Acquisto di beni e servizi;2;Acquisto di servizi;5;Utenze e canoni;4;Energia elettrica;27-09-2018;
1211;10;1808;"91,60";"7.496,02";HERA COMM S.r.l.; ;Fatt.n. 411806705305 del 09/08/2018 FORNITURA SERVIZIO ENERGIA ELETTRICA;27-09-2018;6030;12;466;1;Spese correnti;3;Acquisto di beni e servizi;2;Acquisto di servizi;5;Utenze e canoni;4;Energia elettrica;27-09-2018;
1211;11;1808;"102,46";"7.496,02";HERA COMM S.r.l.; ;Fatt.n. 411806705306 del 09/08/2018 FORNITURA SERVIZIO ENERGIA ELETTRICA;27-09-2018;6030;12;466;1;Spese correnti;3;Acquisto di beni e servizi;2;Acquisto di servizi;5;Utenze e canoni;4;Energia elettrica;27-09-2018;
1211;12;1808;"133,90";"7.496,02";HERA COMM S.r.l.; ;Fatt.n. 411806705288 del 09/08/2018 FORNITURA SERVIZIO ENERGIA ELETTRICA;27-09-2018;6030;12;466;1;Spese correnti;3;Acquisto di beni e servizi;2;Acquisto di servizi;5;Utenze e canoni;4;Energia elettrica;27-09-2018;
1211;13;1808;"136,74";"7.496,02";HERA COMM S.r.l.; ;Fatt.n. 411806705287 del 09/08/2018 FORNITURA SERVIZIO ENERGIA ELETTRICA;27-09-2018;6030;12;466;1;Spese correnti;3;Acquisto di beni e servizi;2;Acquisto di servizi;5;Utenze e canoni;4;Energia elettrica;27-09-2018;
1211;14;1808;"140,52";"7.496,02";HERA COMM S.r.l.; ;Fatt.n. 411806705289 del 09/08/2018 FORNITURA SERVIZIO ENERGIA ELETTRICA;27-09-2018;6030;12;466;1;Spese correnti;3;Acquisto di beni e servizi;2;Acquisto di servizi;5;Utenze e canoni;4;Energia elettrica;27-09-2018;
1211;15;1808;"142,42";"7.496,02";HERA COMM S.r.l.; ;Fatt.n. 411806705299 del 09/08/2018 FORNITURA SERVIZIO ENERGIA ELETTRICA;27-09-2018;6030;12;466;1;Spese correnti;3;Acquisto di beni e servizi;2;Acquisto di servizi;5;Utenze e canoni;4;Energia elettrica;27-09-2018;
1211;16;1808;"197,84";"7.496,02";HERA COMM S.r.l.; ;Fatt.n. 411806705329 del 09/08/2018 FORNITURA SERVIZIO ENERGIA ELETTRICA;27-09-2018;6030;12;466;1;Spese correnti;3;Acquisto di beni e servizi;2;Acquisto di servizi;5;Utenze e canoni;4;Energia elettrica;27-09-2018;
1211;17;1808;"286,77";"7.496,02";HERA COMM S.r.l.; ;Fatt.n. 411806705308 del 09/08/2018 FORNITURA SERVIZIO ENERGIA ELETTRICA;27-09-2018;6030;12;466;1;Spese correnti;3;Acquisto di beni e servizi;2;Acquisto di servizi;5;Utenze e canoni;4;Energia elettrica;27-09-2018;
1211;18;1808;"326,02";"7.496,02";HERA COMM S.r.l.; ;Fatt.n. 411806705330 del 09/08/2018 FORNITURA SERVIZIO ENERGIA ELETTRICA;27-09-2018;6030;12;466;1;Spese correnti;3;Acquisto di beni e servizi;2;Acquisto di servizi;5;Utenze e canoni;4;Energia elettrica;27-09-2018;
1211;19;1808;"349,94";"7.496,02";HERA COMM S.r.l.; ;Fatt.n. 411806705293 del 09/08/2018 FORNITURA SERVIZIO ENERGIA ELETTRICA;27-09-2018;6030;12;466;1;Spese correnti;3;Acquisto di beni e servizi;2;Acquisto di servizi;5;Utenze e canoni;4;Energia elettrica;27-09-2018;
1211;20;1808;"350,32";"7.496,02";HERA COMM S.r.l.; ;Fatt.n. 411806705313 del 09/08/2018 FORNITURA SERVIZIO ENERGIA ELETTRICA;27-09-2018;6030;12;466;1;Spese correnti;3;Acquisto di beni e servizi;2;Acquisto di servizi;5;Utenze e canoni;4;Energia elettrica;27-09-2018;
1211;21;1808;"411,91";"7.496,02";HERA COMM S.r.l.; ;Fatt.n. 411806705325 del 09/08/2018 FORNITURA SERVIZIO ENERGIA ELETTRICA;27-09-2018;6030;12;466;1;Spese correnti;3;Acquisto di beni e servizi;2;Acquisto di servizi;5;Utenze e canoni;4;Energia elettrica;27-09-2018;
1211;22;1808;"486,61";"7.496,02";HERA COMM S.r.l.; ;Fatt.n. 411806705314 del 09/08/2018 FORNITURA SERVIZIO ENERGIA ELETTRICA;27-09-2018;6030;12;466;1;Spese correnti;3;Acquisto di beni e servizi;2;Acquisto di servizi;5;Utenze e canoni;4;Energia elettrica;27-09-2018;
1211;23;1808;"687,78";"7.496,02";HERA COMM S.r.l.; ;Fatt.n. 411806705327 del 09/08/2018 FORNITURA SERVIZIO ENERGIA ELETTRICA;27-09-2018;6030;12;466;1;Spese correnti;3;Acquisto di beni e servizi;2;Acquisto di servizi;5;Utenze e canoni;4;Energia elettrica;27-09-2018;
1211;24;1808;"810,08";"7.496,02";HERA COMM S.r.l.; ;Fatt.n. 411806705311 del 09/08/2018 FORNITURA SERVIZIO ENERGIA ELETTRICA;27-09-2018;6030;12;466;1;Spese correnti;3;Acquisto di beni e servizi;2;Acquisto di servizi;5;Utenze e canoni;4;Energia elettrica;27-09-2018;
1211;25;1808;"2.304,25";"7.496,02";HERA COMM S.r.l.; ;Fatt.n. 411806705328 del 09/08/2018 FORNITURA SERVIZIO ENERGIA ELETTRICA;27-09-2018;6030;12;466;1;Spese correnti;3;Acquisto di beni e servizi;2;Acquisto di servizi;5;Utenze e canoni;4;Energia elettrica;27-09-2018;
1212;1;1809;"9,47";"1.329,91";HERA COMM S.r.l.; ;Fatt.n. 411806705301 del 09/08/2018 FORNITURA SERVIZIO ENERGIA ELETTRICA;27-09-2018;6030;13;467;1;Spese correnti;3;Acquisto di beni e servizi;2;Acquisto di servizi;5;Utenze e canoni;4;Energia elettrica;27-09-2018;
1212;2;1809;"19,11";"1.329,91";HERA COMM S.r.l.; ;Fatt.n. 411806705326 del 09/08/2018 FORNITURA SERVIZIO ENERGIA ELETTRICA;27-09-2018;6030;13;467;1;Spese correnti;3;Acquisto di beni e servizi;2;Acquisto di servizi;5;Utenze e canoni;4;Energia elettrica;27-09-2018;
1212;3;1809;"22,02";"1.329,91";HERA COMM S.r.l.; ;Fatt.n. 411806705294 del 09/08/2018 FORNITURA SERVIZIO ENERGIA ELETTRICA;27-09-2018;6030;13;467;1;Spese correnti;3;Acquisto di beni e servizi;2;Acquisto di servizi;5;Utenze e canoni;4;Energia elettrica;27-09-2018;
1212;4;1809;"25,44";"1.329,91";HERA COMM S.r.l.; ;Fatt.n. 411806705312 del 09/08/2018 FORNITURA SERVIZIO ENERGIA ELETTRICA;27-09-2018;6030;13;467;1;Spese correnti;3;Acquisto di beni e servizi;2;Acquisto di servizi;5;Utenze e canoni;4;Energia elettrica;27-09-2018;
1212;5;1809;"53,53";"1.329,91";HERA COMM S.r.l.; ;Fatt.n. 411806705315 del 09/08/2018 FORNITURA SERVIZIO ENERGIA ELETTRICA;27-09-2018;6030;13;467;1;Spese correnti;3;Acquisto di beni e servizi;2;Acquisto di servizi;5;Utenze e canoni;4;Energia elettrica;27-09-2018;
1212;6;1809;"59,44";"1.329,91";HERA COMM S.r.l.; ;Fatt.n. 411806705297 del 09/08/2018 FORNITURA SERVIZIO ENERGIA ELETTRICA;27-09-2018;6030;13;467;1;Spese correnti;3;Acquisto di beni e servizi;2;Acquisto di servizi;5;Utenze e canoni;4;Energia elettrica;27-09-2018;
1212;7;1809;"1.140,90";"1.329,91";HERA COMM S.r.l.; ;Fatt.n. 411806705318 del 09/08/2018 FORNITURA SERVIZIO ENERGIA ELETTRICA;27-09-2018;6030;13;467;1;Spese correnti;3;Acquisto di beni e servizi;2;Acquisto di servizi;5;Utenze e canoni;4;Energia elettrica;27-09-2018;
1213;1;1810;"192,00";"192,00";HERA COMM S.r.l.; ;Fatt.n. 411806705295 del 09/08/2018 FORNITURA SERVIZIO ENERGIA ELETTRICA;27-09-2018;6030;14;468;1;Spese correnti;3;Acquisto di beni e servizi;2;Acquisto di servizi;5;Utenze e canoni;4;Energia elettrica;27-09-2018;
1214;1;1811;"38,17";"540,40";HERA COMM S.r.l.; ;Fatt.n. 411806705309 del 09/08/2018 FORNITURA SERVIZIO ENERGIA ELETTRICA;27-09-2018;6030;16;469;1;Spese correnti;3;Acquisto di beni e servizi;2;Acquisto di servizi;5;Utenze e canoni;4;Energia elettrica;27-09-2018;
1214;2;1811;"60,37";"540,40";HERA COMM S.r.l.; ;Fatt.n. 411806705304 del 09/08/2018 FORNITURA SERVIZIO ENERGIA ELETTRICA;27-09-2018;6030;16;469;1;Spese correnti;3;Acquisto di beni e servizi;2;Acquisto di servizi;5;Utenze e canoni;4;Energia elettrica;27-09-2018;
1214;3;1811;"441,86";"540,40";HERA COMM S.r.l.; ;Fatt.n. 411806705291 del 09/08/2018 FORNITURA SERVIZIO ENERGIA ELETTRICA;27-09-2018;6030;16;469;1;Spese correnti;3;Acquisto di beni e servizi;2;Acquisto di servizi;5;Utenze e canoni;4;Energia elettrica;27-09-2018;
1215;1;1812;"179,68";"179,68";HERA COMM S.r.l.; ;Fatt.n. 411806705290 del 09/08/2018 FORNITURA SERVIZIO ENERGIA ELETTRICA;27-09-2018;6030;17;470;1;Spese correnti;3;Acquisto di beni e servizi;2;Acquisto di servizi;5;Utenze e canoni;4;Energia elettrica;27-09-2018;
1216;1;1813;"19,11";"19,11";HERA COMM S.r.l.; ;Fatt.n. 411806705317 del 09/08/2018 FORNITURA SERVIZIO ENERGIA ELETTRICA;27-09-2018;6030;18;471;1;Spese correnti;3;Acquisto di beni e servizi;2;Acquisto di servizi;5;Utenze e canoni;4;Energia elettrica;27-09-2018;
1217;1;1814;"150,54";"150,54";HERA COMM S.r.l.; ;Fatt.n. 411806705320 del 09/08/2018 FORNITURA SERVIZIO ENERGIA ELETTRICA;27-09-2018;6030;19;472;1;Spese correnti;3;Acquisto di beni e servizi;2;Acquisto di servizi;5;Utenze e canoni;4;Energia elettrica;27-09-2018;
1218;1;1815;"14,85";"188,45";HERA COMM S.r.l.; ;SALDO Fatt.n. 411807249237  del 27/08/2018 FORNITURA SERVIZIO ENERGIA ELETTRICA;27-09-2018;6030;12;466;1;Spese correnti;3;Acquisto di beni e servizi;2;Acquisto di servizi;5;Utenze e canoni;4;Energia elettrica;27-09-2018;
1218;2;1815;"173,60";"188,45";HERA COMM S.r.l.; ;SALDO Fatt.n. 411807249236  del 27/08/2018 FORNITURA SERVIZIO ENERGIA ELETTRICA;27-09-2018;6030;12;466;1;Spese correnti;3;Acquisto di beni e servizi;2;Acquisto di servizi;5;Utenze e canoni;4;Energia elettrica;27-09-2018;
1219;1;1816;"206,60";"618,35";HERA COMM S.r.l.; ;SALDO Fatt.n. 411807249239  del 27/08/2018 FORNITURA SERVIZIO ENERGIA ELETTRICA;27-09-2018;6030;13;467;1;Spese correnti;3;Acquisto di beni e servizi;2;Acquisto di servizi;5;Utenze e canoni;4;Energia elettrica;27-09-2018;
1219;2;1816;"411,75";"618,35";HERA COMM S.r.l.; ;SALDO Fatt.n. 411807249238  del 27/08/2018 FORNITURA SERVIZIO ENERGIA ELETTRICA;27-09-2018;6030;13;467;1;Spese correnti;3;Acquisto di beni e servizi;2;Acquisto di servizi;5;Utenze e canoni;4;Energia elettrica;27-09-2018;
1220;1;1817;"503,98";"503,98";SCAFIDI GIUSEPPE;Z3D2463AA2;SALDO Fatt.n. 000019-2018-FE  del 04/09/2018 RIFERIMENTO PREVENTIVO 75/2018 DEL 12/07/2018 PNEUMATICI  SU AUTOMEZZO TG CT914ML;27-09-2018;6070;9;231;1;Spese correnti;3;Acquisto di beni e servizi;2;Acquisto di servizi;9;Manutenzione ordinaria e riparazioni;1;"Manutenzione ordinaria e riparazioni di mezzi di trasporto ad uso civile, di sicurezza e ordine pubblico";27-09-2018;
1221;1;1818;"3.588,96";"3.588,96";CARTAREGIA COSIMO;Z032181600;SALDO Fatt.n. 18/PA  del 05/09/2018 MANUTENZ. IMP. PUBBLICA ILLUMINAZIONE AGOSTO 2018-Rif. Determina prot. 04  dell'11/01/2018;27-09-2018;3930;1;586;1;Spese correnti;3;Acquisto di beni e servizi;2;Acquisto di servizi;15;Contratti di servizio pubblico;999;Altre spese per contratti di servizio pubblico;27-09-2018;
1222;1;1819;"6.340,48";"6.340,48";IALITE ONLUS;ZA020E82FC;"SALDO Fatt.n. 147  del 22/08/2018 SERVIZIO DI ASSISTENZA DOMICILIARE IN FAVORE DI         ANZIANI,MINORI, DIVERSAMENTE ABILI E NUCLEI FAMILIARI IN CONDIZIONI DI         DISAGIO - DAL 01.07.2018 AL 31.07.2018 - CIG: ZA020E82FC";27-09-2018;1878;2;35;1;Spese correnti;3;Acquisto di beni e servizi;2;Acquisto di servizi;15;Contratti di servizio pubblico;9;Contratti di servizio di assistenza sociale domiciliare;27-09-2018;
1223;1;1820;"350,00";"1.400,00";CALABRO' MASSIMO; ;spazzamento strrade disciplina assistenza economica-06/08-04/09/2018;27-09-2018;1900;0;246;1;Spese correnti;4;Trasferimenti correnti;2;Trasferimenti correnti a Famiglie;1;Interventi previdenziali;999;Altri sussidi e assegni;27-09-2018;
1223;2;1821;"350,00";"1.400,00";GULLOTTI ANTONINO; ;spazzamento strrade disciplina assistenza economica-06/08-04/09/2018;27-09-2018;1900;0;246;1;Spese correnti;4;Trasferimenti correnti;2;Trasferimenti correnti a Famiglie;1;Interventi previdenziali;999;Altri sussidi e assegni;27-09-2018;
1223;3;1822;"350,00";"1.400,00";LANZILLOTTI ISIDORO; ;spazzamento strrade disciplina assistenza economica-06/08-04/09/2018;27-09-2018;1900;0;246;1;Spese correnti;4;Trasferimenti correnti;2;Trasferimenti correnti a Famiglie;1;Interventi previdenziali;999;Altri sussidi e assegni;27-09-2018;
1223;4;1823;"350,00";"1.400,00";TROVATO SALVATORE; ;spazzamento strrade disciplina assistenza economica-06/08-04/09/2018;27-09-2018;1900;0;246;1;Spese correnti;4;Trasferimenti correnti;2;Trasferimenti correnti a Famiglie;1;Interventi previdenziali;999;Altri sussidi e assegni;27-09-2018;
1226;1;0;"18,93";"18,93";SEA OFFICE S.R.L.; ;SALDO Fatt.n. PA  000006  del 22/09/2018 FIRMA DIGITALE;28-09-2018;2150;2;277;2;Spese in conto capitale;2;Investimenti fissi lordi e acquisto di terreni;1;Beni materiali;7;Hardware;999;Hardware n.a.c.;28-09-2018;
